Directorate,Department,Expenditure Type,Ref.Doc.1,Vendor Name,Expenditure Amount (exc VAT),Payment Date
Assurance,Assurance,Advertising,60099118,CAN DIGITAL SOLUTIONS LTD,"3,060.00",11/04/2018
Assurance,Assurance,Advertising,60102518,TMP (UK) LTD,616.00,13/04/2018
Assurance,Assurance,Books-CDs-Audio-Video,40002697,OFFICE DEPOT UK LTD,1.02,19/04/2018
Assurance,Assurance,Clothing - Uniforms,80017072,TOYE& CO,193.20,30/04/2018
Assurance,Assurance,Equipment and Materials Purcha,60101699,CITY FURNITURE HIRE LIMITED,638.28,26/04/2018
Assurance,Assurance,Equipment and Materials Purcha,60099999,PRIME PRODUCTION LTD,39.50,12/04/2018
Assurance,Assurance,Equipment and Materials Purcha,60100884,PRIME PRODUCTION LTD,51.50,23/04/2018
Assurance,Assurance,Equipment and Materials Purcha,60100957,PRIME PRODUCTION LTD,39.50,12/04/2018
Assurance,Assurance,Equipment and Materials Purcha,60100962,PRIME PRODUCTION LTD,39.50,12/04/2018
Assurance,Assurance,Equipment and Materials Purcha,60102547,PRIME PRODUCTION LTD,39.50,16/04/2018
Assurance,Assurance,Equipment and Materials Purcha,80016669,QUAYSIDE CLOTHING LTD,"1,084.19",24/04/2018
Assurance,Assurance,General Office Expenses,40002717,OFFICE DEPOT UK LTD,6.39,19/04/2018
Assurance,Assurance,General Office Expenses,40002729,OFFICE DEPOT UK LTD,2.04,19/04/2018
Assurance,Assurance,General Office Expenses,40002779,OFFICE DEPOT UK LTD,0.64,19/04/2018
Assurance,Assurance,General Office Expenses,40002815,OFFICE DEPOT UK LTD,84.10,26/04/2018
Assurance,Assurance,General Office Expenses,40002816,OFFICE DEPOT UK LTD,0.21,25/04/2018
Assurance,Assurance,Other Indirect Employee Expens,80016780,LBB MAYOR'S APPEAL 2017/18,90.00,13/04/2018
Assurance,Assurance,Other Indirect Employee Expens,80016943,LBSOUTHWARKMAYORSCHARITYAPPEAL,200.00,23/04/2018
Assurance,Assurance,Other Indirect Employee Expens,80016992,THE MAYOR'S CHARITY,90.00,23/04/2018
Assurance,Assurance,Other Services,60100869,CITY FURNITURE HIRE LIMITED,737.16,18/04/2018
Assurance,Assurance,Other Services,60101178,EASYCRATE LTD,395.00,10/04/2018
Assurance,Assurance,Printing-Contract,60101686,ELECTORAL REFORM SERVICES,"1,486.17",12/04/2018
Assurance,Assurance,Printing-Contract,60101862,ELECTORAL REFORM SERVICES,"4,256.90",12/04/2018
Assurance,Assurance,Printing-Contract,60102548,ELECTORAL REFORM SERVICES,"2,685.82",26/04/2018
Assurance,Assurance,Printing-Contract,60103078,ELECTORAL REFORM SERVICES,218.00,24/04/2018
Assurance,Assurance,Professional Services,80016663,BARCLAYS/K DOBBS,306.00,06/04/2018
Assurance,Assurance,Professional Services,60100270,PRICEWATERHOUSE COOPERS,"30,973.44",05/04/2018
Assurance,Assurance,Professional Services,80017051,PRIME PRODUCTION LTD,202.50,30/04/2018
Assurance,Assurance,Professional Services,60099614,REDACTED - PERSONAL DATA,275.00,24/04/2018
Assurance,Assurance,Professional Services,80017073,S7 CHAUFFEURS,330.00,30/04/2018
Assurance,Assurance,Publications,60102015,GEOGRAPHERS A-Z MAP COMPANY LTD,"4,000.00",10/04/2018
Assurance,Assurance,Rents,60103282,AVENUE HOUSE SERVICES LTD,660.00,26/04/2018
Assurance,Assurance,Rents,80016988,BARNET CHRISTIAN FELLOWSHIP,300.00,24/04/2018
Assurance,Assurance,Rents,60103256,BARNET FC COMMUNITY TRUST,600.00,26/04/2018
Assurance,Assurance,Rents,60101869,BARNET MULTICULTURAL COMMUNITY CENTRE,500.00,09/04/2018
Assurance,Assurance,Rents,60103288,CENTRAL SQUARE MINYAN,750.00,30/04/2018
Assurance,Assurance,Rents,60103283,CHURCH OF ST MARY MAGDALEN,500.00,27/04/2018
Assurance,Assurance,Rents,60103242,CHURCH OF ST PETER-LE-POER,550.00,26/04/2018
Assurance,Assurance,Rents,60103265,COLINDALE COMMUNITIES TRUST,800.00,26/04/2018
Assurance,Assurance,Rents,60103297,EDGWARE PCC-ST PETER'S,995.00,26/04/2018
Assurance,Assurance,Rents,60103268,ETZ CHAIM JEWISH PRIMARY SCHOOL,"1,267.50",26/04/2018
Assurance,Assurance,Rents,80017004,FIFTEENTH FINCHLEY SCOUT GROUP,400.00,24/04/2018
Assurance,Assurance,Rents,80017007,FINCHLEY BAPTIST CHURCH,675.00,24/04/2018
Assurance,Assurance,Rents,60103290,FREEHOLD COMMUNITY ASSOCIATION,700.00,26/04/2018
Assurance,Assurance,Rents,60103264,GIRLGUIDING CHIGWELL ROW,750.00,26/04/2018
Assurance,Assurance,Rents,60103311,GREEN MAN COMMUNITY CENTRE M.C.,"1,000.00",26/04/2018
Assurance,Assurance,Rents,60103276,HADLEY MEMORIAL HALL,352.00,26/04/2018
Assurance,Assurance,Rents,60103307,HAMPSTEAD GARDEN SUBURB FELLOWSHIP,600.00,26/04/2018
Assurance,Assurance,Rents,80017005,HAMPSTEADGARDENSUBURBSYNAGOGUE,350.00,24/04/2018
Assurance,Assurance,Rents,60101844,HINDU CULTURAL SOCIETY,650.00,09/04/2018
Assurance,Assurance,Rents,60101621,HOPE CORNER COMMUNITY CENTRE,220.00,09/04/2018
Assurance,Assurance,Rents,60102990,LOCAL GOVERNMENT IMPROVEMENT AND,150.00,23/04/2018
Assurance,Assurance,Rents,60102991,LOCAL GOVERNMENT IMPROVEMENT AND,"1,000.00",23/04/2018
Assurance,Assurance,Rents,60103012,LOCAL GOVERNMENT IMPROVEMENT AND,85.00,23/04/2018
Assurance,Assurance,Rents,60103270,LYONSDOWN HALL,990.00,27/04/2018
Assurance,Assurance,Rents,60103291,MANOR DRIVE METHODIST CHURCH,600.00,26/04/2018
Assurance,Assurance,Rents,60103269,NEW BARNET COMMUNITY ASSOCIATION,240.00,26/04/2018
Assurance,Assurance,Rents,80017006,RAILWAY TERRACE ALLOTMENT SOC,200.00,24/04/2018
Assurance,Assurance,Rents,60103241,ST AGNES CHURCH,750.00,26/04/2018
Assurance,Assurance,Rents,80017009,ST ALPHAGE CHURCH HALL,650.00,24/04/2018
Assurance,Assurance,Rents,60103260,ST MARKS CHURCH BARNET VALE,480.00,27/04/2018
Assurance,Assurance,Rents,80017012,ST MARY'S & ST JOHN'S SCHOOL,120.75,24/04/2018
Assurance,Assurance,Rents,80017008,ST PAULS CHURCH MILL HILL,550.00,24/04/2018
Assurance,Assurance,Rents,60103239,ST PAUL'S FINCHLEY PCC,649.25,26/04/2018
Assurance,Assurance,Rents,60103295,ST STEPHENS CHURCH HALL,360.00,26/04/2018
Assurance,Assurance,Rents,60103271,SUMMERSIDE PRIMARY ACADEMY,96.00,26/04/2018
Assurance,Assurance,Rents,80016987,THE ARKLEY CLUB,550.00,24/04/2018
Assurance,Assurance,Rents,60103300,THE HYDE CHURCHES,830.00,26/04/2018
Assurance,Assurance,Rents,60103258,THE WOODSIDE PARK CLUB,900.00,27/04/2018
Assurance,Assurance,Rents,80016989,TOTTERIDGE TENNIS CLUB,690.00,24/04/2018
Assurance,Assurance,Rents,60103262,TRINITY (METHODIST/URC) CHURCH,980.00,26/04/2018
Assurance,Assurance,Rents,60103316,TRINITY CHURCH CENTRE,800.00,27/04/2018
Assurance,Assurance,Rents,80016990,UNDERHILL BAPTIST CHURCH,275.00,24/04/2018
Assurance,Assurance,Rents,60101868,WATLING COMMUNITY ASSOCIATION,524.00,09/04/2018
Assurance,Assurance,Stationery,40002796,OFFICE DEPOT UK LTD,32.90,19/04/2018
Assurance,Assurance,Subscriptions,60102499,ASSOCIATION OF ELECTORAL ADMINISTRA,184.00,24/04/2018
Assurance,Assurance,Subscriptions,60102528,ASSOCIATION OF ELECTORAL ADMINISTRA,184.00,24/04/2018
Assurance,Assurance,Subscriptions,60100392,NATIONAL CRIME AGENCY,134.00,11/04/2018
Assurance,Assurance,Subscriptions,60101617,THOMSON REUTERS (PROFESSIONAL)UK LT,"1,150.00",10/04/2018
Assurance,Assurance,Training,60100319,CIPFA BUSINESS LIMITED,950.00,11/04/2018
Assurance,Assurance,Training,60102124,CIPFA BUSINESS LIMITED,250.00,09/04/2018
Assurance,Assurance,Training,80016404,THE GOVERNANCE INSTITUTE,310.00,11/04/2018
Assurance,Assurance,Translation Exp / Interpret,60100281,REDACTED - PERSONAL DATA,977.50,05/04/2018
Assurance,Assurance,Ttl IT & Comms,60102312,HAMILTON RENTALS LTD,358.00,11/04/2018
Assurance,Assurance,Ttl IT & Comms,60102375,HAMILTON RENTALS LTD,"1,631.00",18/04/2018
Balance Sheet,Balance Sheet,Cycle to Work,20035901,HALFORDS,641.67,11/04/2018
Balance Sheet,Balance Sheet,Cycle to Work,20035902,HALFORDS,708.33,11/04/2018
Balance Sheet,Balance Sheet,Schools -Technology Benefits,20035980,STORMFRONT RETAIL LTD,332.50,18/04/2018
Balance Sheet,Balance Sheet,Schools -Technology Benefits,20035982,STORMFRONT RETAIL LTD,"3,502.50",18/04/2018
Balance Sheet,Balance Sheet,Technology Benefits,20035981,STORMFRONT RETAIL LTD,"3,301.55",18/04/2018
Central Expenses,Central Expenses,Bank Charges,80016782,PAYPOINT COLLECTIONS LTD,386.32,16/04/2018
Central Expenses,Central Expenses,Bank Charges,80016962,PAYPOINT COLLECTIONS LTD,849.53,20/04/2018
Central Expenses,Central Expenses,Bank Charges,80016423,PAYPOINT NETWORK LTD,710.01,03/04/2018
Central Expenses,Central Expenses,Bank Charges,80016641,PAYPOINT NETWORK LTD,511.52,03/04/2018
Central Expenses,Central Expenses,Bank Charges,80016718,PAYPOINT NETWORK LTD,587.42,09/04/2018
Central Expenses,Central Expenses,Bank Charges,80016783,PAYPOINT NETWORK LTD,807.76,16/04/2018
Central Expenses,Central Expenses,Bank Charges,80016961,PAYPOINT NETWORK LTD,"1,776.29",20/04/2018
Central Expenses,Central Expenses,Insurance Claims,80016725,2020 LEGAL LIMITED,"6,092.00",10/04/2018
Central Expenses,Central Expenses,Insurance Claims,80016743,2020 LEGAL LIMITED,"3,327.04",10/04/2018
Central Expenses,Central Expenses,Insurance Claims,80016633,ADMIRAL LAW,"3,568.75",03/04/2018
Central Expenses,Central Expenses,Insurance Claims,60098568,BROWNE JACOBSON SOLS.,"3,550.30",18/04/2018
Central Expenses,Central Expenses,Insurance Claims,60100261,BROWNE JACOBSON SOLS.,"1,113.00",18/04/2018
Central Expenses,Central Expenses,Insurance Claims,60100335,BROWNE JACOBSON SOLS.,"1,271.00",18/04/2018
Central Expenses,Central Expenses,Insurance Claims,80016840,CO-OP INSURANCE,"1,624.27",26/04/2018
Central Expenses,Central Expenses,Insurance Claims,80016741,DAC BEACHCROFT,700.00,10/04/2018
Central Expenses,Central Expenses,Insurance Claims,80016686,DEPT FOR WORK & PENSIONS ONLY,678.00,06/04/2018
Central Expenses,Central Expenses,Insurance Claims,80016777,DWP COMPENSATION RECOVERY UNIT,829.00,13/04/2018
Central Expenses,Central Expenses,Insurance Claims,80017058,DWP COMPENSATION RECOVERY UNIT,647.00,27/04/2018
Central Expenses,Central Expenses,Insurance Claims,80016713,ENDSLEIGH,"2,013.40",06/04/2018
Central Expenses,Central Expenses,Insurance Claims,80016698,ENTERPRISE RENT-A-CAR,669.35,06/04/2018
Central Expenses,Central Expenses,Insurance Claims,80016650,GERALD D'SOUZA,"3,250.00",05/04/2018
Central Expenses,Central Expenses,Insurance Claims,60101913,GLENDALE COUNTRYSIDE LTD,226.15,26/04/2018
Central Expenses,Central Expenses,Insurance Claims,60101984,GLENDALE COUNTRYSIDE LTD,110.58,26/04/2018
Central Expenses,Central Expenses,Insurance Claims,60102086,GLENDALE COUNTRYSIDE LTD,214.20,26/04/2018
Central Expenses,Central Expenses,Insurance Claims,80016955,GREGORY ABRAMS DAVIDSON LLP,"2,755.00",26/04/2018
Central Expenses,Central Expenses,Insurance Claims,60101917,GRISTWOOD & TOM LTD,128.00,26/04/2018
Central Expenses,Central Expenses,Insurance Claims,60101975,GRISTWOOD & TOM LTD,504.00,26/04/2018
Central Expenses,Central Expenses,Insurance Claims,80017032,HARWOODS SOLICITORS,500.00,26/04/2018
Central Expenses,Central Expenses,Insurance Claims,80016679,IRWIN MITCHELL LLP,"2,232.00",16/04/2018
Central Expenses,Central Expenses,Insurance Claims,60100388,JOHNSON AUSTIN PARTNERSHIP LLP,450.00,03/04/2018
Central Expenses,Central Expenses,Insurance Claims,60102677,JOHNSON AUSTIN PARTNERSHIP LLP,225.00,16/04/2018
Central Expenses,Central Expenses,Insurance Claims,60102682,JOHNSON AUSTIN PARTNERSHIP LLP,225.00,16/04/2018
Central Expenses,Central Expenses,Insurance Claims,80016716,MTA SOLICITORS,455.00,10/04/2018
Central Expenses,Central Expenses,Insurance Claims,80016605,REDACTED - PERSONAL DATA,"4,142.81",03/04/2018
Central Expenses,Central Expenses,Insurance Claims,80016629,REDACTED - PERSONAL DATA,37.98,03/04/2018
Central Expenses,Central Expenses,Insurance Claims,80016690,REDACTED - PERSONAL DATA,150.00,06/04/2018
Central Expenses,Central Expenses,Insurance Claims,80016714,REDACTED - PERSONAL DATA,314.38,10/04/2018
Central Expenses,Central Expenses,Insurance Claims,80016744,REDACTED - PERSONAL DATA,750.00,10/04/2018
Central Expenses,Central Expenses,Insurance Claims,80016784,REDACTED - PERSONAL DATA,"7,000.00",16/04/2018
Central Expenses,Central Expenses,Insurance Claims,80016852,REDACTED - PERSONAL DATA,176.00,26/04/2018
Central Expenses,Central Expenses,Insurance Claims,80016854,REDACTED - PERSONAL DATA,105.00,26/04/2018
Central Expenses,Central Expenses,Insurance Claims,80016890,REDACTED - PERSONAL DATA,"9,000.00",26/04/2018
Central Expenses,Central Expenses,Insurance Claims,80016950,REDACTED - PERSONAL DATA,"1,300.00",26/04/2018
Central Expenses,Central Expenses,Insurance Claims,80017031,REDACTED - PERSONAL DATA,477.60,26/04/2018
Central Expenses,Central Expenses,Insurance Claims,80016639,RUSSELL WORTH SOLICITORS,"4,500.00",03/04/2018
Central Expenses,Central Expenses,Insurance Claims,80017039,UK INSURANCE,"1,643.52",27/04/2018
Central Expenses,Central Expenses,Insurance Claims,80016847,WHITE ROSE MOTORS (SOUTHGATE) LTD,"2,715.12",26/04/2018
Central Expenses,Central Expenses,Other Establishments - Third P,20035905,GREATER LONDON AUTHORITY,"49,678.00",10/04/2018
Central Expenses,Central Expenses,Other Establishments - Third P,20035906,LEE VALLEY REGIONAL PARK AUTH.,"28,597.64",10/04/2018
Central Expenses,Central Expenses,Other Establishments - Third P,80016517,TRANSPORT TRADING LIMITED,"7,591.00",06/04/2018
Central Expenses,Central Expenses,Subscriptions,60100275,LONDON BOROUGH OF CAMDEN,"13,525.26",10/04/2018
Central Expenses,Central Expenses,Subscriptions,60100293,LONDON BOROUGH OF CAMDEN,"6,120.27",10/04/2018
Commercial,Customer Support Group,Books-CDs-Audio-Video,60100391,SM ELECTRICAL SERVICES,300.00,11/04/2018
Commercial,Customer Support Group,Building Repairs & Maintenance,60097878,AJS LTD,296.87,30/04/2018
Commercial,Customer Support Group,Building Repairs & Maintenance,60098297,AJS LTD,23.52,12/04/2018
Commercial,Customer Support Group,Building Repairs & Maintenance,60098507,AJS LTD,"1,197.30",27/04/2018
Commercial,Customer Support Group,Building Repairs & Maintenance,60098546,AJS LTD,185.75,16/04/2018
Commercial,Customer Support Group,Building Repairs & Maintenance,60098613,AJS LTD,208.04,27/04/2018
Commercial,Customer Support Group,Building Repairs & Maintenance,60101716,AJS LTD,59.44,09/04/2018
Commercial,Customer Support Group,Building Repairs & Maintenance,60101747,AJS LTD,66.87,09/04/2018
Commercial,Customer Support Group,Building Repairs & Maintenance,60102614,AJS LTD,170.89,16/04/2018
Commercial,Customer Support Group,Building Repairs & Maintenance,60102618,AJS LTD,126.31,16/04/2018
Commercial,Customer Support Group,Building Repairs & Maintenance,60102629,AJS LTD,296.87,16/04/2018
Commercial,Customer Support Group,Building Repairs & Maintenance,60102645,AJS LTD,304.63,16/04/2018
Commercial,Customer Support Group,Building Repairs & Maintenance,60102646,AJS LTD,111.45,27/04/2018
Commercial,Customer Support Group,Building Repairs & Maintenance,60102647,AJS LTD,783.75,27/04/2018
Commercial,Customer Support Group,Building Repairs & Maintenance,60102656,AJS LTD,163.46,16/04/2018
Commercial,Customer Support Group,Building Repairs & Maintenance,60102673,AJS LTD,312.06,27/04/2018
Commercial,Customer Support Group,Building Repairs & Maintenance,60102683,AJS LTD,312.06,16/04/2018
Commercial,Customer Support Group,Building Repairs & Maintenance,60102700,AJS LTD,296.87,16/04/2018
Commercial,Customer Support Group,Building Repairs & Maintenance,60102209,GEESINK NORBA LTD,583.04,27/04/2018
Commercial,Customer Support Group,Building Repairs & Maintenance,10014001,GLOBAL SAFETY & ENVIRONMENTAL LTD,495.00,18/04/2018
Commercial,Customer Support Group,Building Repairs & Maintenance,80016859,HARWELL TECHNICAL SERVICES LTD,"10,210.00",17/04/2018
Commercial,Customer Support Group,Building Repairs & Maintenance,60101090,HERTEL (UK) LTD,34.91,09/04/2018
Commercial,Customer Support Group,Building Repairs & Maintenance,60101094,HERTEL (UK) LTD,34.91,09/04/2018
Commercial,Customer Support Group,Building Repairs & Maintenance,60101097,HERTEL (UK) LTD,34.91,09/04/2018
Commercial,Customer Support Group,Building Repairs & Maintenance,60101099,HERTEL (UK) LTD,34.91,06/04/2018
Commercial,Customer Support Group,Building Repairs & Maintenance,60101101,HERTEL (UK) LTD,34.91,12/04/2018
Commercial,Customer Support Group,Building Repairs & Maintenance,60101113,HERTEL (UK) LTD,34.91,06/04/2018
Commercial,Customer Support Group,Building Repairs & Maintenance,60101114,HERTEL (UK) LTD,34.91,12/04/2018
Commercial,Customer Support Group,Building Repairs & Maintenance,60101126,HERTEL (UK) LTD,34.91,06/04/2018
Commercial,Customer Support Group,Building Repairs & Maintenance,60101132,HERTEL (UK) LTD,34.91,10/04/2018
Commercial,Customer Support Group,Building Repairs & Maintenance,60101140,HERTEL (UK) LTD,34.91,12/04/2018
Commercial,Customer Support Group,Building Repairs & Maintenance,60101142,HERTEL (UK) LTD,34.91,12/04/2018
Commercial,Customer Support Group,Building Repairs & Maintenance,60101144,HERTEL (UK) LTD,34.91,12/04/2018
Commercial,Customer Support Group,Building Repairs & Maintenance,60101145,HERTEL (UK) LTD,34.91,12/04/2018
Commercial,Customer Support Group,Building Repairs & Maintenance,60101148,HERTEL (UK) LTD,34.91,12/04/2018
Commercial,Customer Support Group,Building Repairs & Maintenance,60101157,HERTEL (UK) LTD,34.91,12/04/2018
Commercial,Customer Support Group,Building Repairs & Maintenance,60101158,HERTEL (UK) LTD,34.91,12/04/2018
Commercial,Customer Support Group,Building Repairs & Maintenance,60101159,HERTEL (UK) LTD,34.91,10/04/2018
Commercial,Customer Support Group,Building Repairs & Maintenance,60101162,HERTEL (UK) LTD,34.91,12/04/2018
Commercial,Customer Support Group,Building Repairs & Maintenance,60101163,HERTEL (UK) LTD,34.91,12/04/2018
Commercial,Customer Support Group,Building Repairs & Maintenance,60101173,HERTEL (UK) LTD,34.91,12/04/2018
Commercial,Customer Support Group,Building Repairs & Maintenance,60101175,HERTEL (UK) LTD,34.91,10/04/2018
Commercial,Customer Support Group,Building Repairs & Maintenance,60102258,NORTH LONDON CATERING EQUIPMENT,95.00,10/04/2018
Commercial,Customer Support Group,Building Repairs & Maintenance,60103002,NORTH LONDON CATERING EQUIPMENT,167.00,23/04/2018
Commercial,Customer Support Group,Building Repairs & Maintenance,60100725,RGE SERVICES,65.00,12/04/2018
Commercial,Customer Support Group,Building Repairs & Maintenance,60100730,RGE SERVICES,65.00,12/04/2018
Commercial,Customer Support Group,Building Repairs & Maintenance,60100736,RGE SERVICES,65.00,12/04/2018
Commercial,Customer Support Group,Building Repairs & Maintenance,60100751,RGE SERVICES,65.00,12/04/2018
Commercial,Customer Support Group,Building Repairs & Maintenance,60100795,RGE SERVICES,65.00,12/04/2018
Commercial,Customer Support Group,Building Repairs & Maintenance,60100806,RGE SERVICES,65.00,12/04/2018
Commercial,Customer Support Group,Building Repairs & Maintenance,60100816,RGE SERVICES,65.00,12/04/2018
Commercial,Customer Support Group,Building Repairs & Maintenance,60101688,RGE SERVICES,136.19,06/04/2018
Commercial,Customer Support Group,Building Repairs & Maintenance,60101693,RGE SERVICES,332.07,05/04/2018
Commercial,Customer Support Group,Building Repairs & Maintenance,60101697,RGE SERVICES,94.05,06/04/2018
Commercial,Customer Support Group,Building Repairs & Maintenance,60101705,RGE SERVICES,62.00,09/04/2018
Commercial,Customer Support Group,Building Repairs & Maintenance,60101712,RGE SERVICES,31.82,06/04/2018
Commercial,Customer Support Group,Building Repairs & Maintenance,60101715,RGE SERVICES,62.00,09/04/2018
Commercial,Customer Support Group,Building Repairs & Maintenance,60101718,RGE SERVICES,171.00,06/04/2018
Commercial,Customer Support Group,Building Repairs & Maintenance,60101725,RGE SERVICES,94.05,09/04/2018
Commercial,Customer Support Group,Building Repairs & Maintenance,60101728,RGE SERVICES,248.00,09/04/2018
Commercial,Customer Support Group,Building Repairs & Maintenance,60101730,RGE SERVICES,132.42,09/04/2018
Commercial,Customer Support Group,Building Repairs & Maintenance,60101731,RGE SERVICES,62.00,09/04/2018
Commercial,Customer Support Group,Building Repairs & Maintenance,60101734,RGE SERVICES,175.28,06/04/2018
Commercial,Customer Support Group,Building Repairs & Maintenance,60101737,RGE SERVICES,176.13,09/04/2018
Commercial,Customer Support Group,Building Repairs & Maintenance,60101739,RGE SERVICES,62.00,09/04/2018
Commercial,Customer Support Group,Building Repairs & Maintenance,60101758,RGE SERVICES,173.38,09/04/2018
Commercial,Customer Support Group,Building Repairs & Maintenance,60101763,RGE SERVICES,93.00,09/04/2018
Commercial,Customer Support Group,Building Repairs & Maintenance,60101764,RGE SERVICES,218.04,09/04/2018
Commercial,Customer Support Group,Building Repairs & Maintenance,60101768,RGE SERVICES,189.94,06/04/2018
Commercial,Customer Support Group,Building Repairs & Maintenance,60101774,RGE SERVICES,124.00,09/04/2018
Commercial,Customer Support Group,Building Repairs & Maintenance,60101775,RGE SERVICES,810.61,05/04/2018
Commercial,Customer Support Group,Building Repairs & Maintenance,60101778,RGE SERVICES,145.72,09/04/2018
Commercial,Customer Support Group,Building Repairs & Maintenance,60101779,RGE SERVICES,87.29,09/04/2018
Commercial,Customer Support Group,Building Repairs & Maintenance,60101783,RGE SERVICES,117.14,05/04/2018
Commercial,Customer Support Group,Building Repairs & Maintenance,60101786,RGE SERVICES,186.00,09/04/2018
Commercial,Customer Support Group,Building Repairs & Maintenance,60101791,RGE SERVICES,115.43,06/04/2018
Commercial,Customer Support Group,Building Repairs & Maintenance,60101792,RGE SERVICES,62.00,09/04/2018
Commercial,Customer Support Group,Building Repairs & Maintenance,60101798,RGE SERVICES,93.00,09/04/2018
Commercial,Customer Support Group,Building Repairs & Maintenance,60101800,RGE SERVICES,62.00,09/04/2018
Commercial,Customer Support Group,Building Repairs & Maintenance,60101802,RGE SERVICES,457.48,06/04/2018
Commercial,Customer Support Group,Building Repairs & Maintenance,60101805,RGE SERVICES,123.98,06/04/2018
Commercial,Customer Support Group,Building Repairs & Maintenance,60101810,RGE SERVICES,47.03,12/04/2018
Commercial,Customer Support Group,Building Repairs & Maintenance,60102108,RGE SERVICES,128.25,09/04/2018
Commercial,Customer Support Group,Building Repairs & Maintenance,60102114,RGE SERVICES,248.00,09/04/2018
Commercial,Customer Support Group,Building Repairs & Maintenance,60102148,RGE SERVICES,445.37,09/04/2018
Commercial,Customer Support Group,Building Repairs & Maintenance,60102149,RGE SERVICES,62.00,18/04/2018
Commercial,Customer Support Group,Building Repairs & Maintenance,60102672,SECOM PLC,717.86,16/04/2018
Commercial,Customer Support Group,Building Repairs & Maintenance,60098775,TANN SYNCHRONOME LTD,241.94,10/04/2018
Commercial,Customer Support Group,Building Repairs & Maintenance,60101337,THAMES LABORATORIES,90.00,09/04/2018
Commercial,Customer Support Group,Building Repairs & Maintenance,60102151,THAMES LABORATORIES,675.00,10/04/2018
Commercial,Customer Support Group,Building Repairs & Maintenance,60099330,WINTERS RECYCLING LTD,160.00,04/04/2018
Commercial,Customer Support Group,Building Repairs & Maintenance,60102692,WINTERS RECYCLING LTD,160.00,26/04/2018
Commercial,Customer Support Group,Cleaning and domestic material,60099968,CHURCHILL CONTRACT SERVICES,658.45,11/04/2018
Commercial,Customer Support Group,Cleaning and domestic material,60102017,CHURCHILL CONTRACT SERVICES,"1,032.37",30/04/2018
Commercial,Customer Support Group,Cleaning and domestic material,60102024,CHURCHILL CONTRACT SERVICES,"7,329.82",30/04/2018
Commercial,Customer Support Group,Cleaning and domestic material,60102025,CHURCHILL CONTRACT SERVICES,658.45,30/04/2018
Commercial,Customer Support Group,Cleaning and domestic material,60102046,CHURCHILL CONTRACT SERVICES,"1,133.45",30/04/2018
Commercial,Customer Support Group,Cleaning and domestic material,60102071,CHURCHILL CONTRACT SERVICES,"11,562.54",30/04/2018
Commercial,Customer Support Group,Cleaning and domestic material,60102083,CHURCHILL CONTRACT SERVICES,294.16,30/04/2018
Commercial,Customer Support Group,Cleaning and domestic material,60102091,CHURCHILL CONTRACT SERVICES,661.80,30/04/2018
Commercial,Customer Support Group,Cleaning and domestic material,60102221,CHURCHILL CONTRACT SERVICES,159.52,27/04/2018
Commercial,Customer Support Group,Cleaning and domestic material,60102292,HERTFORDSHIRE COUNTY COUNCIL,23.76,11/04/2018
Commercial,Customer Support Group,Cleaning and domestic material,60102297,HERTFORDSHIRE COUNTY COUNCIL,"1,265.65",11/04/2018
Commercial,Customer Support Group,Cleaning and domestic material,60102298,HERTFORDSHIRE COUNTY COUNCIL,"2,523.68",20/04/2018
Commercial,Customer Support Group,Cleaning and domestic material,60102320,HERTFORDSHIRE COUNTY COUNCIL,142.28,11/04/2018
Commercial,Customer Support Group,Cleaning and domestic material,60102337,HERTFORDSHIRE COUNTY COUNCIL,249.70,11/04/2018
Commercial,Customer Support Group,Cleaning and domestic material,60102356,HERTFORDSHIRE COUNTY COUNCIL,210.10,20/04/2018
Commercial,Customer Support Group,Cleaning and domestic material,60102379,HERTFORDSHIRE COUNTY COUNCIL,168.85,11/04/2018
Commercial,Customer Support Group,Cleaning and domestic material,60099934,HERTFORDSHIRE SUPPLIES   COUNTY CO,"2,044.98",19/04/2018
Commercial,Customer Support Group,CSG Services Contract Payment,60100328,CAPITA BUSINESS SERVICES LTD,"34,313.12",10/04/2018
Commercial,Customer Support Group,CSG Services Contract Payment,60100379,CAPITA BUSINESS SERVICES LTD,"18,264.41",10/04/2018
Commercial,Customer Support Group,CSG Services Contract Payment,60101531,CAPITA BUSINESS SERVICES LTD,"10,597.55",05/04/2018
Commercial,Customer Support Group,CSG Services Contract Payment,60101588,CAPITA BUSINESS SERVICES LTD,"18,995.24",09/04/2018
Commercial,Customer Support Group,CSG Services Contract Payment,60101637,CAPITA BUSINESS SERVICES LTD,"75,465.00",05/04/2018
Commercial,Customer Support Group,CSG Services Contract Payment,60101717,CAPITA BUSINESS SERVICES LTD,"25,008.00",10/04/2018
Commercial,Customer Support Group,Electricity,10014038,BRITISH GAS BUSINESS,37.11,16/04/2018
Commercial,Customer Support Group,Electricity,60101504,BRITISH GAS BUSINESS,195.84,09/04/2018
Commercial,Customer Support Group,Electricity,60102558,BRITISH GAS BUSINESS(ELEC),544.20,16/04/2018
Commercial,Customer Support Group,Electricity,60102559,BRITISH GAS BUSINESS(ELEC),737.60,16/04/2018
Commercial,Customer Support Group,Electricity,60102560,BRITISH GAS BUSINESS(ELEC),121.26,16/04/2018
Commercial,Customer Support Group,Electricity,60102563,BRITISH GAS BUSINESS(ELEC),340.07,16/04/2018
Commercial,Customer Support Group,Electricity,60102643,BRITISH GAS BUSINESS(ELEC),"2,381.81",16/04/2018
Commercial,Customer Support Group,Electricity,60102758,BRITISH GAS BUSINESS(ELEC),37.73,17/04/2018
Commercial,Customer Support Group,Electricity,60103350,BRITISH GAS BUSINESS(ELEC),169.47,27/04/2018
Commercial,Customer Support Group,Electricity,60098073,E-ON ENERGY,23.24,17/04/2018
Commercial,Customer Support Group,Electricity,60102746,E-ON ENERGY,29.05,17/04/2018
Commercial,Customer Support Group,Electricity,60097195,KENT COUNTY COUNCIL (KCS),"5,855.69",19/04/2018
Commercial,Customer Support Group,Electricity,60098816,KENT COUNTY COUNCIL (KCS),"1,114.38",10/04/2018
Commercial,Customer Support Group,Electricity,60098826,KENT COUNTY COUNCIL (KCS),325.31,10/04/2018
Commercial,Customer Support Group,Electricity,60100416,KENT COUNTY COUNCIL (KCS),293.89,03/04/2018
Commercial,Customer Support Group,Electricity,60100817,KENT COUNTY COUNCIL (KCS),634.02,04/04/2018
Commercial,Customer Support Group,Electricity,60100861,KENT COUNTY COUNCIL (KCS),"1,367.49",03/04/2018
Commercial,Customer Support Group,Electricity,60101616,KENT COUNTY COUNCIL (KCS),465.71,09/04/2018
Commercial,Customer Support Group,Electricity,60102271,KENT COUNTY COUNCIL (KCS),621.16,10/04/2018
Commercial,Customer Support Group,Electricity,60102281,KENT COUNTY COUNCIL (KCS),661.22,17/04/2018
Commercial,Customer Support Group,Electricity,60100340,MIDDLESEX UNIVERSITY,"17,986.59",16/04/2018
Commercial,Customer Support Group,Electricity,60100344,MIDDLESEX UNIVERSITY,"16,768.81",16/04/2018
Commercial,Customer Support Group,Electricity,60100350,MIDDLESEX UNIVERSITY,"17,930.96",16/04/2018
Commercial,Customer Support Group,Electricity,60100373,MIDDLESEX UNIVERSITY,"8,133.83",10/04/2018
Commercial,Customer Support Group,Electricity,60100385,MIDDLESEX UNIVERSITY,"34,475.78",13/04/2018
Commercial,Customer Support Group,Electricity,60103328,SCOTTISH POWER GROUP,"1,268.38",30/04/2018
Commercial,Customer Support Group,Furniture-Purchase-Repair,60102335,HERTFORDSHIRE COUNTY COUNCIL,36.28,11/04/2018
Commercial,Customer Support Group,Furniture-Purchase-Repair,60100265,LYCO DIRECT LTD,51.59,06/04/2018
Commercial,Customer Support Group,Furniture-Purchase-Repair,60102641,SCREWFIX DIRECT LTD,48.23,19/04/2018
Commercial,Customer Support Group,Furniture-Purchase-Repair,60102976,SCREWFIX DIRECT LTD,45.80,23/04/2018
Commercial,Customer Support Group,Furniture-Purchase-Repair,60101189,WAGSTAFF INTERIORS GROUP,40.00,18/04/2018
Commercial,Customer Support Group,Gas,60025639,KENT COUNTY COUNCIL (KCS),29.30,10/04/2018
Commercial,Customer Support Group,Gas,60098900,KENT COUNTY COUNCIL (KCS),181.64,19/04/2018
Commercial,Customer Support Group,Gas,60100745,KENT COUNTY COUNCIL (KCS),15.76,10/04/2018
Commercial,Customer Support Group,Gas,60100979,KENT COUNTY COUNCIL (KCS),258.90,10/04/2018
Commercial,Customer Support Group,Gas,60101059,KENT COUNTY COUNCIL (KCS),346.18,10/04/2018
Commercial,Customer Support Group,Gas,60102671,KENT COUNTY COUNCIL (KCS),189.51,26/04/2018
Commercial,Customer Support Group,Gas,60102174,TOTAL GAS & POWER LTD,"1,076.16",10/04/2018
Commercial,Customer Support Group,Other Services,60101645,BLUE 9 SECURITY LIMITED,214.88,09/04/2018
Commercial,Customer Support Group,Other Services,60101647,BLUE 9 SECURITY LIMITED,"22,773.84",09/04/2018
Commercial,Customer Support Group,Other Services,60101651,BLUE 9 SECURITY LIMITED,53.72,09/04/2018
Commercial,Customer Support Group,Other Services,60101653,BLUE 9 SECURITY LIMITED,"21,026.04",09/04/2018
Commercial,Customer Support Group,Other Services,60101666,BLUE 9 SECURITY LIMITED,"1,058.00",09/04/2018
Commercial,Customer Support Group,Other Services,60101671,BLUE 9 SECURITY LIMITED,"11,584.08",09/04/2018
Commercial,Customer Support Group,Other Services,60101673,BLUE 9 SECURITY LIMITED,"6,097.64",09/04/2018
Commercial,Customer Support Group,Other Services,60101676,BLUE 9 SECURITY LIMITED,"8,501.22",09/04/2018
Commercial,Customer Support Group,Other Services,60101677,BLUE 9 SECURITY LIMITED,"11,584.08",09/04/2018
Commercial,Customer Support Group,Other Services,60102155,BLUE 9 SECURITY LIMITED,155.70,12/04/2018
Commercial,Customer Support Group,Other Services,60102185,BLUE 9 SECURITY LIMITED,214.88,12/04/2018
Commercial,Customer Support Group,Other Services,60102255,BLUE 9 SECURITY LIMITED,15.57,12/04/2018
Commercial,Customer Support Group,Other Services,60102857,BLUE 9 SECURITY LIMITED,"2,090.06",19/04/2018
Commercial,Customer Support Group,Other Services,60103181,CARTER SECURITY LTD,190.00,24/04/2018
Commercial,Customer Support Group,Other Services,60099900,LEASING PROGRAMMES LIMITED,"1,235.00",04/04/2018
Commercial,Customer Support Group,Other Services,60103296,UNIVERSITY OF WESTMINSTER,899.00,26/04/2018
Commercial,Customer Support Group,Postage,20006066,GREATER LONDON HIRE LIMITED,(59.60),10/04/2018
Commercial,Customer Support Group,Postage,60102157,GREATER LONDON HIRE LIMITED,46.53,10/04/2018
Commercial,Customer Support Group,Postage,60102187,GREATER LONDON HIRE LIMITED,608.33,10/04/2018
Commercial,Customer Support Group,Postage,60102194,GREATER LONDON HIRE LIMITED,255.90,11/04/2018
Commercial,Customer Support Group,Postage,60102239,GREATER LONDON HIRE LIMITED,220.00,10/04/2018
Commercial,Customer Support Group,Postage,60102276,GREATER LONDON HIRE LIMITED,159.02,10/04/2018
Commercial,Customer Support Group,Postage,60102277,GREATER LONDON HIRE LIMITED,111.51,10/04/2018
Commercial,Customer Support Group,Postage,60102488,GREATER LONDON HIRE LIMITED,173.97,13/04/2018
Commercial,Customer Support Group,Postage,60102632,GREATER LONDON HIRE LIMITED,17.20,16/04/2018
Commercial,Customer Support Group,Postage,60102693,GREATER LONDON HIRE LIMITED,94.23,16/04/2018
Commercial,Customer Support Group,Postage,60102699,GREATER LONDON HIRE LIMITED,72.72,16/04/2018
Commercial,Customer Support Group,Postage,60101883,OFF THE WALL MARKETING LTD,"1,102.00",11/04/2018
Commercial,Customer Support Group,Postage,60102658,OFF THE WALL MARKETING LTD,"1,102.00",24/04/2018
Commercial,Customer Support Group,Postage,60102874,PULSTAR DATAPRINT LTD,642.50,19/04/2018
Commercial,Customer Support Group,Postage,60100178,ROYAL MAIL GROUP LIMITED,270.73,10/04/2018
Commercial,Customer Support Group,Postage,60103131,ROYAL MAIL GROUP LIMITED,338.55,25/04/2018
Commercial,Customer Support Group,Printing-Contract,60102202,GREATER LONDON HIRE LIMITED,555.35,10/04/2018
Commercial,Customer Support Group,Professional Services,60099956,EQUITA LTD HIGH COURT ENFORCEMENT,900.00,12/04/2018
Commercial,Customer Support Group,Professional Services,60099959,EQUITA LTD HIGH COURT ENFORCEMENT,792.00,12/04/2018
Commercial,Customer Support Group,Professional Services,60102200,LAZARI INVESTMENTS LTD,"17,754.04",12/04/2018
Commercial,Customer Support Group,Professional Services,60102212,LAZARI INVESTMENTS LTD,94.50,12/04/2018
Commercial,Customer Support Group,Rents,60100351,MIDDLESEX UNIVERSITY,"207,588.20",10/04/2018
Commercial,Customer Support Group,Rents,60101490,MIDDLESEX UNIVERSITY,"207,588.20",12/04/2018
Commercial,Customer Support Group,Rubbish Collection,60102393,G.B.HOLDINGS LTD,25.20,20/04/2018
Commercial,Customer Support Group,Rubbish Collection,60103229,G.B.HOLDINGS LTD,36.40,25/04/2018
Commercial,Customer Support Group,Rubbish Collection,60102586,PEARCE RECYCLING CO. LTD,151.50,27/04/2018
Commercial,Customer Support Group,Rubbish Collection,60102608,PEARCE RECYCLING CO. LTD,147.50,27/04/2018
Commercial,Customer Support Group,Rubbish Collection,60102622,PEARCE RECYCLING CO. LTD,106.00,27/04/2018
Commercial,Customer Support Group,Rubbish Collection,60102900,PEARCE RECYCLING CO. LTD,25.00,20/04/2018
Commercial,Customer Support Group,Rubbish Collection,60102913,PEARCE RECYCLING CO. LTD,25.00,20/04/2018
Commercial,Customer Support Group,Rubbish Collection,60102914,PEARCE RECYCLING CO. LTD,25.00,20/04/2018
Commercial,Customer Support Group,Rubbish Collection,60102840,PREMIER SHREDDING,54.00,19/04/2018
Commercial,Customer Support Group,Rubbish Collection,60103032,PREMIER SHREDDING,83.00,23/04/2018
Commercial,Customer Support Group,Rubbish Collection,60103057,PREMIER SHREDDING,51.00,23/04/2018
Commercial,Customer Support Group,Software Licences & Support,60102051,RM EDUCATION PLC,"13,815.00",30/04/2018
Commercial,Customer Support Group,Ttl IT & Comms,60099219,BRITISH TELECOM PLC,55.89,06/04/2018
Commercial,Customer Support Group,Ttl IT & Comms,60100051,TELEFONICA UK LTD,(14.74),09/04/2018
Commercial,Customer Support Group,Ttl IT & Comms,60101856,TELEFONICA UK LTD,60.00,09/04/2018
Commercial,Customer Support Group,Ttl IT & Comms,60101871,TELEFONICA UK LTD,50.00,09/04/2018
Commercial,Customer Support Group,Ttl IT & Comms,60102279,TELEFONICA UK LTD,(358.25),25/04/2018
Commercial,Customer Support Group,Ttl IT & Comms,60102280,TELEFONICA UK LTD,"3,423.65",10/04/2018
Commercial,Customer Support Group,Ttl IT & Comms,60102483,VODAFONE LTD (BILLS ONLY),417.51,13/04/2018
Commercial,Customer Support Group,Water Services,60101577,AFFINITY WATER LIMITED,549.16,13/04/2018
Commercial,Customer Support Group,Water Services,60101604,AFFINITY WATER LIMITED,147.38,09/04/2018
Commercial,Customer Support Group,Water Services,60102371,AFFINITY WATER LIMITED,44.70,11/04/2018
Commercial,Customer Support Group,Water Services,60103076,AFFINITY WATER LIMITED,3.99,24/04/2018
Commercial,Customer Support Group,Water Services,60102450,ANGEL SPRINGS LTD,161.60,27/04/2018
Commercial,Customer Support Group,Water Services,60102456,ANGEL SPRINGS LTD,96.00,27/04/2018
Commercial,Customer Support Group,Water Services,60102505,ANGEL SPRINGS LTD,9.00,27/04/2018
Commercial,Customer Support Group,Water Services,60102515,ANGEL SPRINGS LTD,17.05,27/04/2018
Commercial,Customer Support Group,Water Services,60102561,ANGEL SPRINGS LTD,30.16,27/04/2018
Commercial,Customer Support Group,Water Services,60102662,ANGEL SPRINGS LTD,17.05,16/04/2018
Commercial,Customer Support Group,Water Services,60098815,CASTLE WATER LTD,704.13,19/04/2018
Commercial,Customer Support Group,Water Services,60098877,CASTLE WATER LTD,170.96,19/04/2018
Commercial,Customer Support Group,Water Services,60100333,MIDDLESEX UNIVERSITY,"4,245.55",10/04/2018
Commercial,HB LAW,Legal Disbursements,60099915,LONDON BOROUGH OF HARROW,"190,066.33",30/04/2018
Commercial,Housing Needs Resources,Other Services,10014024,THE BARNETGROUP LIMITED,"278,222.92",04/04/2018
Commercial,Housing Needs Resources,Other Services,60102899,THE BARNETGROUP LIMITED,"278,222.92",20/04/2018
Commercial,Housing Needs Resources,Private Contractors - Third Pa,10014025,THE BARNETGROUP LIMITED,"2,280,000.00",04/04/2018
Commercial,Housing Needs Resources,Private Contractors - Third Pa,60102895,THE BARNETGROUP LIMITED,"2,280,000.00",20/04/2018
Commercial,Housing Needs Resources,Professional Services,60103199,THE BARNETGROUP LIMITED,"933,423.67",26/04/2018
Commercial,HRA,Building Repairs & Maintenance,10014028,THE BARNETGROUP LIMITED,"629,166.67",04/04/2018
Commercial,HRA,Building Repairs & Maintenance,60102916,THE BARNETGROUP LIMITED,"629,166.67",20/04/2018
Commercial,HRA,Consultants Fees,60103007,ALLIES AND MORRRISON,"57,000.00",23/04/2018
Commercial,HRA,Consultants Fees,60103232,MANCHESTER CITY COUNCIL,"1,200.00",24/04/2018
Commercial,HRA,Consultants Fees,60100382,P P C R ASSOCIATES LTD,564.02,03/04/2018
Commercial,HRA,Consultants Fees,60100712,P P C R ASSOCIATES LTD,432.68,20/04/2018
Commercial,HRA,Consultants Fees,60102888,P P C R ASSOCIATES LTD,498.35,20/04/2018
Commercial,HRA,Consultants Fees,60102904,P P C R ASSOCIATES LTD,367.01,20/04/2018
Commercial,HRA,Consultants Fees,60100014,PRIORITY ESTATES PROJECT LTD,"1,955.80",18/04/2018
Commercial,HRA,Consultants Fees,60101579,TROWERS & HAMLINS,60.00,23/04/2018
Commercial,HRA,Consultants Fees,60102908,TROWERS & HAMLINS,203.00,20/04/2018
Commercial,HRA,Other Services,10014026,THE BARNETGROUP LIMITED,"953,444.00",04/04/2018
Commercial,HRA,Other Services,10014027,THE BARNETGROUP LIMITED,"470,140.42",04/04/2018
Commercial,HRA,Other Services,60102907,THE BARNETGROUP LIMITED,"953,444.00",20/04/2018
Commercial,HRA,Other Services,60102909,THE BARNETGROUP LIMITED,"470,140.42",20/04/2018
Commercial,HRA,Private Contractors - Third Pa,80016530,REDACTED - PERSONAL DATA,360.00,05/04/2018
Commercial,HRA,Private Contractors - Third Pa,80016875,REDACTED - PERSONAL DATA,"3,500.00",20/04/2018
Commercial,HRA,Private Contractors - Third Pa,80017026,REDACTED - PERSONAL DATA,"3,500.00",24/04/2018
Commercial,Parking & Infrastructure,Equipment and Materials Purcha,60101729,COMPASS MINERALS,"1,270.98",05/04/2018
Commercial,Parking & Infrastructure,Equipment and Materials Purcha,60101742,COMPASS MINERALS,"1,249.53",12/04/2018
Commercial,Parking & Infrastructure,Equipment and Materials Purcha,60099912,GREENHAM TRADING LIMITED,523.76,04/04/2018
Commercial,Parking & Infrastructure,Equipment and Materials Purcha,60100183,GREENHAM TRADING LIMITED,246.00,05/04/2018
Commercial,Parking & Infrastructure,Equipment and Materials Purcha,60100244,GREENHAM TRADING LIMITED,29.24,05/04/2018
Commercial,Parking & Infrastructure,Equipment and Materials Purcha,60100829,GREENHAM TRADING LIMITED,258.00,12/04/2018
Commercial,Parking & Infrastructure,Equipment and Materials Purcha,60101343,GREENHAM TRADING LIMITED,93.40,19/04/2018
Commercial,Parking & Infrastructure,Equipment and Materials Purcha,60101448,GREENHAM TRADING LIMITED,127.50,19/04/2018
Commercial,Parking & Infrastructure,Equipment and Materials Purcha,60099836,LAFARGE TARMAC TRADING LIMITED,482.51,11/04/2018
Commercial,Parking & Infrastructure,Equipment and Materials Purcha,60100284,LAFARGE TARMAC TRADING LIMITED,119.60,05/04/2018
Commercial,Parking & Infrastructure,Equipment and Materials Purcha,60100483,LAFARGE TARMAC TRADING LIMITED,136.09,11/04/2018
Commercial,Parking & Infrastructure,Equipment and Materials Purcha,60100800,LAFARGE TARMAC TRADING LIMITED,98.98,12/04/2018
Commercial,Parking & Infrastructure,Equipment and Materials Purcha,60100803,LAFARGE TARMAC TRADING LIMITED,187.64,10/04/2018
Commercial,Parking & Infrastructure,Equipment and Materials Purcha,60101650,LAFARGE TARMAC TRADING LIMITED,70.11,19/04/2018
Commercial,Parking & Infrastructure,Equipment and Materials Purcha,60101901,LAFARGE TARMAC TRADING LIMITED,129.91,24/04/2018
Commercial,Parking & Infrastructure,Equipment and Materials Purcha,60102080,LAFARGE TARMAC TRADING LIMITED,103.10,26/04/2018
Commercial,Parking & Infrastructure,Equipment and Materials Purcha,60102140,TRUEFORM,100.00,27/04/2018
Commercial,Parking & Infrastructure,Equipment and Materials Purcha,60098771,W. FAYERS & SONS,117.90,10/04/2018
Commercial,Parking & Infrastructure,Equipment and Materials Purcha,60100298,W. FAYERS & SONS,649.60,06/04/2018
Commercial,Parking & Infrastructure,Equipment and Materials Repair,60102749,RM COUNTRYSIDE SERVICES LTD,378.00,25/04/2018
Commercial,Parking & Infrastructure,Fees and Charges,60102130,REDCORN LTD,285.00,23/04/2018
Commercial,Parking & Infrastructure,Fees and Charges,60102137,REDCORN LTD,380.00,17/04/2018
Commercial,Parking & Infrastructure,Other Services,60101788,BARNET LIGHTING SERVICES LTD,"530,900.95",05/04/2018
Commercial,Parking & Infrastructure,Other Services,60101785,NSL LTD,"2,325.90",05/04/2018
Commercial,Parking & Infrastructure,Other Services,60103195,NSL LTD,"2,490.00",26/04/2018
Commercial,Parking & Infrastructure,Printing-Contract,40002719,OFFICE DEPOT UK LTD,32.80,19/04/2018
Commercial,Parking & Infrastructure,Software Licences & Support,60103318,NCC SERVICES LTD,785.00,26/04/2018
Commercial,Parking & Infrastructure,Software Licences & Support,60101272,NSL LTD,"34,261.92",04/04/2018
Commercial,Parking & Infrastructure,Software Licences & Support,60101815,NSL LTD,"7,173.79",06/04/2018
Commercial,Parking & Infrastructure,Stationery,40002797,OFFICE DEPOT UK LTD,54.64,19/04/2018
Commercial,Public Health,Other Transfer Payments to Soc,60096742,CENTRAL LONDONCOMMUNITY HEALTHCARE,"356,000.00",17/04/2018
Commercial,Public Health,Other Transfer Payments to Soc,60099393,CENTRAL LONDONCOMMUNITY HEALTHCARE,"29,167.00",12/04/2018
Commercial,Public Health,Professional Services,60096773,CENTRAL LONDONCOMMUNITY HEALTHCARE,"9,583.00",17/04/2018
Commercial,Public Health,Professional Services,60096785,CENTRAL LONDONCOMMUNITY HEALTHCARE,"85,834.00",17/04/2018
Commercial,Public Health,Professional Services,60096803,CENTRAL LONDONCOMMUNITY HEALTHCARE,"4,917.00",17/04/2018
Commercial,Regional Enterprise,Advertising,60101203,TMP (UK) LTD,170.00,10/04/2018
Commercial,Regional Enterprise,Advertising,60101223,TMP (UK) LTD,170.00,10/04/2018
Commercial,Regional Enterprise,Advertising,60101457,TMP (UK) LTD,471.00,04/04/2018
Commercial,Regional Enterprise,Advertising,60102052,TMP (UK) LTD,583.50,10/04/2018
Commercial,Regional Enterprise,Capital Construction and Works,60101254,CONWAY AECOM LTD,"4,721.56",19/04/2018
Commercial,Regional Enterprise,Capital Construction and Works,60101293,CONWAY AECOM LTD,"1,288.13",19/04/2018
Commercial,Regional Enterprise,Capital Construction and Works,60101418,CONWAY AECOM LTD,"24,729.00",12/04/2018
Commercial,Regional Enterprise,Capital Construction and Works,60099825,GEOGRAPHERS A-Z MAP COMPANY LTD,948.00,04/04/2018
Commercial,Regional Enterprise,Cleaning and domestic material,60102033,CHURCHILL CONTRACT SERVICES,488.56,30/04/2018
Commercial,Regional Enterprise,Consultants Fees,60100958,EVERSHEDS LLP,"56,191.30",11/04/2018
Commercial,Regional Enterprise,Consultants Fees,60100341,GOWLING WLG,857.81,10/04/2018
Commercial,Regional Enterprise,Consultants Fees,60102296,GOWLING WLG,360.00,11/04/2018
Commercial,Regional Enterprise,Consultants Fees,60102326,GOWLING WLG,"1,339.49",11/04/2018
Commercial,Regional Enterprise,Consultants Fees,60102339,GOWLING WLG,"1,328.11",11/04/2018
Commercial,Regional Enterprise,Consultants Fees,60102373,GOWLING WLG,"3,763.26",11/04/2018
Commercial,Regional Enterprise,Consultants Fees,60102382,GOWLING WLG,"1,558.00",11/04/2018
Commercial,Regional Enterprise,Consultants Fees,60103202,GOWLING WLG,"3,755.80",25/04/2018
Commercial,Regional Enterprise,Consultants Fees,60103226,GOWLING WLG,"2,490.90",25/04/2018
Commercial,Regional Enterprise,Consultants Fees,60103228,GOWLING WLG,"7,370.40",25/04/2018
Commercial,Regional Enterprise,Consultants Fees,60103235,GOWLING WLG,"1,278.43",25/04/2018
Commercial,Regional Enterprise,Consultants Fees,60100770,NETWORK RAIL INFRASTRUCTURE LTD,"585,568.41",24/04/2018
Commercial,Regional Enterprise,Consultants Fees,60102010,SAPIENS CONSULTANCY,460.00,17/04/2018
Commercial,Regional Enterprise,Consultants Fees,60100212,THE BARNETGROUP LIMITED,299.50,10/04/2018
Commercial,Regional Enterprise,Consultants Fees,60103324,WSP UK LIMITED,"1,912.50",27/04/2018
Commercial,Regional Enterprise,Equipment and Materials Purcha,60102159,BOUYGUES E&S INFRASTRUCTURE UK LTD,"1,714.28",10/04/2018
Commercial,Regional Enterprise,Equipment and Materials Purcha,60102183,BOUYGUES E&S INFRASTRUCTURE UK LTD,"5,396.60",10/04/2018
Commercial,Regional Enterprise,Equipment and Materials Purcha,60102266,CONWAY AECOM LTD,394.25,12/04/2018
Commercial,Regional Enterprise,Equipment and Materials Purcha,60102482,CONWAY AECOM LTD,"7,103.53",19/04/2018
Commercial,Regional Enterprise,Equipment and Materials Purcha,60102241,SUN HILL SURVEYS,900.00,10/04/2018
Commercial,Regional Enterprise,Grant Payments,80016724,ABBEY BUILDERS LTD,"6,103.68",11/04/2018
Commercial,Regional Enterprise,Grant Payments,80016857,AMWELL CONSTRUCTION LTD,"5,770.00",17/04/2018
Commercial,Regional Enterprise,Grant Payments,80016866,AMWELL CONSTRUCTION LTD,"6,070.00",18/04/2018
Commercial,Regional Enterprise,Grant Payments,80016720,ARTHUR J. FERRYMAN ASSOCIATES,890.16,09/04/2018
Commercial,Regional Enterprise,Grant Payments,80016747,ARTHUR J. FERRYMAN ASSOCIATES,612.00,11/04/2018
Commercial,Regional Enterprise,Grant Payments,80016676,DOLPHIN MOBILITY LTD.,"3,395.00",11/04/2018
Commercial,Regional Enterprise,Grant Payments,80016766,DOLPHIN MOBILITY LTD.,"3,355.00",17/04/2018
Commercial,Regional Enterprise,Grant Payments,80016858,DOMESTIC LIFT SERVICES,"5,755.00",17/04/2018
Commercial,Regional Enterprise,Grant Payments,80016684,DOMESTIC LIFT SERVICES LTD,"4,722.59",11/04/2018
Commercial,Regional Enterprise,Grant Payments,80016695,DP BUILDERS DISABLED ADAPTATIONS,"5,051.00",12/04/2018
Commercial,Regional Enterprise,Grant Payments,80016726,DP BUILDERS DISABLED ADAPTATIONS,"5,100.00",12/04/2018
Commercial,Regional Enterprise,Grant Payments,80016790,DP BUILDERS DISABLED ADAPTATIONS,"11,139.00",19/04/2018
Commercial,Regional Enterprise,Grant Payments,80016976,DP BUILDERS DISABLED ADAPTATIONS,"5,616.00",26/04/2018
Commercial,Regional Enterprise,Grant Payments,80016983,DP BUILDERS DISABLED ADAPTATIONS,"1,024.00",26/04/2018
Commercial,Regional Enterprise,Grant Payments,80016986,DP BUILDERS DISABLED ADAPTATIONS,"11,378.00",26/04/2018
Commercial,Regional Enterprise,Grant Payments,80017016,DP BUILDERS DISABLED ADAPTATIONS,"8,013.60",27/04/2018
Commercial,Regional Enterprise,Grant Payments,80016666,ECOLOGIC ENERGY,446.25,11/04/2018
Commercial,Regional Enterprise,Grant Payments,80016872,H D PROPERTY SERVICES LTD,"18,821.83",23/04/2018
Commercial,Regional Enterprise,Grant Payments,80016886,H D PROPERTY SERVICES LTD,"5,373.79",23/04/2018
Commercial,Regional Enterprise,Grant Payments,80016970,H D PROPERTY SERVICES LTD,"4,461.00",23/04/2018
Commercial,Regional Enterprise,Grant Payments,80016885,NETWORK STADIUM,"1,228.08",23/04/2018
Commercial,Regional Enterprise,Grant Payments,80016721,REDACTED - PERSONAL DATA,"7,148.00",09/04/2018
Commercial,Regional Enterprise,Grant Payments,80016793,REDACTED - PERSONAL DATA,"5,403.00",17/04/2018
Commercial,Regional Enterprise,Grant Payments,80017034,REDACTED - PERSONAL DATA,"5,805.00",25/04/2018
Commercial,Regional Enterprise,Grant Payments,80016432,SCOOTER STORE,"2,265.00",19/04/2018
Commercial,Regional Enterprise,Grant Payments,80016702,SOUTH HERTFORDSHIRE,"5,101.00",11/04/2018
Commercial,Regional Enterprise,Grant Payments,80016682,STANNAH STAIRLIFTS LTD,"2,775.00",11/04/2018
Commercial,Regional Enterprise,Grant Payments,80016860,WSW PROJECTS LTD,"4,078.80",18/04/2018
Commercial,Regional Enterprise,Legal and Court Fees,80016496,REDACTED - PERSONAL DATA,"4,000.00",03/04/2018
Commercial,Regional Enterprise,Other Establishments - Third P,80016739,TRANSPORT FOR LONDON,"154,524.52",10/04/2018
Commercial,Regional Enterprise,Other Services,60094310,ARCHER ACADEMY,400.00,20/04/2018
Commercial,Regional Enterprise,Other Services,60096999,ASHMOLE ACADEMY,900.00,20/04/2018
Commercial,Regional Enterprise,Other Services,60102210,BOUYGUES E&S INFRASTRUCTURE UK LTD,"2,116.90",10/04/2018
Commercial,Regional Enterprise,Other Services,60102215,BOUYGUES E&S INFRASTRUCTURE UK LTD,"1,898.98",10/04/2018
Commercial,Regional Enterprise,Other Services,60102252,BOUYGUES E&S INFRASTRUCTURE UK LTD,500.00,10/04/2018
Commercial,Regional Enterprise,Other Services,60094346,BROADFIELDS ACADEMY,"1,600.00",20/04/2018
Commercial,Regional Enterprise,Other Services,60101388,CENTRAL SURVEYS LIMITED,"10,210.00",19/04/2018
Commercial,Regional Enterprise,Other Services,60097394,CONWAY AECOM LTD,45.86,23/04/2018
Commercial,Regional Enterprise,Other Services,60099131,CONWAY AECOM LTD,819.00,19/04/2018
Commercial,Regional Enterprise,Other Services,60099161,CONWAY AECOM LTD,756.00,19/04/2018
Commercial,Regional Enterprise,Other Services,60100533,CONWAY AECOM LTD,"3,379.98",03/04/2018
Commercial,Regional Enterprise,Other Services,60100666,CONWAY AECOM LTD,"37,845.80",03/04/2018
Commercial,Regional Enterprise,Other Services,60100905,CONWAY AECOM LTD,"1,200.00",05/04/2018
Commercial,Regional Enterprise,Other Services,60100920,CONWAY AECOM LTD,43.70,05/04/2018
Commercial,Regional Enterprise,Other Services,60101073,CONWAY AECOM LTD,58.41,10/04/2018
Commercial,Regional Enterprise,Other Services,60101253,CONWAY AECOM LTD,"32,448.00",12/04/2018
Commercial,Regional Enterprise,Other Services,60101285,CONWAY AECOM LTD,"26,737.60",12/04/2018
Commercial,Regional Enterprise,Other Services,60101288,CONWAY AECOM LTD,"52,000.00",12/04/2018
Commercial,Regional Enterprise,Other Services,60101315,CONWAY AECOM LTD,"26,769.60",19/04/2018
Commercial,Regional Enterprise,Other Services,60101319,CONWAY AECOM LTD,"19,424.31",12/04/2018
Commercial,Regional Enterprise,Other Services,60101321,CONWAY AECOM LTD,"20,439.53",12/04/2018
Commercial,Regional Enterprise,Other Services,60101353,CONWAY AECOM LTD,"17,722.45",05/04/2018
Commercial,Regional Enterprise,Other Services,60101356,CONWAY AECOM LTD,"6,863.03",05/04/2018
Commercial,Regional Enterprise,Other Services,60101363,CONWAY AECOM LTD,"23,080.40",12/04/2018
Commercial,Regional Enterprise,Other Services,60101379,CONWAY AECOM LTD,"3,297.20",12/04/2018
Commercial,Regional Enterprise,Other Services,60101424,CONWAY AECOM LTD,"7,400.00",12/04/2018
Commercial,Regional Enterprise,Other Services,60101425,CONWAY AECOM LTD,"59,212.80",12/04/2018
Commercial,Regional Enterprise,Other Services,60101441,CONWAY AECOM LTD,"31,910.40",12/04/2018
Commercial,Regional Enterprise,Other Services,60101445,CONWAY AECOM LTD,"21,165.24",12/04/2018
Commercial,Regional Enterprise,Other Services,60101454,CONWAY AECOM LTD,"7,300.74",05/04/2018
Commercial,Regional Enterprise,Other Services,60101459,CONWAY AECOM LTD,"18,958.90",12/04/2018
Commercial,Regional Enterprise,Other Services,60101475,CONWAY AECOM LTD,"32,972.00",12/04/2018
Commercial,Regional Enterprise,Other Services,60101482,CONWAY AECOM LTD,"1,648.60",12/04/2018
Commercial,Regional Enterprise,Other Services,60102152,CONWAY AECOM LTD,"17,202.20",12/04/2018
Commercial,Regional Enterprise,Other Services,60102153,CONWAY AECOM LTD,"2,809.04",11/04/2018
Commercial,Regional Enterprise,Other Services,60102158,CONWAY AECOM LTD,221.87,11/04/2018
Commercial,Regional Enterprise,Other Services,60102165,CONWAY AECOM LTD,321.29,11/04/2018
Commercial,Regional Enterprise,Other Services,60102167,CONWAY AECOM LTD,85.93,19/04/2018
Commercial,Regional Enterprise,Other Services,60102171,CONWAY AECOM LTD,601.01,11/04/2018
Commercial,Regional Enterprise,Other Services,60102172,CONWAY AECOM LTD,"2,216.98",11/04/2018
Commercial,Regional Enterprise,Other Services,60102175,CONWAY AECOM LTD,"4,441.56",10/04/2018
Commercial,Regional Enterprise,Other Services,60102179,CONWAY AECOM LTD,256.04,11/04/2018
Commercial,Regional Enterprise,Other Services,60102180,CONWAY AECOM LTD,217.31,11/04/2018
Commercial,Regional Enterprise,Other Services,60102184,CONWAY AECOM LTD,120.79,11/04/2018
Commercial,Regional Enterprise,Other Services,60102188,CONWAY AECOM LTD,"44,228.50",11/04/2018
Commercial,Regional Enterprise,Other Services,60102201,CONWAY AECOM LTD,319.97,11/04/2018
Commercial,Regional Enterprise,Other Services,60102203,CONWAY AECOM LTD,757.54,11/04/2018
Commercial,Regional Enterprise,Other Services,60102207,CONWAY AECOM LTD,"17,892.56",11/04/2018
Commercial,Regional Enterprise,Other Services,60102211,CONWAY AECOM LTD,243.07,11/04/2018
Commercial,Regional Enterprise,Other Services,60102217,CONWAY AECOM LTD,"2,100.00",12/04/2018
Commercial,Regional Enterprise,Other Services,60102218,CONWAY AECOM LTD,683.52,12/04/2018
Commercial,Regional Enterprise,Other Services,60102219,CONWAY AECOM LTD,13.57,19/04/2018
Commercial,Regional Enterprise,Other Services,60102225,CONWAY AECOM LTD,734.65,10/04/2018
Commercial,Regional Enterprise,Other Services,60102226,CONWAY AECOM LTD,"5,038.09",10/04/2018
Commercial,Regional Enterprise,Other Services,60102228,CONWAY AECOM LTD,"4,648.60",10/04/2018
Commercial,Regional Enterprise,Other Services,60102234,CONWAY AECOM LTD,"17,310.57",10/04/2018
Commercial,Regional Enterprise,Other Services,60102235,CONWAY AECOM LTD,"43,334.71",17/04/2018
Commercial,Regional Enterprise,Other Services,60102238,CONWAY AECOM LTD,196.96,10/04/2018
Commercial,Regional Enterprise,Other Services,60102244,CONWAY AECOM LTD,"2,265.37",10/04/2018
Commercial,Regional Enterprise,Other Services,60102246,CONWAY AECOM LTD,"57,124.67",10/04/2018
Commercial,Regional Enterprise,Other Services,60102247,CONWAY AECOM LTD,817.24,12/04/2018
Commercial,Regional Enterprise,Other Services,60102248,CONWAY AECOM LTD,"16,862.12",10/04/2018
Commercial,Regional Enterprise,Other Services,60102249,CONWAY AECOM LTD,519.83,10/04/2018
Commercial,Regional Enterprise,Other Services,60102251,CONWAY AECOM LTD,"16,190.41",10/04/2018
Commercial,Regional Enterprise,Other Services,60102254,CONWAY AECOM LTD,58.12,19/04/2018
Commercial,Regional Enterprise,Other Services,60102257,CONWAY AECOM LTD,23.93,10/04/2018
Commercial,Regional Enterprise,Other Services,60102261,CONWAY AECOM LTD,"2,104.27",10/04/2018
Commercial,Regional Enterprise,Other Services,60102265,CONWAY AECOM LTD,"2,861.43",10/04/2018
Commercial,Regional Enterprise,Other Services,60102269,CONWAY AECOM LTD,254.65,10/04/2018
Commercial,Regional Enterprise,Other Services,60102270,CONWAY AECOM LTD,155.26,10/04/2018
Commercial,Regional Enterprise,Other Services,60102278,CONWAY AECOM LTD,"5,656.10",10/04/2018
Commercial,Regional Enterprise,Other Services,60102282,CONWAY AECOM LTD,"30,000.00",19/04/2018
Commercial,Regional Enterprise,Other Services,60102430,CONWAY AECOM LTD,59.63,13/04/2018
Commercial,Regional Enterprise,Other Services,60102431,CONWAY AECOM LTD,59.63,13/04/2018
Commercial,Regional Enterprise,Other Services,60102432,CONWAY AECOM LTD,32.37,13/04/2018
Commercial,Regional Enterprise,Other Services,60102434,CONWAY AECOM LTD,119.26,13/04/2018
Commercial,Regional Enterprise,Other Services,60102435,CONWAY AECOM LTD,75.94,13/04/2018
Commercial,Regional Enterprise,Other Services,60102436,CONWAY AECOM LTD,67.74,13/04/2018
Commercial,Regional Enterprise,Other Services,60102437,CONWAY AECOM LTD,59.63,13/04/2018
Commercial,Regional Enterprise,Other Services,60102438,CONWAY AECOM LTD,293.85,16/04/2018
Commercial,Regional Enterprise,Other Services,60102440,CONWAY AECOM LTD,61.52,13/04/2018
Commercial,Regional Enterprise,Other Services,60102441,CONWAY AECOM LTD,54.93,13/04/2018
Commercial,Regional Enterprise,Other Services,60102443,CONWAY AECOM LTD,233.66,13/04/2018
Commercial,Regional Enterprise,Other Services,60102444,CONWAY AECOM LTD,59.63,13/04/2018
Commercial,Regional Enterprise,Other Services,60102445,CONWAY AECOM LTD,"4,281.24",13/04/2018
Commercial,Regional Enterprise,Other Services,60102446,CONWAY AECOM LTD,69.71,13/04/2018
Commercial,Regional Enterprise,Other Services,60102447,CONWAY AECOM LTD,59.63,13/04/2018
Commercial,Regional Enterprise,Other Services,60102449,CONWAY AECOM LTD,61.52,13/04/2018
Commercial,Regional Enterprise,Other Services,60102451,CONWAY AECOM LTD,59.63,13/04/2018
Commercial,Regional Enterprise,Other Services,60102455,CONWAY AECOM LTD,67.74,16/04/2018
Commercial,Regional Enterprise,Other Services,60102459,CONWAY AECOM LTD,59.63,13/04/2018
Commercial,Regional Enterprise,Other Services,60102460,CONWAY AECOM LTD,59.63,13/04/2018
Commercial,Regional Enterprise,Other Services,60102461,CONWAY AECOM LTD,67.74,13/04/2018
Commercial,Regional Enterprise,Other Services,60102463,CONWAY AECOM LTD,91.74,13/04/2018
Commercial,Regional Enterprise,Other Services,60102464,CONWAY AECOM LTD,59.63,13/04/2018
Commercial,Regional Enterprise,Other Services,60102465,CONWAY AECOM LTD,403.88,13/04/2018
Commercial,Regional Enterprise,Other Services,60102466,CONWAY AECOM LTD,58.41,13/04/2018
Commercial,Regional Enterprise,Other Services,60102467,CONWAY AECOM LTD,59.63,13/04/2018
Commercial,Regional Enterprise,Other Services,60102468,CONWAY AECOM LTD,121.87,13/04/2018
Commercial,Regional Enterprise,Other Services,60102470,CONWAY AECOM LTD,59.63,13/04/2018
Commercial,Regional Enterprise,Other Services,60102471,CONWAY AECOM LTD,119.26,13/04/2018
Commercial,Regional Enterprise,Other Services,60102473,CONWAY AECOM LTD,59.63,13/04/2018
Commercial,Regional Enterprise,Other Services,60102474,CONWAY AECOM LTD,59.63,13/04/2018
Commercial,Regional Enterprise,Other Services,60102475,CONWAY AECOM LTD,49.64,13/04/2018
Commercial,Regional Enterprise,Other Services,60102476,CONWAY AECOM LTD,59.63,13/04/2018
Commercial,Regional Enterprise,Other Services,60102477,CONWAY AECOM LTD,279.30,16/04/2018
Commercial,Regional Enterprise,Other Services,60102478,CONWAY AECOM LTD,167.76,16/04/2018
Commercial,Regional Enterprise,Other Services,60102479,CONWAY AECOM LTD,"9,854.54",16/04/2018
Commercial,Regional Enterprise,Other Services,60102480,CONWAY AECOM LTD,162.79,13/04/2018
Commercial,Regional Enterprise,Other Services,60102481,CONWAY AECOM LTD,29.29,13/04/2018
Commercial,Regional Enterprise,Other Services,60102486,CONWAY AECOM LTD,"2,367.84",19/04/2018
Commercial,Regional Enterprise,Other Services,60102487,CONWAY AECOM LTD,59.63,13/04/2018
Commercial,Regional Enterprise,Other Services,60102491,CONWAY AECOM LTD,59.63,13/04/2018
Commercial,Regional Enterprise,Other Services,60102492,CONWAY AECOM LTD,66.49,13/04/2018
Commercial,Regional Enterprise,Other Services,60102493,CONWAY AECOM LTD,59.63,13/04/2018
Commercial,Regional Enterprise,Other Services,60102494,CONWAY AECOM LTD,61.52,13/04/2018
Commercial,Regional Enterprise,Other Services,60102495,CONWAY AECOM LTD,59.63,13/04/2018
Commercial,Regional Enterprise,Other Services,60102496,CONWAY AECOM LTD,318.38,13/04/2018
Commercial,Regional Enterprise,Other Services,60102497,CONWAY AECOM LTD,434.18,16/04/2018
Commercial,Regional Enterprise,Other Services,60102498,CONWAY AECOM LTD,59.63,13/04/2018
Commercial,Regional Enterprise,Other Services,60102501,CONWAY AECOM LTD,59.63,13/04/2018
Commercial,Regional Enterprise,Other Services,60102502,CONWAY AECOM LTD,22.94,13/04/2018
Commercial,Regional Enterprise,Other Services,60102503,CONWAY AECOM LTD,59.63,13/04/2018
Commercial,Regional Enterprise,Other Services,60102504,CONWAY AECOM LTD,91.74,13/04/2018
Commercial,Regional Enterprise,Other Services,60102506,CONWAY AECOM LTD,59.63,13/04/2018
Commercial,Regional Enterprise,Other Services,60102508,CONWAY AECOM LTD,59.63,13/04/2018
Commercial,Regional Enterprise,Other Services,60102509,CONWAY AECOM LTD,59.63,13/04/2018
Commercial,Regional Enterprise,Other Services,60102510,CONWAY AECOM LTD,574.13,16/04/2018
Commercial,Regional Enterprise,Other Services,60102513,CONWAY AECOM LTD,124.74,13/04/2018
Commercial,Regional Enterprise,Other Services,60102514,CONWAY AECOM LTD,59.63,13/04/2018
Commercial,Regional Enterprise,Other Services,60102516,CONWAY AECOM LTD,49.97,19/04/2018
Commercial,Regional Enterprise,Other Services,60102517,CONWAY AECOM LTD,59.63,13/04/2018
Commercial,Regional Enterprise,Other Services,60102519,CONWAY AECOM LTD,59.63,13/04/2018
Commercial,Regional Enterprise,Other Services,60102520,CONWAY AECOM LTD,276.74,13/04/2018
Commercial,Regional Enterprise,Other Services,60102521,CONWAY AECOM LTD,24.15,13/04/2018
Commercial,Regional Enterprise,Other Services,60102522,CONWAY AECOM LTD,59.63,13/04/2018
Commercial,Regional Enterprise,Other Services,60102524,CONWAY AECOM LTD,371.28,13/04/2018
Commercial,Regional Enterprise,Other Services,60102525,CONWAY AECOM LTD,59.63,13/04/2018
Commercial,Regional Enterprise,Other Services,60102526,CONWAY AECOM LTD,119.26,13/04/2018
Commercial,Regional Enterprise,Other Services,60102529,CONWAY AECOM LTD,59.63,13/04/2018
Commercial,Regional Enterprise,Other Services,60102530,CONWAY AECOM LTD,178.87,13/04/2018
Commercial,Regional Enterprise,Other Services,60102535,CONWAY AECOM LTD,151.88,13/04/2018
Commercial,Regional Enterprise,Other Services,60102536,CONWAY AECOM LTD,151.88,13/04/2018
Commercial,Regional Enterprise,Other Services,60102537,CONWAY AECOM LTD,91.74,13/04/2018
Commercial,Regional Enterprise,Other Services,60102538,CONWAY AECOM LTD,95.36,13/04/2018
Commercial,Regional Enterprise,Other Services,60102542,CONWAY AECOM LTD,119.26,13/04/2018
Commercial,Regional Enterprise,Other Services,60102543,CONWAY AECOM LTD,904.67,13/04/2018
Commercial,Regional Enterprise,Other Services,60102544,CONWAY AECOM LTD,59.63,13/04/2018
Commercial,Regional Enterprise,Other Services,60102545,CONWAY AECOM LTD,"1,325.85",13/04/2018
Commercial,Regional Enterprise,Other Services,60102550,CONWAY AECOM LTD,755.00,19/04/2018
Commercial,Regional Enterprise,Other Services,60102551,CONWAY AECOM LTD,119.26,13/04/2018
Commercial,Regional Enterprise,Other Services,60102553,CONWAY AECOM LTD,207.55,13/04/2018
Commercial,Regional Enterprise,Other Services,60102554,CONWAY AECOM LTD,"31,323.40",13/04/2018
Commercial,Regional Enterprise,Other Services,60102562,CONWAY AECOM LTD,75.94,13/04/2018
Commercial,Regional Enterprise,Other Services,60102564,CONWAY AECOM LTD,59.63,13/04/2018
Commercial,Regional Enterprise,Other Services,60102567,CONWAY AECOM LTD,59.63,13/04/2018
Commercial,Regional Enterprise,Other Services,60102568,CONWAY AECOM LTD,59.63,13/04/2018
Commercial,Regional Enterprise,Other Services,60102569,CONWAY AECOM LTD,137.61,13/04/2018
Commercial,Regional Enterprise,Other Services,60102570,CONWAY AECOM LTD,110.27,13/04/2018
Commercial,Regional Enterprise,Other Services,60102573,CONWAY AECOM LTD,217.54,13/04/2018
Commercial,Regional Enterprise,Other Services,60102575,CONWAY AECOM LTD,"1,453.36",16/04/2018
Commercial,Regional Enterprise,Other Services,60102576,CONWAY AECOM LTD,572.42,13/04/2018
Commercial,Regional Enterprise,Other Services,60102577,CONWAY AECOM LTD,58.41,13/04/2018
Commercial,Regional Enterprise,Other Services,60102579,CONWAY AECOM LTD,59.63,13/04/2018
Commercial,Regional Enterprise,Other Services,60102580,CONWAY AECOM LTD,128.89,13/04/2018
Commercial,Regional Enterprise,Other Services,60102582,CONWAY AECOM LTD,59.63,13/04/2018
Commercial,Regional Enterprise,Other Services,60102583,CONWAY AECOM LTD,319.30,13/04/2018
Commercial,Regional Enterprise,Other Services,60102585,CONWAY AECOM LTD,59.63,13/04/2018
Commercial,Regional Enterprise,Other Services,60102587,CONWAY AECOM LTD,371.98,13/04/2018
Commercial,Regional Enterprise,Other Services,60102588,CONWAY AECOM LTD,59.63,13/04/2018
Commercial,Regional Enterprise,Other Services,60102592,CONWAY AECOM LTD,61.52,13/04/2018
Commercial,Regional Enterprise,Other Services,60102593,CONWAY AECOM LTD,75.94,13/04/2018
Commercial,Regional Enterprise,Other Services,60102595,CONWAY AECOM LTD,59.63,13/04/2018
Commercial,Regional Enterprise,Other Services,60102596,CONWAY AECOM LTD,59.63,13/04/2018
Commercial,Regional Enterprise,Other Services,60102598,CONWAY AECOM LTD,"7,085.23",13/04/2018
Commercial,Regional Enterprise,Other Services,60102599,CONWAY AECOM LTD,75.94,13/04/2018
Commercial,Regional Enterprise,Other Services,60102601,CONWAY AECOM LTD,616.74,13/04/2018
Commercial,Regional Enterprise,Other Services,60102602,CONWAY AECOM LTD,297.61,13/04/2018
Commercial,Regional Enterprise,Other Services,60102604,CONWAY AECOM LTD,276.74,13/04/2018
Commercial,Regional Enterprise,Other Services,60102605,CONWAY AECOM LTD,233.27,13/04/2018
Commercial,Regional Enterprise,Other Services,60102606,CONWAY AECOM LTD,247.72,13/04/2018
Commercial,Regional Enterprise,Other Services,60102607,CONWAY AECOM LTD,59.63,13/04/2018
Commercial,Regional Enterprise,Other Services,60102609,CONWAY AECOM LTD,59.63,13/04/2018
Commercial,Regional Enterprise,Other Services,60102610,CONWAY AECOM LTD,59.63,13/04/2018
Commercial,Regional Enterprise,Other Services,60102611,CONWAY AECOM LTD,59.63,13/04/2018
Commercial,Regional Enterprise,Other Services,60102703,CONWAY AECOM LTD,175.24,17/04/2018
Commercial,Regional Enterprise,Other Services,60102704,CONWAY AECOM LTD,124.26,17/04/2018
Commercial,Regional Enterprise,Other Services,60102706,CONWAY AECOM LTD,104.28,17/04/2018
Commercial,Regional Enterprise,Other Services,60102708,CONWAY AECOM LTD,299.29,17/04/2018
Commercial,Regional Enterprise,Other Services,60102709,CONWAY AECOM LTD,45.87,17/04/2018
Commercial,Regional Enterprise,Other Services,60102710,CONWAY AECOM LTD,47.32,17/04/2018
Commercial,Regional Enterprise,Other Services,60102712,CONWAY AECOM LTD,229.35,17/04/2018
Commercial,Regional Enterprise,Other Services,60102713,CONWAY AECOM LTD,47.32,17/04/2018
Commercial,Regional Enterprise,Other Services,60102714,CONWAY AECOM LTD,62.61,17/04/2018
Commercial,Regional Enterprise,Other Services,60102716,CONWAY AECOM LTD,94.64,17/04/2018
Commercial,Regional Enterprise,Other Services,60102717,CONWAY AECOM LTD,52.29,17/04/2018
Commercial,Regional Enterprise,Other Services,60102718,CONWAY AECOM LTD,59.63,17/04/2018
Commercial,Regional Enterprise,Other Services,60102719,CONWAY AECOM LTD,116.83,17/04/2018
Commercial,Regional Enterprise,Other Services,60102720,CONWAY AECOM LTD,47.32,17/04/2018
Commercial,Regional Enterprise,Other Services,60102721,CONWAY AECOM LTD,62.61,17/04/2018
Commercial,Regional Enterprise,Other Services,60102722,CONWAY AECOM LTD,132.80,17/04/2018
Commercial,Regional Enterprise,Other Services,60102723,CONWAY AECOM LTD,62.61,17/04/2018
Commercial,Regional Enterprise,Other Services,60102725,CONWAY AECOM LTD,47.32,17/04/2018
Commercial,Regional Enterprise,Other Services,60102726,CONWAY AECOM LTD,116.83,17/04/2018
Commercial,Regional Enterprise,Other Services,60102731,CONWAY AECOM LTD,175.24,17/04/2018
Commercial,Regional Enterprise,Other Services,60102732,CONWAY AECOM LTD,52.29,17/04/2018
Commercial,Regional Enterprise,Other Services,60102733,CONWAY AECOM LTD,184.55,17/04/2018
Commercial,Regional Enterprise,Other Services,60102736,CONWAY AECOM LTD,116.83,17/04/2018
Commercial,Regional Enterprise,Other Services,60102737,CONWAY AECOM LTD,125.22,17/04/2018
Commercial,Regional Enterprise,Other Services,60102739,CONWAY AECOM LTD,279.49,17/04/2018
Commercial,Regional Enterprise,Other Services,60102741,CONWAY AECOM LTD,538.32,17/04/2018
Commercial,Regional Enterprise,Other Services,60102743,CONWAY AECOM LTD,62.61,17/04/2018
Commercial,Regional Enterprise,Other Services,60102744,CONWAY AECOM LTD,159.60,17/04/2018
Commercial,Regional Enterprise,Other Services,60102745,CONWAY AECOM LTD,350.49,17/04/2018
Commercial,Regional Enterprise,Other Services,60102747,CONWAY AECOM LTD,62.61,17/04/2018
Commercial,Regional Enterprise,Other Services,60102748,CONWAY AECOM LTD,116.83,17/04/2018
Commercial,Regional Enterprise,Other Services,60102751,CONWAY AECOM LTD,116.83,17/04/2018
Commercial,Regional Enterprise,Other Services,60102752,CONWAY AECOM LTD,116.83,17/04/2018
Commercial,Regional Enterprise,Other Services,60102753,CONWAY AECOM LTD,97.47,17/04/2018
Commercial,Regional Enterprise,Other Services,60102754,CONWAY AECOM LTD,194.93,17/04/2018
Commercial,Regional Enterprise,Other Services,60102756,CONWAY AECOM LTD,505.39,17/04/2018
Commercial,Regional Enterprise,Other Services,60102757,CONWAY AECOM LTD,488.30,17/04/2018
Commercial,Regional Enterprise,Other Services,60102759,CONWAY AECOM LTD,107.70,17/04/2018
Commercial,Regional Enterprise,Other Services,60102760,CONWAY AECOM LTD,69.18,17/04/2018
Commercial,Regional Enterprise,Other Services,60102761,CONWAY AECOM LTD,116.83,17/04/2018
Commercial,Regional Enterprise,Other Services,60102762,CONWAY AECOM LTD,49.90,17/04/2018
Commercial,Regional Enterprise,Other Services,60102764,CONWAY AECOM LTD,99.79,17/04/2018
Commercial,Regional Enterprise,Other Services,60102765,CONWAY AECOM LTD,62.61,17/04/2018
Commercial,Regional Enterprise,Other Services,60102766,CONWAY AECOM LTD,116.83,17/04/2018
Commercial,Regional Enterprise,Other Services,60102767,CONWAY AECOM LTD,55.14,17/04/2018
Commercial,Regional Enterprise,Other Services,60102768,CONWAY AECOM LTD,62.61,17/04/2018
Commercial,Regional Enterprise,Other Services,60102769,CONWAY AECOM LTD,257.07,17/04/2018
Commercial,Regional Enterprise,Other Services,60102773,CONWAY AECOM LTD,49.90,17/04/2018
Commercial,Regional Enterprise,Other Services,60102774,CONWAY AECOM LTD,69.18,17/04/2018
Commercial,Regional Enterprise,Other Services,60102778,CONWAY AECOM LTD,125.22,17/04/2018
Commercial,Regional Enterprise,Other Services,60102779,CONWAY AECOM LTD,47.32,17/04/2018
Commercial,Regional Enterprise,Other Services,60102781,CONWAY AECOM LTD,372.79,17/04/2018
Commercial,Regional Enterprise,Other Services,60102782,CONWAY AECOM LTD,29.29,17/04/2018
Commercial,Regional Enterprise,Other Services,60102783,CONWAY AECOM LTD,233.66,17/04/2018
Commercial,Regional Enterprise,Other Services,60102784,CONWAY AECOM LTD,58.41,17/04/2018
Commercial,Regional Enterprise,Other Services,60102786,CONWAY AECOM LTD,58.41,17/04/2018
Commercial,Regional Enterprise,Other Services,60102788,CONWAY AECOM LTD,62.61,17/04/2018
Commercial,Regional Enterprise,Other Services,60102790,CONWAY AECOM LTD,212.01,17/04/2018
Commercial,Regional Enterprise,Other Services,60102791,CONWAY AECOM LTD,47.32,17/04/2018
Commercial,Regional Enterprise,Other Services,60102792,CONWAY AECOM LTD,375.66,17/04/2018
Commercial,Regional Enterprise,Other Services,60102793,CONWAY AECOM LTD,253.35,17/04/2018
Commercial,Regional Enterprise,Other Services,60102795,CONWAY AECOM LTD,125.22,17/04/2018
Commercial,Regional Enterprise,Other Services,60102797,CONWAY AECOM LTD,61.52,17/04/2018
Commercial,Regional Enterprise,Other Services,60102799,CONWAY AECOM LTD,55.14,17/04/2018
Commercial,Regional Enterprise,Other Services,60102801,CONWAY AECOM LTD,116.83,17/04/2018
Commercial,Regional Enterprise,Other Services,60102802,CONWAY AECOM LTD,94.64,17/04/2018
Commercial,Regional Enterprise,Other Services,60102805,CONWAY AECOM LTD,42.06,17/04/2018
Commercial,Regional Enterprise,Other Services,60102807,CONWAY AECOM LTD,35.33,17/04/2018
Commercial,Regional Enterprise,Other Services,60102808,CONWAY AECOM LTD,45.87,17/04/2018
Commercial,Regional Enterprise,Other Services,60102810,CONWAY AECOM LTD,62.61,17/04/2018
Commercial,Regional Enterprise,Other Services,60102812,CONWAY AECOM LTD,319.20,17/04/2018
Commercial,Regional Enterprise,Other Services,60100690,CYCLE CONFIDENT LTD,"19,360.92",12/04/2018
Commercial,Regional Enterprise,Other Services,60101595,CYCLEHOOP LTD,"40,000.00",24/04/2018
Commercial,Regional Enterprise,Other Services,60095348,FAIRWAY CHILDREN CENTRE,"1,100.00",17/04/2018
Commercial,Regional Enterprise,Other Services,60100752,LONDON BUSES SERVICES LIMITED,"7,426.02",12/04/2018
Commercial,Regional Enterprise,Other Services,60101550,LONDON BUSES SERVICES LIMITED,"1,501.42",24/04/2018
Commercial,Regional Enterprise,Other Services,60101592,LONDON BUSES SERVICES LIMITED,"7,101.54",24/04/2018
Commercial,Regional Enterprise,Other Services,60099420,MILL HILL COUNTY HIGH SCHOOL,100.00,20/04/2018
Commercial,Regional Enterprise,Other Services,60102566,RM COUNTRYSIDE SERVICES LTD,675.00,13/04/2018
Commercial,Regional Enterprise,Other Services,60102572,RM COUNTRYSIDE SERVICES LTD,280.00,13/04/2018
Commercial,Regional Enterprise,Other Services,60101484,S.A.M.E. ACADEMY,"3,900.00",17/04/2018
Commercial,Regional Enterprise,Other Services,60102206,SUN HILL SURVEYS,900.00,10/04/2018
Commercial,Regional Enterprise,Other Services,60102098,THE BARNETGROUP LIMITED,"5,250.00",10/04/2018
Commercial,Regional Enterprise,Professional Services,60099973,PUBLIC ANALYST SCIENTIFIC SERVS. LT,411.00,18/04/2018
Commercial,Regional Enterprise,Professional Services,60100959,WATES LIVING SPACE,118.48,17/04/2018
Commercial,Regional Enterprise,Professional Services,60102134,WATES LIVING SPACE,"7,886.34",26/04/2018
Commercial,Regional Enterprise,RE Services Contract Payment,10014041,RE (REGIONAL ENTERPRISE) LIMITED,"2,647,720.00",27/04/2018
Commercial,Regional Enterprise,RE Services Contract Payment,60100557,RE (REGIONAL ENTERPRISE) LIMITED,"48,203.17",03/04/2018
Commercial,Regional Enterprise,RE Services Contract Payment,60100563,RE (REGIONAL ENTERPRISE) LIMITED,"19,438.77",03/04/2018
Commercial,Regional Enterprise,RE Services Contract Payment,60100661,RE (REGIONAL ENTERPRISE) LIMITED,"34,611.90",03/04/2018
Commercial,Regional Enterprise,RE Services Contract Payment,60102405,RE (REGIONAL ENTERPRISE) LIMITED,"20,738.92",25/04/2018
Commercial,Regional Enterprise,RE Services Contract Payment,60102407,RE (REGIONAL ENTERPRISE) LIMITED,"22,399.10",25/04/2018
Commercial,Regional Enterprise,RE Services Contract Payment,60102409,RE (REGIONAL ENTERPRISE) LIMITED,"23,435.88",25/04/2018
Commercial,Regional Enterprise,RE Services Contract Payment,60102413,RE (REGIONAL ENTERPRISE) LIMITED,"4,504.67",26/04/2018
Commercial,Regional Enterprise,RE Services Contract Payment,60102416,RE (REGIONAL ENTERPRISE) LIMITED,"29,014.56",25/04/2018
Commercial,Regional Enterprise,RE Services Contract Payment,60102423,RE (REGIONAL ENTERPRISE) LIMITED,"4,069.51",24/04/2018
Commercial,Regional Enterprise,RE Services Contract Payment,60102429,RE (REGIONAL ENTERPRISE) LIMITED,"44,725.88",26/04/2018
Commercial,The Barnet Group,Capital Construction and Works,60101422,BARNET HOMES LIMITED,"700,000.00",05/04/2018
Commissioning,Commissioning,Advertising,60101258,TMP (UK) LTD, 287.00 ,04/04/2018
Commissioning,Commissioning,Advertising,60101333,TMP (UK) LTD, 296.00 ,04/04/2018
Commissioning,Commissioning,Advertising,60101396,TMP (UK) LTD, 287.00 ,04/04/2018
Commissioning,Commissioning,Advertising,60101412,TMP (UK) LTD, 475.50 ,04/04/2018
Commissioning,Commissioning,Advertising,60102081,TMP (UK) LTD,"1,052.11",16/04/2018
Commissioning,Commissioning,Building Repairs & Maintenance,60102942,MRDA ARCHITECTS & CONSERVATION CONSULT," 4,329.90 ",23/04/2018
Commissioning,Commissioning,Building Repairs & Maintenance,60103021,MRDA ARCHITECTS & CONSERVATION CONSULT,640.00,23/04/2018
Commissioning,Commissioning,Building Repairs & Maintenance,60100769,RGE SERVICES," 2,542.24 ",12/04/2018
Commissioning,Commissioning,Building Repairs & Maintenance,60101695,RGE SERVICES,753.53,09/04/2018
Commissioning,Commissioning,Capital Construction and Works,60102734,SECOM PLC," 1,498.00 ",17/04/2018
Commissioning,Commissioning,Cleaning and domestic material,60102076,CHURCHILL CONTRACT SERVICES,664.48,30/04/2018
Commissioning,Commissioning,Cleaning and domestic material,60102191,CHURCHILL CONTRACT SERVICES,52.75,27/04/2018
Commissioning,Commissioning,Consultants Fees,60099989,AVENTIS SOLUTIONS LIMITED,"12,650.00",05/04/2018
Commissioning,Commissioning,Consultants Fees,60099990,AVENTIS SOLUTIONS LIMITED,"5,530.00",05/04/2018
Commissioning,Commissioning,Consultants Fees,60094039,CAPITA BUSINESS SERVICES LTD, 750.00 ,10/04/2018
Commissioning,Commissioning,Consultants Fees,60103266,CENTERPLATE UK," 1,092.00 ",26/04/2018
Commissioning,Commissioning,Consultants Fees,60102831,E-CAR CLUB," 2,513.03 ",18/04/2018
Commissioning,Commissioning,Consultants Fees,60101338,FMG CONSULTING LTD," 3,343.61 ",26/04/2018
Commissioning,Commissioning,Consultants Fees,60100880,GALLIFORD TRY," 1,445,947.36 ",04/04/2018
Commissioning,Commissioning,Consultants Fees,60102428,GALLIFORD TRY," 2,477,876.48 ",19/04/2018
Commissioning,Commissioning,Consultants Fees,60099297,GATENBY SANDERSON,"9,663.48",04/04/2018
Commissioning,Commissioning,Consultants Fees,60099327,GATENBY SANDERSON," 9,095.04 ",05/04/2018
Commissioning,Commissioning,Consultants Fees,60101819,GATENBY SANDERSON," 13,642.56 ",05/04/2018
Commissioning,Commissioning,Consultants Fees,80016817,JLT SPECIALITY LTD,"2,500.00",16/04/2018
Commissioning,Commissioning,Consultants Fees,60100973,LEIDOS INNOVATIONS UK LTD,"28,972.92",19/04/2018
Commissioning,Commissioning,Consultants Fees,40002721,OFFICE DEPOT UK LTD, 18.76 ,19/04/2018
Commissioning,Commissioning,Consultants Fees,40002723,OFFICE DEPOT UK LTD,4.56,19/04/2018
Commissioning,Commissioning,Consultants Fees,60101669,OPINION RESEARCH SERVICES," 55,300.00 ",25/04/2018
Commissioning,Commissioning,Consultants Fees,60101668,POLICY IN PRACTICE,"3,500.00",03/04/2018
Commissioning,Commissioning,Consultants Fees,60099284,REDACTED - PERSONAL DATA, 64.26 ,11/04/2018
Commissioning,Commissioning,Consultants Fees,60100821,REDACTED - PERSONAL DATA, 42.84 ,12/04/2018
Commissioning,Commissioning,Employee Expenses,60099828,PENNA PLC,"10,296.00",03/04/2018
Commissioning,Commissioning,Employee Expenses,60101263,SUE HILL RECRUITMENT & SERVICES LTD,"1,448.65",19/04/2018
Commissioning,Commissioning,Employee Expenses,60101286,SUE HILL RECRUITMENT & SERVICES LTD,"1,448.65",05/04/2018
Commissioning,Commissioning,Employee Expenses,60101411,SUE HILL RECRUITMENT & SERVICES LTD,"5,125.00",18/04/2018
Commissioning,Commissioning,Employee Expenses,60103329,SUE HILL RECRUITMENT & SERVICES LTD,"1,448.65",27/04/2018
Commissioning,Commissioning,Equipment and Materials Purcha,60102013,AV2HIRE, 205.00 ,12/04/2018
Commissioning,Commissioning,Equipment and Materials Purcha,60102829,BARNET MENCAP,"10,000.00",23/04/2018
Commissioning,Commissioning,Equipment and Materials Purcha,60102398,BRITISH TELECOM PLC,"4,416.00",13/04/2018
Commissioning,Commissioning,Equipment and Materials Purcha,60100887,COMMUNITY BARNET,"19,500.00",11/04/2018
Commissioning,Commissioning,Equipment and Materials Purcha,60102412,JOHN GRAHAM CONSTRUCTION LTD," 211,566.17 ",23/04/2018
Commissioning,Commissioning,Equipment and Materials Purcha,60099970,NISBETS PLC,56.63,18/04/2018
Commissioning,Commissioning,Equipment and Materials Purcha,60099984,NISBETS PLC,86.34,18/04/2018
Commissioning,Commissioning,Equipment and Materials Purcha,60097884,OCS GROUP UK LIMITED,"4,985.00",09/04/2018
Commissioning,Commissioning,Equipment and Materials Purcha,60101605,OCS GROUP UK LIMITED,"47,050.00",03/04/2018
Commissioning,Commissioning,Equipment and Materials Purcha,60093165,OFCOM," 2,690.70 ",09/04/2018
Commissioning,Commissioning,Equipment and Materials Purcha,60093179,OFCOM, 700.00 ,09/04/2018
Commissioning,Commissioning,Equipment and Materials Purcha,60100834,VICTIM SUPPORT SERVICES," 10,000.00 ",05/04/2018
Commissioning,Commissioning,Equipment and Materials Purcha,60100859,VICTIM SUPPORT SERVICES," 10,000.00 ",05/04/2018
Commissioning,Commissioning,Food Costs,20036031,RUMPLERS,98.50,27/04/2018
Commissioning,Commissioning,Food Costs,20036032,RUMPLERS,"1,320.60",27/04/2018
Commissioning,Commissioning,Food Costs,20036033,RUMPLERS,173.80,27/04/2018
Commissioning,Commissioning,Food Costs,20036034,RUMPLERS,951.00,27/04/2018
Commissioning,Commissioning,Food Costs,20036035,RUMPLERS,"1,182.80",27/04/2018
Commissioning,Commissioning,Food Costs,20036036,RUMPLERS,128.08,27/04/2018
Commissioning,Commissioning,Food Costs,20036037,RUMPLERS,117.58,27/04/2018
Commissioning,Commissioning,Miscellaneous Expenses,80016592,CHAIRHIRE, 153.13 ,04/04/2018
Commissioning,Commissioning,Other Services,60099670,BARNET COMMUNITY PROJECTS, 268.75 ,09/04/2018
Commissioning,Commissioning,Other Services,60102182,BARNET COMMUNITY PROJECTS, 268.75 ,12/04/2018
Commissioning,Commissioning,Other Services,60099639,BARNET REFUGEE SERVICE, 799.50 ,23/04/2018
Commissioning,Commissioning,Other Services,60102294,BLUE 9 SECURITY LIMITED," 2,374.43 ",11/04/2018
Commissioning,Commissioning,Other Services,60102303,BLUE 9 SECURITY LIMITED,"2,024.10",11/04/2018
Commissioning,Commissioning,Other Services,60102313,BLUE 9 SECURITY LIMITED," 2,218.73 ",11/04/2018
Commissioning,Commissioning,Other Services,60102322,BLUE 9 SECURITY LIMITED," 2,366.64 ",11/04/2018
Commissioning,Commissioning,Other Services,60102347,BLUE 9 SECURITY LIMITED,"2,273.22",11/04/2018
Commissioning,Commissioning,Other Services,60102360,BLUE 9 SECURITY LIMITED," 2,366.64 ",11/04/2018
Commissioning,Commissioning,Other Services,60102362,BLUE 9 SECURITY LIMITED," 2,662.48 ",11/04/2018
Commissioning,Commissioning,Other Services,60102377,BLUE 9 SECURITY LIMITED," 4,873.41 ",11/04/2018
Commissioning,Commissioning,Other Services,60102384,BLUE 9 SECURITY LIMITED,"2,273.22",11/04/2018
Commissioning,Commissioning,Other Services,60102390,BLUE 9 SECURITY LIMITED," 2,327.72 ",12/04/2018
Commissioning,Commissioning,Other Services,60102222,CONWAY AECOM LTD," 3,753.81 ",17/04/2018
Commissioning,Commissioning,Other Services,60102442,CONWAY AECOM LTD, 33.92 ,13/04/2018
Commissioning,Commissioning,Other Services,60102458,CONWAY AECOM LTD,593.18,19/04/2018
Commissioning,Commissioning,Other Services,60102484,CONWAY AECOM LTD, 121.16 ,13/04/2018
Commissioning,Commissioning,Other Services,60102532,CONWAY AECOM LTD,93.33,19/04/2018
Commissioning,Commissioning,Other Services,60102539,CONWAY AECOM LTD, 220.27 ,19/04/2018
Commissioning,Commissioning,Other Services,60102540,CONWAY AECOM LTD, 110.78 ,13/04/2018
Commissioning,Commissioning,Other Services,60102549,CONWAY AECOM LTD, 37.09 ,13/04/2018
Commissioning,Commissioning,Other Services,60102552,CONWAY AECOM LTD, 100.28 ,19/04/2018
Commissioning,Commissioning,Other Services,60102581,CONWAY AECOM LTD, 529.25 ,19/04/2018
Commissioning,Commissioning,Other Services,60102594,CONWAY AECOM LTD, 285.63 ,13/04/2018
Commissioning,Commissioning,Other Services,60102603,CONWAY AECOM LTD, 16.71 ,13/04/2018
Commissioning,Commissioning,Other Services,60101260,ENVENTURE RESEARCH LTD," 9,887.50 ",27/04/2018
Commissioning,Commissioning,Other Services,60101555,FMG CONSULTING LTD,"6,000.00",24/04/2018
Commissioning,Commissioning,Other Services,60099649,LONDON REIGN SPORTS, 50.00 ,11/04/2018
Commissioning,Commissioning,Other Services,60099665,LONDON REIGN SPORTS, 712.50 ,11/04/2018
Commissioning,Commissioning,Other Services,EBX0220356,NORTH LONDON WASTE AUTHORITY,"1,014,609.00",03/04/2018
Commissioning,Commissioning,Other Services,60102472,RM COUNTRYSIDE SERVICES LTD," 1,080.00 ",13/04/2018
Commissioning,Commissioning,Other Services,10014029,SAS POSITIVE ACTIVITIES LTD," 1,403.00 ",04/04/2018
Commissioning,Commissioning,Other Services,60096367,SHRED-IT,172.53,19/04/2018
Commissioning,Commissioning,Other Services,60102958,STOR-A FILE LTD,63.50,27/04/2018
Commissioning,Commissioning,Other Services,60103022,STOR-A FILE LTD,"5,687.99",27/04/2018
Commissioning,Commissioning,Private Contractors - Third Pa,60100372,GREENWICH LEISURE LTD," 32,505.53 ",23/04/2018
Commissioning,Commissioning,Professional Services,60102889,BARNET YOUTH ZONE,"1,000,000.00",30/04/2018
Commissioning,Commissioning,Professional Services,60103101,CIPFA BUSINESS LIMITED,"4,950.00",24/04/2018
Commissioning,Commissioning,Professional Services,60100154,EJH TRAINING SERVICES LTD," 2,461.36 ",05/04/2018
Commissioning,Commissioning,Professional Services,60101256,ELECTORAL REFORM SERVICES," 4,122.00 ",19/04/2018
Commissioning,Commissioning,Professional Services,60102000,ESSEX COUNTY COUNCIL," 27,060.00 ",05/04/2018
Commissioning,Commissioning,Professional Services,60097434,FAMILY FUND TRADING LTD,201.00,03/04/2018
Commissioning,Commissioning,Professional Services,60099656,FAMILY FUND TRADING LTD,178.00,03/04/2018
Commissioning,Commissioning,Professional Services,60101655,FAMILY FUND TRADING LTD,"4,750.00",09/04/2018
Commissioning,Commissioning,Professional Services,60101967,GENERAL DYNAMICS INFORMATION TECHNOLOGY,"5,607.00",05/04/2018
Commissioning,Commissioning,Professional Services,60102006,GENERAL DYNAMICS INFORMATION TECHNOLOGY,"4,941.76",05/04/2018
Commissioning,Commissioning,Professional Services,60102368,L G FUTURES,"2,990.00",11/04/2018
Commissioning,Commissioning,Professional Services,60100558,LONDON BOROUGH OF ISLINGTON," 10,044.96 ",05/04/2018
Commissioning,Commissioning,Professional Services,60097404,MOTT MACDONALD LTD/CAMBRIDGE EDUCATION," 6,000.00 ",05/04/2018
Commissioning,Commissioning,Professional Services,60100873,RE (REGIONAL ENTERPRISE) LIMITED,"4,000.00",05/04/2018
Commissioning,Commissioning,Professional Services,60101505,S W BRUCE & CO LTD," 4,813.83 ",24/04/2018
Commissioning,Commissioning,Professional Services,60101895,THE DARTINGTON HALL TRUST," 29,487.25 ",26/04/2018
Commissioning,Commissioning,Professional Services,60101273,TRACEY HILL TRAINING & CONSULTANCY LTD," 2,504.48 ",19/04/2018
Commissioning,Commissioning,Software Licences & Support,60100384,ICASEWORK LTD,"13,200.00",10/04/2018
Commissioning,Commissioning,Stationery,40002784,OFFICE DEPOT UK LTD,13.16,19/04/2018
Commissioning,Commissioning,Stationery,40002785,OFFICE DEPOT UK LTD,2.94,19/04/2018
Commissioning,Commissioning,Stationery,40002792,OFFICE DEPOT UK LTD,12.84,19/04/2018
Commissioning,Commissioning,Subscriptions,60102821,PUBLIC POLICY EXCHANGE LTD,236.00,18/04/2018
Commissioning,Commissioning,Training,80016126,CIPFA BUSINESS LTD,150.00,11/04/2018
Commissioning,Commissioning,Training,60101435,PREMIER PEOPLE SOLUTIONS LTD,600.00,19/04/2018
Commissioning,Commissioning,Training,80016560,REDACTED - PERSONAL DATA,325.00,10/04/2018
Commissioning,Commissioning,Ttl IT & Comms,10014030,BRITISH TELECOM PLC,25.26,10/04/2018
Commissioning,Commissioning,Ttl IT & Comms,10014031,BRITISH TELECOM PLC,25.26,10/04/2018
Commissioning,Commissioning,Ttl IT & Comms,10014032,BRITISH TELECOM PLC,25.26,10/04/2018
Commissioning,Commissioning,Ttl IT & Comms,10014033,BRITISH TELECOM PLC,25.26,10/04/2018
Commissioning,Commissioning,Ttl IT & Comms,10014034,BRITISH TELECOM PLC,25.26,10/04/2018
Commissioning,Commissioning,Ttl IT & Comms,10014035,BRITISH TELECOM PLC,25.26,10/04/2018
Commissioning,Commissioning,Ttl IT & Comms,60101714,CARE ANALYTICS LTD,"6,000.00",09/04/2018
Commissioning,Commissioning,Ttl IT & Comms,60101789,CARE ANALYTICS LTD,"5,000.00",09/04/2018
Commissioning,Commissioning,Venue Hire,60101982,PITSELIS EVENT CATERING,930.00,05/04/2018
Corporate Accounting,Corporate Accounting,General Sales,80016749,AXIS EDUCATIONAL TRUST," 2,441.50 ",20/04/2018
Corporate Accounting,Corporate Accounting,General Sales,80016748,FRIENDS OF HOLLICKWOOD SCHOOL, 688.75 ,24/04/2018
Corporate Accounting,Corporate Accounting,Miscellaneous Expenses,60101924,BALLOONLAND, 136.67 ,06/04/2018
Corporate Accounting,Corporate Accounting,Other Agencies - Third Party P,10014023,THE BARNETGROUP LIMITED," 6,675,583.33 ",04/04/2018
Corporate Accounting,Corporate Accounting,Other Agencies - Third Party P,60102882,THE BARNETGROUP LIMITED," 2,342,250.00 ",20/04/2018
Corporate Accounting,Corporate Accounting,Other Agencies - Third Party P,60103209,THE BARNETGROUP LIMITED," 4,876,713.03 ",26/04/2018
Corporate Accounting,Corporate Accounting,Other Local Authorities - Thir,20036022,GREATER LONDON AUTHORITY," 3,820,885.00 ",20/04/2018
Corporate Accounting,Corporate Accounting,Other Local Authorities - Thir,20036023,GREATER LONDON AUTHORITY," 236,146.00 ",20/04/2018
Corporate Accounting,Corporate Accounting,Other Local Authorities - Thir,EBX0222034,GREATER LONDON AUTHORITY," 4,363,157.80 ",13/04/2018
Corporate Accounting,Corporate Accounting,Other Transfer Payments,80016816,ANTHONY GOLD SOLICITORS," 1,000.00 ",16/04/2018
Corporate Accounting,Corporate Accounting,Other Transfer Payments,80016947,ANTHONY GOLD SOLICITORS," 1,000.00 ",20/04/2018
Corporate Accounting,Corporate Accounting,Other Transfer Payments,80016977,ANTHONY GOLD SOLICITORS," 1,000.00 ",30/04/2018
Corporate Accounting,Corporate Accounting,Other Transfer Payments,80016980,ANTHONY GOLD SOLICITORS," 1,000.00 ",30/04/2018
Corporate Accounting,Corporate Accounting,Other Transfer Payments,80016978,DARLINGTONS SOLICITORS," 1,000.00 ",30/04/2018
Corporate Accounting,Corporate Accounting,Other Transfer Payments,80016849,GANDECHA & PAU SOLICITORS,"1,000.00",20/04/2018
Corporate Accounting,Corporate Accounting,Other Transfer Payments,80016949,STAPLETONS SOLICITORS," 1,000.00 ",20/04/2018
Corporate Accounting,Corporate Accounting,Other Transfer Payments to Soc,80016736,WIRECARD (FS INSTANT 2040880892973)," 14,523.85 ",09/04/2018
Corporate Accounting,Corporate Accounting,Other Transfer Payments to Soc,80016737,WIRECARD (FS ONGOING 2040881670310," 39,120.32 ",09/04/2018
Corporate Accounting,Corporate Accounting,Refunds,80016870,JAMI, 964.09 ,18/04/2018
Corporate Accounting,Corporate Accounting,Refunds,80016504,KIER LONDON LTD," 24,600.00 ",06/04/2018
Delivery Units,Adults and Communities,Advertising for staff,60103237,TMP (UK) LTD, 662.11 ,25/04/2018
Delivery Units,Adults and Communities,Building Repairs & Maintenance,60101748,AJS LTD, 81.73 ,09/04/2018
Delivery Units,Adults and Communities,Building Repairs & Maintenance,60101749,AJS LTD, 74.30 ,09/04/2018
Delivery Units,Adults and Communities,Building Repairs & Maintenance,60101703,RGE SERVICES, 89.17 ,06/04/2018
Delivery Units,Adults and Communities,Cleaning and domestic material,60102070,CHURCHILL CONTRACT SERVICES, 377.81 ,30/04/2018
Delivery Units,Adults and Communities,Cleaning and domestic material,60102074,CHURCHILL CONTRACT SERVICES, 391.37 ,30/04/2018
Delivery Units,Adults and Communities,Cleaning and domestic material,40002804,OFFICE DEPOT UK LTD,20.06,19/04/2018
Delivery Units,Adults and Communities,Consultants Fees,60101006,THE SOCIAL MARKETING GATEWAY," 7,595.00 ",10/04/2018
Delivery Units,Adults and Communities,Direct Transfer Payments to So,80016699,REDACTED - PERSONAL DATA," 2,500.00 ",13/04/2018
Delivery Units,Adults and Communities,Direct Transfer Payments to So,90062333,REDACTED - PERSONAL DATA,"-1,432.08 ",27/04/2018
Delivery Units,Adults and Communities,Direct Transfer Payments to So,90067449,REDACTED - PERSONAL DATA," 1,490.48 ",03/04/2018
Delivery Units,Adults and Communities,Direct Transfer Payments to So,90068047,REDACTED - PERSONAL DATA, 732.72 ,27/04/2018
Delivery Units,Adults and Communities,Direct Transfer Payments to So,90068215,REDACTED - PERSONAL DATA," 2,019.36 ",03/04/2018
Delivery Units,Adults and Communities,Direct Transfer Payments to So,90068219,REDACTED - PERSONAL DATA," 3,942.56 ",03/04/2018
Delivery Units,Adults and Communities,Direct Transfer Payments to So,90068221,REDACTED - PERSONAL DATA,"1,238.92",03/04/2018
Delivery Units,Adults and Communities,Direct Transfer Payments to So,90068225,REDACTED - PERSONAL DATA,"(2,097.15)",03/04/2018
Delivery Units,Adults and Communities,Direct Transfer Payments to So,90068245,REDACTED - PERSONAL DATA,"-6,582.60 ",03/04/2018
Delivery Units,Adults and Communities,Direct Transfer Payments to So,90068248,REDACTED - PERSONAL DATA," 2,257.15 ",03/04/2018
Delivery Units,Adults and Communities,Direct Transfer Payments to So,90068254,REDACTED - PERSONAL DATA," 1,280.51 ",03/04/2018
Delivery Units,Adults and Communities,Direct Transfer Payments to So,90068257,REDACTED - PERSONAL DATA, 627.49 ,03/04/2018
Delivery Units,Adults and Communities,Direct Transfer Payments to So,90068261,REDACTED - PERSONAL DATA," 3,259.29 ",03/04/2018
Delivery Units,Adults and Communities,Direct Transfer Payments to So,90068262,REDACTED - PERSONAL DATA,"1,620.00",03/04/2018
Delivery Units,Adults and Communities,Direct Transfer Payments to So,90068263,REDACTED - PERSONAL DATA, 742.90 ,03/04/2018
Delivery Units,Adults and Communities,Direct Transfer Payments to So,90068264,REDACTED - PERSONAL DATA,"-3,259.29 ",03/04/2018
Delivery Units,Adults and Communities,Direct Transfer Payments to So,90068450,REDACTED - PERSONAL DATA,673.12,03/04/2018
Delivery Units,Adults and Communities,Direct Transfer Payments to So,90068451,REDACTED - PERSONAL DATA,485.84,03/04/2018
Delivery Units,Adults and Communities,Direct Transfer Payments to So,90068454,REDACTED - PERSONAL DATA,"1,161.92",03/04/2018
Delivery Units,Adults and Communities,Direct Transfer Payments to So,90068458,REDACTED - PERSONAL DATA,709.20,03/04/2018
Delivery Units,Adults and Communities,Direct Transfer Payments to So,90068460,REDACTED - PERSONAL DATA, 456.76 ,03/04/2018
Delivery Units,Adults and Communities,Direct Transfer Payments to So,90068466,REDACTED - PERSONAL DATA, 709.20 ,03/04/2018
Delivery Units,Adults and Communities,Direct Transfer Payments to So,90068467,REDACTED - PERSONAL DATA, 187.00 ,03/04/2018
Delivery Units,Adults and Communities,Direct Transfer Payments to So,90068468,REDACTED - PERSONAL DATA,785.12,03/04/2018
Delivery Units,Adults and Communities,Direct Transfer Payments to So,90068471,REDACTED - PERSONAL DATA,999.28,03/04/2018
Delivery Units,Adults and Communities,Direct Transfer Payments to So,90068472,REDACTED - PERSONAL DATA,"1,216.96",03/04/2018
Delivery Units,Adults and Communities,Direct Transfer Payments to So,90068475,REDACTED - PERSONAL DATA,"1,544.64",03/04/2018
Delivery Units,Adults and Communities,Direct Transfer Payments to So,90068476,REDACTED - PERSONAL DATA, 420.72 ,03/04/2018
Delivery Units,Adults and Communities,Direct Transfer Payments to So,90068480,REDACTED - PERSONAL DATA, 659.60 ,03/04/2018
Delivery Units,Adults and Communities,Direct Transfer Payments to So,90068481,REDACTED - PERSONAL DATA, 264.44 ,03/04/2018
Delivery Units,Adults and Communities,Direct Transfer Payments to So,90068484,REDACTED - PERSONAL DATA,"3,584.00",03/04/2018
Delivery Units,Adults and Communities,Direct Transfer Payments to So,90068485,REDACTED - PERSONAL DATA, 721.20 ,03/04/2018
Delivery Units,Adults and Communities,Direct Transfer Payments to So,90068495,REDACTED - PERSONAL DATA,860.80,03/04/2018
Delivery Units,Adults and Communities,Direct Transfer Payments to So,90068496,REDACTED - PERSONAL DATA, 589.00 ,03/04/2018
Delivery Units,Adults and Communities,Direct Transfer Payments to So,90068498,REDACTED - PERSONAL DATA,"2,928.00",03/04/2018
Delivery Units,Adults and Communities,Direct Transfer Payments to So,90068499,REDACTED - PERSONAL DATA,700.00,03/04/2018
Delivery Units,Adults and Communities,Direct Transfer Payments to So,90068500,REDACTED - PERSONAL DATA,"1,845.36",03/04/2018
Delivery Units,Adults and Communities,Direct Transfer Payments to So,90068504,REDACTED - PERSONAL DATA, 202.20 ,03/04/2018
Delivery Units,Adults and Communities,Direct Transfer Payments to So,90068506,REDACTED - PERSONAL DATA,"3,100.16",03/04/2018
Delivery Units,Adults and Communities,Direct Transfer Payments to So,90068509,REDACTED - PERSONAL DATA," 1,394.32 ",03/04/2018
Delivery Units,Adults and Communities,Direct Transfer Payments to So,90068514,REDACTED - PERSONAL DATA, 408.68 ,03/04/2018
Delivery Units,Adults and Communities,Direct Transfer Payments to So,90068515,REDACTED - PERSONAL DATA,851.08,03/04/2018
Delivery Units,Adults and Communities,Direct Transfer Payments to So,90068516,REDACTED - PERSONAL DATA, 925.40 ,03/04/2018
Delivery Units,Adults and Communities,Direct Transfer Payments to So,90068519,REDACTED - PERSONAL DATA, 600.00 ,03/04/2018
Delivery Units,Adults and Communities,Direct Transfer Payments to So,90068523,REDACTED - PERSONAL DATA, 502.40 ,03/04/2018
Delivery Units,Adults and Communities,Direct Transfer Payments to So,90068524,REDACTED - PERSONAL DATA," 1,396.72 ",03/04/2018
Delivery Units,Adults and Communities,Direct Transfer Payments to So,90068526,REDACTED - PERSONAL DATA,192.32,03/04/2018
Delivery Units,Adults and Communities,Direct Transfer Payments to So,90068527,REDACTED - PERSONAL DATA,"1,185.32",03/04/2018
Delivery Units,Adults and Communities,Direct Transfer Payments to So,90068528,REDACTED - PERSONAL DATA,"2,440.00",03/04/2018
Delivery Units,Adults and Communities,Direct Transfer Payments to So,90068535,REDACTED - PERSONAL DATA,"2,323.40",03/04/2018
Delivery Units,Adults and Communities,Direct Transfer Payments to So,90068540,REDACTED - PERSONAL DATA, 264.08 ,03/04/2018
Delivery Units,Adults and Communities,Direct Transfer Payments to So,90068543,REDACTED - PERSONAL DATA, 801.00 ,03/04/2018
Delivery Units,Adults and Communities,Direct Transfer Payments to So,90068546,REDACTED - PERSONAL DATA,305.44,03/04/2018
Delivery Units,Adults and Communities,Direct Transfer Payments to So,90068548,REDACTED - PERSONAL DATA," 1,545.48 ",03/04/2018
Delivery Units,Adults and Communities,Direct Transfer Payments to So,90068549,REDACTED - PERSONAL DATA," 1,000.00 ",03/04/2018
Delivery Units,Adults and Communities,Direct Transfer Payments to So,90068563,REDACTED - PERSONAL DATA, 840.00 ,03/04/2018
Delivery Units,Adults and Communities,Direct Transfer Payments to So,90068565,REDACTED - PERSONAL DATA,504.00,03/04/2018
Delivery Units,Adults and Communities,Direct Transfer Payments to So,90068567,REDACTED - PERSONAL DATA, 171.24 ,03/04/2018
Delivery Units,Adults and Communities,Direct Transfer Payments to So,90068568,REDACTED - PERSONAL DATA, 207.60 ,03/04/2018
Delivery Units,Adults and Communities,Direct Transfer Payments to So,90068570,REDACTED - PERSONAL DATA,"1,116.00",03/04/2018
Delivery Units,Adults and Communities,Direct Transfer Payments to So,90068572,REDACTED - PERSONAL DATA, 721.20 ,03/04/2018
Delivery Units,Adults and Communities,Direct Transfer Payments to So,90068577,REDACTED - PERSONAL DATA,420.72,03/04/2018
Delivery Units,Adults and Communities,Direct Transfer Payments to So,90068578,REDACTED - PERSONAL DATA,"1,153.92",03/04/2018
Delivery Units,Adults and Communities,Direct Transfer Payments to So,90068579,REDACTED - PERSONAL DATA," 1,353.04 ",03/04/2018
Delivery Units,Adults and Communities,Direct Transfer Payments to So,90068581,REDACTED - PERSONAL DATA," 2,031.88 ",03/04/2018
Delivery Units,Adults and Communities,Direct Transfer Payments to So,90068584,REDACTED - PERSONAL DATA,"1,185.00",03/04/2018
Delivery Units,Adults and Communities,Direct Transfer Payments to So,90068588,REDACTED - PERSONAL DATA," 2,048.32 ",03/04/2018
Delivery Units,Adults and Communities,Direct Transfer Payments to So,90068589,REDACTED - PERSONAL DATA, 775.04 ,03/04/2018
Delivery Units,Adults and Communities,Direct Transfer Payments to So,90068594,REDACTED - PERSONAL DATA,696.68,03/04/2018
Delivery Units,Adults and Communities,Direct Transfer Payments to So,90068595,REDACTED - PERSONAL DATA," 1,346.24 ",03/04/2018
Delivery Units,Adults and Communities,Direct Transfer Payments to So,90068596,REDACTED - PERSONAL DATA,312.52,03/04/2018
Delivery Units,Adults and Communities,Direct Transfer Payments to So,90068598,REDACTED - PERSONAL DATA, 480.80 ,03/04/2018
Delivery Units,Adults and Communities,Direct Transfer Payments to So,90068599,REDACTED - PERSONAL DATA, 451.92 ,03/04/2018
Delivery Units,Adults and Communities,Direct Transfer Payments to So,90068600,REDACTED - PERSONAL DATA," 4,093.84 ",03/04/2018
Delivery Units,Adults and Communities,Direct Transfer Payments to So,90068602,REDACTED - PERSONAL DATA, 347.20 ,03/04/2018
Delivery Units,Adults and Communities,Direct Transfer Payments to So,90068604,REDACTED - PERSONAL DATA,"1,894.44",03/04/2018
Delivery Units,Adults and Communities,Direct Transfer Payments to So,90068607,REDACTED - PERSONAL DATA, 926.68 ,03/04/2018
Delivery Units,Adults and Communities,Direct Transfer Payments to So,90068611,REDACTED - PERSONAL DATA, 588.24 ,03/04/2018
Delivery Units,Adults and Communities,Direct Transfer Payments to So,90068612,REDACTED - PERSONAL DATA,"3,444.00",03/04/2018
Delivery Units,Adults and Communities,Direct Transfer Payments to So,90068616,REDACTED - PERSONAL DATA,350.84,03/04/2018
Delivery Units,Adults and Communities,Direct Transfer Payments to So,90068617,REDACTED - PERSONAL DATA,581.28,03/04/2018
Delivery Units,Adults and Communities,Direct Transfer Payments to So,90068619,REDACTED - PERSONAL DATA, 470.40 ,03/04/2018
Delivery Units,Adults and Communities,Direct Transfer Payments to So,90068620,REDACTED - PERSONAL DATA," 3,766.80 ",03/04/2018
Delivery Units,Adults and Communities,Direct Transfer Payments to So,90068621,REDACTED - PERSONAL DATA, 470.40 ,03/04/2018
Delivery Units,Adults and Communities,Direct Transfer Payments to So,90068624,REDACTED - PERSONAL DATA, 520.00 ,03/04/2018
Delivery Units,Adults and Communities,Direct Transfer Payments to So,90068625,REDACTED - PERSONAL DATA," 2,200.00 ",03/04/2018
Delivery Units,Adults and Communities,Direct Transfer Payments to So,90068627,REDACTED - PERSONAL DATA," 1,560.72 ",03/04/2018
Delivery Units,Adults and Communities,Direct Transfer Payments to So,90068628,REDACTED - PERSONAL DATA," 2,518.48 ",03/04/2018
Delivery Units,Adults and Communities,Direct Transfer Payments to So,90068629,REDACTED - PERSONAL DATA, 136.00 ,03/04/2018
Delivery Units,Adults and Communities,Direct Transfer Payments to So,90068631,REDACTED - PERSONAL DATA," 1,819.44 ",03/04/2018
Delivery Units,Adults and Communities,Direct Transfer Payments to So,90068635,REDACTED - PERSONAL DATA, 615.12 ,03/04/2018
Delivery Units,Adults and Communities,Direct Transfer Payments to So,90068636,REDACTED - PERSONAL DATA,"2,296.60",03/04/2018
Delivery Units,Adults and Communities,Direct Transfer Payments to So,90068637,REDACTED - PERSONAL DATA,384.72,03/04/2018
Delivery Units,Adults and Communities,Direct Transfer Payments to So,90068639,REDACTED - PERSONAL DATA, 975.36 ,03/04/2018
Delivery Units,Adults and Communities,Direct Transfer Payments to So,90068641,REDACTED - PERSONAL DATA,"2,016.00",03/04/2018
Delivery Units,Adults and Communities,Direct Transfer Payments to So,90068647,REDACTED - PERSONAL DATA," 1,035.24 ",03/04/2018
Delivery Units,Adults and Communities,Direct Transfer Payments to So,90068648,REDACTED - PERSONAL DATA,"2,184.04",03/04/2018
Delivery Units,Adults and Communities,Direct Transfer Payments to So,90068651,REDACTED - PERSONAL DATA,"1,791.32",03/04/2018
Delivery Units,Adults and Communities,Direct Transfer Payments to So,90068653,REDACTED - PERSONAL DATA,"2,536.20",03/04/2018
Delivery Units,Adults and Communities,Direct Transfer Payments to So,90068654,REDACTED - PERSONAL DATA,"1,020.00",03/04/2018
Delivery Units,Adults and Communities,Direct Transfer Payments to So,90068655,REDACTED - PERSONAL DATA," 1,924.00 ",03/04/2018
Delivery Units,Adults and Communities,Direct Transfer Payments to So,90068657,REDACTED - PERSONAL DATA, 348.48 ,03/04/2018
Delivery Units,Adults and Communities,Direct Transfer Payments to So,90068658,REDACTED - PERSONAL DATA,601.00,03/04/2018
Delivery Units,Adults and Communities,Direct Transfer Payments to So,90068663,REDACTED - PERSONAL DATA,601.00,03/04/2018
Delivery Units,Adults and Communities,Direct Transfer Payments to So,90068665,REDACTED - PERSONAL DATA, 480.80 ,03/04/2018
Delivery Units,Adults and Communities,Direct Transfer Payments to So,90068668,REDACTED - PERSONAL DATA,"1,126.32",03/04/2018
Delivery Units,Adults and Communities,Direct Transfer Payments to So,90068674,REDACTED - PERSONAL DATA, 190.00 ,03/04/2018
Delivery Units,Adults and Communities,Direct Transfer Payments to So,90068675,REDACTED - PERSONAL DATA, 825.44 ,03/04/2018
Delivery Units,Adults and Communities,Direct Transfer Payments to So,90068680,REDACTED - PERSONAL DATA, 944.40 ,03/04/2018
Delivery Units,Adults and Communities,Direct Transfer Payments to So,90068683,REDACTED - PERSONAL DATA,390.00,03/04/2018
Delivery Units,Adults and Communities,Direct Transfer Payments to So,90068685,REDACTED - PERSONAL DATA, 208.68 ,03/04/2018
Delivery Units,Adults and Communities,Direct Transfer Payments to So,90068687,REDACTED - PERSONAL DATA, 160.00 ,03/04/2018
Delivery Units,Adults and Communities,Direct Transfer Payments to So,90068689,REDACTED - PERSONAL DATA,"1,972.00",03/04/2018
Delivery Units,Adults and Communities,Direct Transfer Payments to So,90068690,REDACTED - PERSONAL DATA,193.08,03/04/2018
Delivery Units,Adults and Communities,Direct Transfer Payments to So,90068691,REDACTED - PERSONAL DATA,"1,675.80",03/04/2018
Delivery Units,Adults and Communities,Direct Transfer Payments to So,90068692,REDACTED - PERSONAL DATA,775.04,03/04/2018
Delivery Units,Adults and Communities,Direct Transfer Payments to So,90068693,REDACTED - PERSONAL DATA, 392.00 ,03/04/2018
Delivery Units,Adults and Communities,Direct Transfer Payments to So,90068694,REDACTED - PERSONAL DATA, 889.48 ,03/04/2018
Delivery Units,Adults and Communities,Direct Transfer Payments to So,90068695,REDACTED - PERSONAL DATA, 231.40 ,03/04/2018
Delivery Units,Adults and Communities,Direct Transfer Payments to So,90068698,REDACTED - PERSONAL DATA, 966.84 ,03/04/2018
Delivery Units,Adults and Communities,Direct Transfer Payments to So,90068700,REDACTED - PERSONAL DATA," 1,438.32 ",03/04/2018
Delivery Units,Adults and Communities,Direct Transfer Payments to So,90068703,REDACTED - PERSONAL DATA, 384.00 ,03/04/2018
Delivery Units,Adults and Communities,Direct Transfer Payments to So,90068704,REDACTED - PERSONAL DATA," 2,686.00 ",03/04/2018
Delivery Units,Adults and Communities,Direct Transfer Payments to So,90068708,REDACTED - PERSONAL DATA," 2,211.80 ",03/04/2018
Delivery Units,Adults and Communities,Direct Transfer Payments to So,90068711,REDACTED - PERSONAL DATA," 1,582.00 ",03/04/2018
Delivery Units,Adults and Communities,Direct Transfer Payments to So,90068712,REDACTED - PERSONAL DATA,728.00,03/04/2018
Delivery Units,Adults and Communities,Direct Transfer Payments to So,90068713,REDACTED - PERSONAL DATA,306.84,03/04/2018
Delivery Units,Adults and Communities,Direct Transfer Payments to So,90068714,REDACTED - PERSONAL DATA,928.00,03/04/2018
Delivery Units,Adults and Communities,Direct Transfer Payments to So,90068716,REDACTED - PERSONAL DATA," 1,300.24 ",03/04/2018
Delivery Units,Adults and Communities,Direct Transfer Payments to So,90069007,REDACTED - PERSONAL DATA,760.00,11/04/2018
Delivery Units,Adults and Communities,Direct Transfer Payments to So,90069008,REDACTED - PERSONAL DATA,"9,389.59",11/04/2018
Delivery Units,Adults and Communities,Direct Transfer Payments to So,90071560,REDACTED - PERSONAL DATA, 250.00 ,19/04/2018
Delivery Units,Adults and Communities,Direct Transfer Payments to So,90071564,REDACTED - PERSONAL DATA," 1,384.08 ",19/04/2018
Delivery Units,Adults and Communities,Direct Transfer Payments to So,90071565,REDACTED - PERSONAL DATA," 1,040.00 ",19/04/2018
Delivery Units,Adults and Communities,Direct Transfer Payments to So,90071695,REDACTED - PERSONAL DATA, 250.00 ,20/04/2018
Delivery Units,Adults and Communities,Direct Transfer Payments to So,90071696,REDACTED - PERSONAL DATA," 1,200.00 ",20/04/2018
Delivery Units,Adults and Communities,Direct Transfer Payments to So,90071698,REDACTED - PERSONAL DATA," 1,492.00 ",20/04/2018
Delivery Units,Adults and Communities,Direct Transfer Payments to So,90071699,REDACTED - PERSONAL DATA," 1,200.00 ",20/04/2018
Delivery Units,Adults and Communities,Direct Transfer Payments to So,90071700,REDACTED - PERSONAL DATA,"4,953.12",20/04/2018
Delivery Units,Adults and Communities,Direct Transfer Payments to So,90071706,REDACTED - PERSONAL DATA,"6,857.14",20/04/2018
Delivery Units,Adults and Communities,Direct Transfer Payments to So,90073378,REDACTED - PERSONAL DATA,"1,370.28",27/04/2018
Delivery Units,Adults and Communities,Direct Transfer Payments to So,90073382,REDACTED - PERSONAL DATA, 228.00 ,27/04/2018
Delivery Units,Adults and Communities,Direct Transfer Payments to So,90073388,REDACTED - PERSONAL DATA," 1,490.48 ",27/04/2018
Delivery Units,Adults and Communities,Direct Transfer Payments to So,90073390,REDACTED - PERSONAL DATA, 604.40 ,27/04/2018
Delivery Units,Adults and Communities,Direct Transfer Payments to So,90073391,REDACTED - PERSONAL DATA,539.88,27/04/2018
Delivery Units,Adults and Communities,Direct Transfer Payments to So,90073395,REDACTED - PERSONAL DATA, 800.00 ,27/04/2018
Delivery Units,Adults and Communities,Direct Transfer Payments to So,90073396,REDACTED - PERSONAL DATA," 5,423.00 ",27/04/2018
Delivery Units,Adults and Communities,Direct Transfer Payments to So,90073399,REDACTED - PERSONAL DATA," 3,964.00 ",27/04/2018
Delivery Units,Adults and Communities,Direct Transfer Payments to So,90073401,REDACTED - PERSONAL DATA,817.36,27/04/2018
Delivery Units,Adults and Communities,Direct Transfer Payments to So,90073403,REDACTED - PERSONAL DATA,781.32,27/04/2018
Delivery Units,Adults and Communities,Direct Transfer Payments to So,90073404,REDACTED - PERSONAL DATA,424.40,27/04/2018
Delivery Units,Adults and Communities,Direct Transfer Payments to So,90073405,REDACTED - PERSONAL DATA," 3,834.44 ",27/04/2018
Delivery Units,Adults and Communities,Direct Transfer Payments to So,90073414,REDACTED - PERSONAL DATA,997.76,27/04/2018
Delivery Units,Adults and Communities,Direct Transfer Payments to So,90073416,REDACTED - PERSONAL DATA, 667.56 ,27/04/2018
Delivery Units,Adults and Communities,Direct Transfer Payments to So,90073420,REDACTED - PERSONAL DATA,"3,654.08",27/04/2018
Delivery Units,Adults and Communities,Direct Transfer Payments to So,90073422,REDACTED - PERSONAL DATA,851.20,27/04/2018
Delivery Units,Adults and Communities,Direct Transfer Payments to So,90073437,REDACTED - PERSONAL DATA," 8,821.04 ",27/04/2018
Delivery Units,Adults and Communities,Direct Transfer Payments to So,90073439,REDACTED - PERSONAL DATA,295.68,27/04/2018
Delivery Units,Adults and Communities,Direct Transfer Payments to So,90073443,REDACTED - PERSONAL DATA,"2,869.48",27/04/2018
Delivery Units,Adults and Communities,Direct Transfer Payments to So,90073445,REDACTED - PERSONAL DATA,"2,040.00",27/04/2018
Delivery Units,Adults and Communities,Direct Transfer Payments to So,90073447,REDACTED - PERSONAL DATA,"1,202.00",27/04/2018
Delivery Units,Adults and Communities,Direct Transfer Payments to So,90073448,REDACTED - PERSONAL DATA,"1,084.80",27/04/2018
Delivery Units,Adults and Communities,Direct Transfer Payments to So,90073449,REDACTED - PERSONAL DATA,"2,692.48",27/04/2018
Delivery Units,Adults and Communities,Direct Transfer Payments to So,90073450,REDACTED - PERSONAL DATA,"1,009.68",27/04/2018
Delivery Units,Adults and Communities,Direct Transfer Payments to So,90073456,REDACTED - PERSONAL DATA,288.48,27/04/2018
Delivery Units,Adults and Communities,Direct Transfer Payments to So,90073457,REDACTED - PERSONAL DATA, 144.24 ,27/04/2018
Delivery Units,Adults and Communities,Direct Transfer Payments to So,90073458,REDACTED - PERSONAL DATA, 937.56 ,27/04/2018
Delivery Units,Adults and Communities,Direct Transfer Payments to So,90073460,REDACTED - PERSONAL DATA,"3,051.36",27/04/2018
Delivery Units,Adults and Communities,Direct Transfer Payments to So,90073463,REDACTED - PERSONAL DATA," 1,881.00 ",27/04/2018
Delivery Units,Adults and Communities,Direct Transfer Payments to So,90073464,REDACTED - PERSONAL DATA," 2,847.00 ",27/04/2018
Delivery Units,Adults and Communities,Direct Transfer Payments to So,90073467,REDACTED - PERSONAL DATA, 395.40 ,27/04/2018
Delivery Units,Adults and Communities,Direct Transfer Payments to So,90073468,REDACTED - PERSONAL DATA,384.64,27/04/2018
Delivery Units,Adults and Communities,Direct Transfer Payments to So,90073469,REDACTED - PERSONAL DATA," 2,449.80 ",27/04/2018
Delivery Units,Adults and Communities,Direct Transfer Payments to So,90073470,REDACTED - PERSONAL DATA,"1,009.68",27/04/2018
Delivery Units,Adults and Communities,Direct Transfer Payments to So,90073474,REDACTED - PERSONAL DATA,368.00,27/04/2018
Delivery Units,Adults and Communities,Direct Transfer Payments to So,90073475,REDACTED - PERSONAL DATA, 859.56 ,27/04/2018
Delivery Units,Adults and Communities,Direct Transfer Payments to So,90073476,REDACTED - PERSONAL DATA,"1,514.52",27/04/2018
Delivery Units,Adults and Communities,Direct Transfer Payments to So,90073480,REDACTED - PERSONAL DATA," 1,104.00 ",27/04/2018
Delivery Units,Adults and Communities,Direct Transfer Payments to So,90073482,REDACTED - PERSONAL DATA," 1,580.00 ",27/04/2018
Delivery Units,Adults and Communities,Direct Transfer Payments to So,90073483,REDACTED - PERSONAL DATA,200.56,27/04/2018
Delivery Units,Adults and Communities,Direct Transfer Payments to So,90073484,REDACTED - PERSONAL DATA,"1,009.68",27/04/2018
Delivery Units,Adults and Communities,Direct Transfer Payments to So,90073497,REDACTED - PERSONAL DATA, 384.00 ,27/04/2018
Delivery Units,Adults and Communities,Direct Transfer Payments to So,90073501,REDACTED - PERSONAL DATA, 572.36 ,27/04/2018
Delivery Units,Adults and Communities,Direct Transfer Payments to So,90073504,REDACTED - PERSONAL DATA,"2,931.20",27/04/2018
Delivery Units,Adults and Communities,Direct Transfer Payments to So,90073506,REDACTED - PERSONAL DATA, 732.72 ,27/04/2018
Delivery Units,Adults and Communities,Direct Transfer Payments to So,90073513,REDACTED - PERSONAL DATA, 520.00 ,27/04/2018
Delivery Units,Adults and Communities,Direct Transfer Payments to So,90073515,REDACTED - PERSONAL DATA,"2,684.48",27/04/2018
Delivery Units,Adults and Communities,Direct Transfer Payments to So,90073518,REDACTED - PERSONAL DATA, 368.00 ,27/04/2018
Delivery Units,Adults and Communities,Direct Transfer Payments to So,90073520,REDACTED - PERSONAL DATA, 409.08 ,27/04/2018
Delivery Units,Adults and Communities,Direct Transfer Payments to So,90073534,REDACTED - PERSONAL DATA," 1,802.12 ",27/04/2018
Delivery Units,Adults and Communities,Direct Transfer Payments to So,90073537,REDACTED - PERSONAL DATA, 588.96 ,27/04/2018
Delivery Units,Adults and Communities,Direct Transfer Payments to So,90073539,REDACTED - PERSONAL DATA," 3,727.68 ",27/04/2018
Delivery Units,Adults and Communities,Direct Transfer Payments to So,90073551,REDACTED - PERSONAL DATA,409.00,27/04/2018
Delivery Units,Adults and Communities,Direct Transfer Payments to So,90073552,REDACTED - PERSONAL DATA," 3,717.36 ",27/04/2018
Delivery Units,Adults and Communities,Direct Transfer Payments to So,90073553,REDACTED - PERSONAL DATA," 1,905.28 ",27/04/2018
Delivery Units,Adults and Communities,Direct Transfer Payments to So,90073555,REDACTED - PERSONAL DATA,"4,133.60",27/04/2018
Delivery Units,Adults and Communities,Direct Transfer Payments to So,90073557,REDACTED - PERSONAL DATA,"6,721.20",27/04/2018
Delivery Units,Adults and Communities,Direct Transfer Payments to So,90073559,REDACTED - PERSONAL DATA," 1,105.84 ",27/04/2018
Delivery Units,Adults and Communities,Direct Transfer Payments to So,90073562,REDACTED - PERSONAL DATA," 1,248.16 ",27/04/2018
Delivery Units,Adults and Communities,Direct Transfer Payments to So,90073563,REDACTED - PERSONAL DATA,699.64,27/04/2018
Delivery Units,Adults and Communities,Direct Transfer Payments to So,90073564,REDACTED - PERSONAL DATA, 732.64 ,27/04/2018
Delivery Units,Adults and Communities,Direct Transfer Payments to So,90073566,REDACTED - PERSONAL DATA,"1,048.24",27/04/2018
Delivery Units,Adults and Communities,Direct Transfer Payments to So,90073567,REDACTED - PERSONAL DATA, 913.52 ,27/04/2018
Delivery Units,Adults and Communities,Direct Transfer Payments to So,90073571,REDACTED - PERSONAL DATA, 448.00 ,27/04/2018
Delivery Units,Adults and Communities,Direct Transfer Payments to So,90073577,REDACTED - PERSONAL DATA,"2,580.00",27/04/2018
Delivery Units,Adults and Communities,Direct Transfer Payments to So,90073585,REDACTED - PERSONAL DATA, 670.00 ,27/04/2018
Delivery Units,Adults and Communities,Direct Transfer Payments to So,90073596,REDACTED - PERSONAL DATA, 364.00 ,27/04/2018
Delivery Units,Adults and Communities,Direct Transfer Payments to So,90073604,REDACTED - PERSONAL DATA,"6,272.00",27/04/2018
Delivery Units,Adults and Communities,Direct Transfer Payments to So,90073606,REDACTED - PERSONAL DATA," 1,260.00 ",27/04/2018
Delivery Units,Adults and Communities,Direct Transfer Payments to So,90073613,REDACTED - PERSONAL DATA," 1,638.16 ",27/04/2018
Delivery Units,Adults and Communities,Direct Transfer Payments to So,90073616,REDACTED - PERSONAL DATA," 5,344.00 ",27/04/2018
Delivery Units,Adults and Communities,Direct Transfer Payments to So,90073617,REDACTED - PERSONAL DATA," 1,309.00 ",27/04/2018
Delivery Units,Adults and Communities,Direct Transfer Payments to So,90073621,REDACTED - PERSONAL DATA," 2,976.00 ",27/04/2018
Delivery Units,Adults and Communities,Direct Transfer Payments to So,90073622,REDACTED - PERSONAL DATA," 2,852.68 ",27/04/2018
Delivery Units,Adults and Communities,Direct Transfer Payments to So,90073623,REDACTED - PERSONAL DATA, 552.00 ,27/04/2018
Delivery Units,Adults and Communities,Direct Transfer Payments to So,90073624,REDACTED - PERSONAL DATA, 432.72 ,27/04/2018
Delivery Units,Adults and Communities,Direct Transfer Payments to So,90073625,REDACTED - PERSONAL DATA, 687.12 ,27/04/2018
Delivery Units,Adults and Communities,Direct Transfer Payments to So,90073627,REDACTED - PERSONAL DATA," 1,472.32 ",27/04/2018
Delivery Units,Adults and Communities,Direct Transfer Payments to So,90073637,REDACTED - PERSONAL DATA,"1,501.04",27/04/2018
Delivery Units,Adults and Communities,Direct Transfer Payments to So,90073641,REDACTED - PERSONAL DATA," 1,786.40 ",27/04/2018
Delivery Units,Adults and Communities,Direct Transfer Payments to So,90073642,REDACTED - PERSONAL DATA,"1,545.32",27/04/2018
Delivery Units,Adults and Communities,Direct Transfer Payments to So,90073656,REDACTED - PERSONAL DATA, 480.76 ,27/04/2018
Delivery Units,Adults and Communities,Direct Transfer Payments to So,90073661,REDACTED - PERSONAL DATA,286.00,27/04/2018
Delivery Units,Adults and Communities,Direct Transfer Payments to So,90073662,REDACTED - PERSONAL DATA,968.80,27/04/2018
Delivery Units,Adults and Communities,Direct Transfer Payments to So,90073665,REDACTED - PERSONAL DATA, 700.00 ,27/04/2018
Delivery Units,Adults and Communities,Direct Transfer Payments to So,90073667,REDACTED - PERSONAL DATA," 1,005.12 ",27/04/2018
Delivery Units,Adults and Communities,Direct Transfer Payments to So,90073668,REDACTED - PERSONAL DATA,360.00,27/04/2018
Delivery Units,Adults and Communities,Direct Transfer Payments to So,90073672,REDACTED - PERSONAL DATA,80.00,27/04/2018
Delivery Units,Adults and Communities,Direct Transfer Payments to So,90073674,REDACTED - PERSONAL DATA,232.00,27/04/2018
Delivery Units,Adults and Communities,Direct Transfer Payments to So,90073677,REDACTED - PERSONAL DATA,"1,312.48",27/04/2018
Delivery Units,Adults and Communities,Direct Transfer Payments to So,90073680,REDACTED - PERSONAL DATA,480.08,27/04/2018
Delivery Units,Adults and Communities,Direct Transfer Payments to So,90073681,REDACTED - PERSONAL DATA,193.60,27/04/2018
Delivery Units,Adults and Communities,Direct Transfer Payments to So,90073686,REDACTED - PERSONAL DATA, 649.08 ,27/04/2018
Delivery Units,Adults and Communities,Direct Transfer Payments to So,90073688,REDACTED - PERSONAL DATA,420.00,27/04/2018
Delivery Units,Adults and Communities,Direct Transfer Payments to So,90073692,REDACTED - PERSONAL DATA, 900.00 ,27/04/2018
Delivery Units,Adults and Communities,Direct Transfer Payments to So,90073693,REDACTED - PERSONAL DATA,440.00,27/04/2018
Delivery Units,Adults and Communities,Direct Transfer Payments to So,90073699,REDACTED - PERSONAL DATA,679.60,27/04/2018
Delivery Units,Adults and Communities,Direct Transfer Payments to So,90073700,REDACTED - PERSONAL DATA, 432.00 ,27/04/2018
Delivery Units,Adults and Communities,Direct Transfer Payments to So,90073703,REDACTED - PERSONAL DATA, 202.00 ,27/04/2018
Delivery Units,Adults and Communities,Direct Transfer Payments to So,90073707,REDACTED - PERSONAL DATA, 560.00 ,27/04/2018
Delivery Units,Adults and Communities,Direct Transfer Payments to So,90073708,REDACTED - PERSONAL DATA, 426.96 ,27/04/2018
Delivery Units,Adults and Communities,Direct Transfer Payments to So,90073709,REDACTED - PERSONAL DATA," 2,298.44 ",27/04/2018
Delivery Units,Adults and Communities,Direct Transfer Payments to So,90073713,REDACTED - PERSONAL DATA," 1,092.00 ",27/04/2018
Delivery Units,Adults and Communities,Direct Transfer Payments to So,90073714,REDACTED - PERSONAL DATA," 1,400.00 ",27/04/2018
Delivery Units,Adults and Communities,Direct Transfer Payments to So,90073716,REDACTED - PERSONAL DATA, 280.00 ,27/04/2018
Delivery Units,Adults and Communities,Direct Transfer Payments to So,90073717,REDACTED - PERSONAL DATA,"1,440.00",27/04/2018
Delivery Units,Adults and Communities,Direct Transfer Payments to So,90073718,REDACTED - PERSONAL DATA, 870.00 ,27/04/2018
Delivery Units,Adults and Communities,Direct Transfer Payments to So,90073719,REDACTED - PERSONAL DATA, 200.00 ,27/04/2018
Delivery Units,Adults and Communities,Direct Transfer Payments to So,90073721,REDACTED - PERSONAL DATA,321.80,27/04/2018
Delivery Units,Adults and Communities,Direct Transfer Payments to So,90073723,REDACTED - PERSONAL DATA," 1,673.36 ",27/04/2018
Delivery Units,Adults and Communities,Direct Transfer Payments to So,90073726,REDACTED - PERSONAL DATA," 1,346.24 ",27/04/2018
Delivery Units,Adults and Communities,Direct Transfer Payments to So,90073728,REDACTED - PERSONAL DATA," 3,173.00 ",27/04/2018
Delivery Units,Adults and Communities,Direct Transfer Payments to So,90073729,REDACTED - PERSONAL DATA, 610.60 ,27/04/2018
Delivery Units,Adults and Communities,Direct Transfer Payments to So,90073733,REDACTED - PERSONAL DATA," 1,802.08 ",27/04/2018
Delivery Units,Adults and Communities,Direct Transfer Payments to So,90073738,REDACTED - PERSONAL DATA,697.80,27/04/2018
Delivery Units,Adults and Communities,Direct Transfer Payments to So,90073739,REDACTED - PERSONAL DATA,779.44,27/04/2018
Delivery Units,Adults and Communities,Direct Transfer Payments to So,90073742,REDACTED - PERSONAL DATA,"1,063.72",27/04/2018
Delivery Units,Adults and Communities,Direct Transfer Payments to So,90073743,REDACTED - PERSONAL DATA," 1,268.28 ",27/04/2018
Delivery Units,Adults and Communities,Direct Transfer Payments to So,90073744,REDACTED - PERSONAL DATA,"2,240.00",27/04/2018
Delivery Units,Adults and Communities,Direct Transfer Payments to So,90073747,REDACTED - PERSONAL DATA,218.24,27/04/2018
Delivery Units,Adults and Communities,Direct Transfer Payments to So,90073749,REDACTED - PERSONAL DATA,280.00,27/04/2018
Delivery Units,Adults and Communities,Direct Transfer Payments to So,90073754,REDACTED - PERSONAL DATA," 1,520.00 ",27/04/2018
Delivery Units,Adults and Communities,Direct Transfer Payments to So,90073760,REDACTED - PERSONAL DATA, 384.00 ,27/04/2018
Delivery Units,Adults and Communities,Direct Transfer Payments to So,90073762,REDACTED - PERSONAL DATA,"1,344.00",27/04/2018
Delivery Units,Adults and Communities,Direct Transfer Payments to So,90073763,REDACTED - PERSONAL DATA," 2,436.00 ",27/04/2018
Delivery Units,Adults and Communities,Direct Transfer Payments to So,90073768,REDACTED - PERSONAL DATA,442.88,27/04/2018
Delivery Units,Adults and Communities,Direct Transfer Payments to So,90073771,REDACTED - PERSONAL DATA, 772.32 ,27/04/2018
Delivery Units,Adults and Communities,Direct Transfer Payments to So,90073774,REDACTED - PERSONAL DATA," 2,258.20 ",27/04/2018
Delivery Units,Adults and Communities,Direct Transfer Payments to So,90073776,REDACTED - PERSONAL DATA," 2,600.00 ",27/04/2018
Delivery Units,Adults and Communities,Direct Transfer Payments to So,90073779,REDACTED - PERSONAL DATA,795.56,27/04/2018
Delivery Units,Adults and Communities,Direct Transfer Payments to So,90073781,REDACTED - PERSONAL DATA," 2,520.00 ",27/04/2018
Delivery Units,Adults and Communities,Direct Transfer Payments to So,90073783,REDACTED - PERSONAL DATA, 740.16 ,27/04/2018
Delivery Units,Adults and Communities,Direct Transfer Payments to So,90073786,REDACTED - PERSONAL DATA, 514.88 ,27/04/2018
Delivery Units,Adults and Communities,Direct Transfer Payments to So,90073790,REDACTED - PERSONAL DATA, 473.60 ,27/04/2018
Delivery Units,Adults and Communities,Direct Transfer Payments to So,90073791,REDACTED - PERSONAL DATA,279.12,27/04/2018
Delivery Units,Adults and Communities,Direct Transfer Payments to So,90073798,REDACTED - PERSONAL DATA, 347.20 ,27/04/2018
Delivery Units,Adults and Communities,Direct Transfer Payments to So,90073799,REDACTED - PERSONAL DATA, 144.24 ,27/04/2018
Delivery Units,Adults and Communities,Direct Transfer Payments to So,90073803,REDACTED - PERSONAL DATA,"1,550.84",27/04/2018
Delivery Units,Adults and Communities,Direct Transfer Payments to So,90073805,REDACTED - PERSONAL DATA," 2,092.96 ",27/04/2018
Delivery Units,Adults and Communities,Direct Transfer Payments to So,90073808,REDACTED - PERSONAL DATA," 1,351.56 ",27/04/2018
Delivery Units,Adults and Communities,Direct Transfer Payments to So,90073810,REDACTED - PERSONAL DATA, 675.80 ,27/04/2018
Delivery Units,Adults and Communities,Direct Transfer Payments to So,90073811,REDACTED - PERSONAL DATA," 3,260.00 ",27/04/2018
Delivery Units,Adults and Communities,Direct Transfer Payments to So,90073812,REDACTED - PERSONAL DATA,998.24,27/04/2018
Delivery Units,Adults and Communities,Direct Transfer Payments to So,90073816,REDACTED - PERSONAL DATA, 160.00 ,27/04/2018
Delivery Units,Adults and Communities,Direct Transfer Payments to So,90073817,REDACTED - PERSONAL DATA,"3,000.00",27/04/2018
Delivery Units,Adults and Communities,Direct Transfer Payments to So,90073818,REDACTED - PERSONAL DATA,"1,092.00",27/04/2018
Delivery Units,Adults and Communities,Direct Transfer Payments to So,90073819,REDACTED - PERSONAL DATA, 333.84 ,27/04/2018
Delivery Units,Adults and Communities,Direct Transfer Payments to So,90073821,REDACTED - PERSONAL DATA,585.24,27/04/2018
Delivery Units,Adults and Communities,Direct Transfer Payments to So,90073823,REDACTED - PERSONAL DATA," 1,113.44 ",27/04/2018
Delivery Units,Adults and Communities,Direct Transfer Payments to So,90073824,REDACTED - PERSONAL DATA," 1,164.24 ",27/04/2018
Delivery Units,Adults and Communities,Direct Transfer Payments to So,90073825,REDACTED - PERSONAL DATA, 540.00 ,27/04/2018
Delivery Units,Adults and Communities,Direct Transfer Payments to So,90073827,REDACTED - PERSONAL DATA,"1,061.56",27/04/2018
Delivery Units,Adults and Communities,Direct Transfer Payments to So,90074461,REDACTED - PERSONAL DATA, 961.60 ,30/04/2018
Delivery Units,Adults and Communities,Direct Transfer Payments to So,90074462,REDACTED - PERSONAL DATA,"1,544.64",30/04/2018
Delivery Units,Adults and Communities,Direct Transfer Payments to So,90074464,REDACTED - PERSONAL DATA,"1,586.64",30/04/2018
Delivery Units,Adults and Communities,Direct Transfer Payments to So,90074466,REDACTED - PERSONAL DATA,640.00,30/04/2018
Delivery Units,Adults and Communities,Direct Transfer Payments to So,90074467,REDACTED - PERSONAL DATA, 985.64 ,30/04/2018
Delivery Units,Adults and Communities,Direct Transfer Payments to So,90074472,REDACTED - PERSONAL DATA,336.56,30/04/2018
Delivery Units,Adults and Communities,Direct Transfer Payments to So,90074476,REDACTED - PERSONAL DATA,780.92,30/04/2018
Delivery Units,Adults and Communities,Direct Transfer Payments to So,90074485,REDACTED - PERSONAL DATA,"7,616.00",30/04/2018
Delivery Units,Adults and Communities,Direct Transfer Payments to So,90074487,REDACTED - PERSONAL DATA, 282.80 ,30/04/2018
Delivery Units,Adults and Communities,Direct Transfer Payments to So,90074488,REDACTED - PERSONAL DATA, 520.00 ,30/04/2018
Delivery Units,Adults and Communities,Direct Transfer Payments to So,90074489,REDACTED - PERSONAL DATA, 700.00 ,30/04/2018
Delivery Units,Adults and Communities,Direct Transfer Payments to So,90074490,REDACTED - PERSONAL DATA,"1,766.96",30/04/2018
Delivery Units,Adults and Communities,Direct Transfer Payments to So,90074496,REDACTED - PERSONAL DATA, 837.68 ,30/04/2018
Delivery Units,Adults and Communities,Direct Transfer Payments to So,90074498,REDACTED - PERSONAL DATA,817.36,30/04/2018
Delivery Units,Adults and Communities,Direct Transfer Payments to So,90074507,REDACTED - PERSONAL DATA," 2,005.04 ",30/04/2018
Delivery Units,Adults and Communities,Direct Transfer Payments to So,90074512,REDACTED - PERSONAL DATA,478.64,30/04/2018
Delivery Units,Adults and Communities,Direct Transfer Payments to So,90074514,REDACTED - PERSONAL DATA, 600.00 ,30/04/2018
Delivery Units,Adults and Communities,Direct Transfer Payments to So,90074515,REDACTED - PERSONAL DATA,"2,091.48",30/04/2018
Delivery Units,Adults and Communities,Direct Transfer Payments to So,90074518,REDACTED - PERSONAL DATA, 142.12 ,30/04/2018
Delivery Units,Adults and Communities,Direct Transfer Payments to So,90074519,REDACTED - PERSONAL DATA,"2,400.00",30/04/2018
Delivery Units,Adults and Communities,Direct Transfer Payments to So,90074522,REDACTED - PERSONAL DATA," 1,730.88 ",30/04/2018
Delivery Units,Adults and Communities,Direct Transfer Payments to So,90074523,REDACTED - PERSONAL DATA,488.44,30/04/2018
Delivery Units,Adults and Communities,Direct Transfer Payments to So,90074525,REDACTED - PERSONAL DATA,349.12,30/04/2018
Delivery Units,Adults and Communities,Direct Transfer Payments to So,90074527,REDACTED - PERSONAL DATA,"1,081.80",30/04/2018
Delivery Units,Adults and Communities,Direct Transfer Payments to So,90074530,REDACTED - PERSONAL DATA, 709.20 ,30/04/2018
Delivery Units,Adults and Communities,Direct Transfer Payments to So,90074533,REDACTED - PERSONAL DATA,673.12,30/04/2018
Delivery Units,Adults and Communities,Direct Transfer Payments to So,90074534,REDACTED - PERSONAL DATA,288.48,30/04/2018
Delivery Units,Adults and Communities,Direct Transfer Payments to So,90074535,REDACTED - PERSONAL DATA,708.00,30/04/2018
Delivery Units,Adults and Communities,Direct Transfer Payments to So,90074544,REDACTED - PERSONAL DATA,228.36,30/04/2018
Delivery Units,Adults and Communities,Direct Transfer Payments to So,90074556,REDACTED - PERSONAL DATA," 1,113.84 ",30/04/2018
Delivery Units,Adults and Communities,Direct Transfer Payments to So,90074559,REDACTED - PERSONAL DATA," 3,846.40 ",30/04/2018
Delivery Units,Adults and Communities,Direct Transfer Payments to So,90074561,REDACTED - PERSONAL DATA," 1,000.00 ",30/04/2018
Delivery Units,Adults and Communities,Direct Transfer Payments to So,90074569,REDACTED - PERSONAL DATA," 1,187.20 ",30/04/2018
Delivery Units,Adults and Communities,Direct Transfer Payments to So,90074570,REDACTED - PERSONAL DATA," 1,495.68 ",30/04/2018
Delivery Units,Adults and Communities,Direct Transfer Payments to So,90074572,REDACTED - PERSONAL DATA,288.08,30/04/2018
Delivery Units,Adults and Communities,Direct Transfer Payments to So,90074574,REDACTED - PERSONAL DATA,360.60,30/04/2018
Delivery Units,Adults and Communities,Direct Transfer Payments to So,90074577,REDACTED - PERSONAL DATA, 521.40 ,30/04/2018
Delivery Units,Adults and Communities,Direct Transfer Payments to So,90074578,REDACTED - PERSONAL DATA,576.00,30/04/2018
Delivery Units,Adults and Communities,Direct Transfer Payments to So,90074580,REDACTED - PERSONAL DATA,408.68,30/04/2018
Delivery Units,Adults and Communities,Direct Transfer Payments to So,90074587,REDACTED - PERSONAL DATA,"1,360.00",30/04/2018
Delivery Units,Adults and Communities,Direct Transfer Payments to So,90074591,REDACTED - PERSONAL DATA,601.00,30/04/2018
Delivery Units,Adults and Communities,Direct Transfer Payments to So,90074593,REDACTED - PERSONAL DATA, 800.00 ,30/04/2018
Delivery Units,Adults and Communities,Direct Transfer Payments to So,90074597,REDACTED - PERSONAL DATA, 409.08 ,30/04/2018
Delivery Units,Adults and Communities,Direct Transfer Payments to So,90074599,REDACTED - PERSONAL DATA, 660.00 ,30/04/2018
Delivery Units,Adults and Communities,Direct Transfer Payments to So,90074602,REDACTED - PERSONAL DATA, 528.88 ,30/04/2018
Delivery Units,Adults and Communities,Direct Transfer Payments to So,90074604,REDACTED - PERSONAL DATA, 770.40 ,30/04/2018
Delivery Units,Adults and Communities,Direct Transfer Payments to So,90074608,REDACTED - PERSONAL DATA,"1,185.00",30/04/2018
Delivery Units,Adults and Communities,Direct Transfer Payments to So,90074614,REDACTED - PERSONAL DATA,"1,803.68",30/04/2018
Delivery Units,Adults and Communities,Direct Transfer Payments to So,90074615,REDACTED - PERSONAL DATA," 1,525.44 ",30/04/2018
Delivery Units,Adults and Communities,Direct Transfer Payments to So,90074623,REDACTED - PERSONAL DATA, 354.24 ,30/04/2018
Delivery Units,Adults and Communities,Direct Transfer Payments to So,90074628,REDACTED - PERSONAL DATA," 2,200.00 ",30/04/2018
Delivery Units,Adults and Communities,Direct Transfer Payments to So,90074631,REDACTED - PERSONAL DATA, 455.20 ,30/04/2018
Delivery Units,Adults and Communities,Direct Transfer Payments to So,90074634,REDACTED - PERSONAL DATA," 1,869.00 ",30/04/2018
Delivery Units,Adults and Communities,Direct Transfer Payments to So,90074638,REDACTED - PERSONAL DATA," 1,015.00 ",30/04/2018
Delivery Units,Adults and Communities,Direct Transfer Payments to So,90074639,REDACTED - PERSONAL DATA," 2,066.00 ",30/04/2018
Delivery Units,Adults and Communities,Direct Transfer Payments to So,90074640,REDACTED - PERSONAL DATA, 728.00 ,30/04/2018
Delivery Units,Adults and Communities,Direct Transfer Payments to So,90074641,REDACTED - PERSONAL DATA, 520.00 ,30/04/2018
Delivery Units,Adults and Communities,Direct Transfer Payments to So,90074644,REDACTED - PERSONAL DATA," 2,813.00 ",30/04/2018
Delivery Units,Adults and Communities,Direct Transfer Payments to So,90074645,REDACTED - PERSONAL DATA, 348.00 ,30/04/2018
Delivery Units,Adults and Communities,Direct Transfer Payments to So,90074651,REDACTED - PERSONAL DATA," 3,266.48 ",30/04/2018
Delivery Units,Adults and Communities,Direct Transfer Payments to So,90074655,REDACTED - PERSONAL DATA,398.08,30/04/2018
Delivery Units,Adults and Communities,Direct Transfer Payments to So,90074657,REDACTED - PERSONAL DATA, 563.16 ,30/04/2018
Delivery Units,Adults and Communities,Direct Transfer Payments to So,90074658,REDACTED - PERSONAL DATA,264.44,30/04/2018
Delivery Units,Adults and Communities,Direct Transfer Payments to So,90074663,REDACTED - PERSONAL DATA,"2,828.00",30/04/2018
Delivery Units,Adults and Communities,Direct Transfer Payments to So,90074666,REDACTED - PERSONAL DATA, 271.60 ,30/04/2018
Delivery Units,Adults and Communities,Direct Transfer Payments to So,90074667,REDACTED - PERSONAL DATA, 581.28 ,30/04/2018
Delivery Units,Adults and Communities,Direct Transfer Payments to So,90074671,REDACTED - PERSONAL DATA,"1,660.80",30/04/2018
Delivery Units,Adults and Communities,Direct Transfer Payments to So,90074672,REDACTED - PERSONAL DATA,"2,338.96",30/04/2018
Delivery Units,Adults and Communities,Direct Transfer Payments to So,90074674,REDACTED - PERSONAL DATA,"1,292.04",30/04/2018
Delivery Units,Adults and Communities,Direct Transfer Payments to So,90074675,REDACTED - PERSONAL DATA, 800.00 ,30/04/2018
Delivery Units,Adults and Communities,Direct Transfer Payments to So,90074678,REDACTED - PERSONAL DATA,"3,451.44",30/04/2018
Delivery Units,Adults and Communities,Direct Transfer Payments to So,90074688,REDACTED - PERSONAL DATA,170.04,30/04/2018
Delivery Units,Adults and Communities,Direct Transfer Payments to So,90074689,REDACTED - PERSONAL DATA,"1,300.00",30/04/2018
Delivery Units,Adults and Communities,Direct Transfer Payments to So,90074693,REDACTED - PERSONAL DATA,609.64,30/04/2018
Delivery Units,Adults and Communities,Direct Transfer Payments to So,90074698,REDACTED - PERSONAL DATA,"2,325.12",30/04/2018
Delivery Units,Adults and Communities,Direct Transfer Payments to So,90074699,REDACTED - PERSONAL DATA,"2,389.40",30/04/2018
Delivery Units,Adults and Communities,Direct Transfer Payments to So,90074700,REDACTED - PERSONAL DATA, 240.00 ,30/04/2018
Delivery Units,Adults and Communities,Direct Transfer Payments to So,90074703,REDACTED - PERSONAL DATA, 628.00 ,30/04/2018
Delivery Units,Adults and Communities,Direct Transfer Payments to So,90074706,REDACTED - PERSONAL DATA, 355.76 ,30/04/2018
Delivery Units,Adults and Communities,Direct Transfer Payments to So,90074707,REDACTED - PERSONAL DATA,"1,009.68",30/04/2018
Delivery Units,Adults and Communities,Direct Transfer Payments to So,90074708,REDACTED - PERSONAL DATA,362.48,30/04/2018
Delivery Units,Adults and Communities,Direct Transfer Payments to So,90074712,REDACTED - PERSONAL DATA," 1,025.96 ",30/04/2018
Delivery Units,Adults and Communities,Direct Transfer Payments to So,90074714,REDACTED - PERSONAL DATA,480.80,30/04/2018
Delivery Units,Adults and Communities,Direct Transfer Payments to So,90074718,REDACTED - PERSONAL DATA, 480.80 ,30/04/2018
Delivery Units,Adults and Communities,Direct Transfer Payments to So,90074720,REDACTED - PERSONAL DATA,"2,211.80",30/04/2018
Delivery Units,Adults and Communities,Direct Transfer Payments to So,90074721,REDACTED - PERSONAL DATA," 1,827.00 ",30/04/2018
Delivery Units,Adults and Communities,Direct Transfer Payments to So,90074722,REDACTED - PERSONAL DATA, 917.28 ,30/04/2018
Delivery Units,Adults and Communities,Direct Transfer Payments to So,90074724,REDACTED - PERSONAL DATA," 1,029.76 ",30/04/2018
Delivery Units,Adults and Communities,Direct Transfer Payments to So,90074725,REDACTED - PERSONAL DATA, 144.24 ,30/04/2018
Delivery Units,Adults and Communities,Direct Transfer Payments to So,90074733,REDACTED - PERSONAL DATA,24.60,30/04/2018
Delivery Units,Adults and Communities,Direct Transfer Payments to So,90074738,REDACTED - PERSONAL DATA, 408.00 ,30/04/2018
Delivery Units,Adults and Communities,Direct Transfer Payments to So,90069010,WIRECARD - ADULT SERVICES," 8,624.00 ",11/04/2018
Delivery Units,Adults and Communities,Direct Transfer Payments to So,90073529,WIRECARD - ADULT SERVICES, 280.00 ,27/04/2018
Delivery Units,Adults and Communities,Direct Transfer Payments to So,90073530,WIRECARD - ADULT SERVICES,144.24,27/04/2018
Delivery Units,Adults and Communities,Direct Transfer Payments to So,90073531,WIRECARD - ADULT SERVICES,462.00,27/04/2018
Delivery Units,Adults and Communities,Direct Transfer Payments to So,90073532,WIRECARD - ADULT SERVICES, 26.20 ,27/04/2018
Delivery Units,Adults and Communities,Direct Transfer Payments to So,90073548,WIRECARD - ADULT SERVICES, 192.00 ,27/04/2018
Delivery Units,Adults and Communities,Direct Transfer Payments to So,90073550,WIRECARD - ADULT SERVICES,"1,118.64",27/04/2018
Delivery Units,Adults and Communities,Direct Transfer Payments to So,90073578,WIRECARD - ADULT SERVICES,531.80,27/04/2018
Delivery Units,Adults and Communities,Direct Transfer Payments to So,90073579,WIRECARD - ADULT SERVICES, 301.20 ,27/04/2018
Delivery Units,Adults and Communities,Direct Transfer Payments to So,90073597,WIRECARD - ADULT SERVICES, 754.76 ,27/04/2018
Delivery Units,Adults and Communities,Direct Transfer Payments to So,90073598,WIRECARD - ADULT SERVICES,846.08,27/04/2018
Delivery Units,Adults and Communities,Direct Transfer Payments to So,90073599,WIRECARD - ADULT SERVICES,384.64,27/04/2018
Delivery Units,Adults and Communities,Direct Transfer Payments to So,90073600,WIRECARD - ADULT SERVICES, 186.48 ,27/04/2018
Delivery Units,Adults and Communities,Direct Transfer Payments to So,90073601,WIRECARD - ADULT SERVICES,372.00,27/04/2018
Delivery Units,Adults and Communities,Direct Transfer Payments to So,90073602,WIRECARD - ADULT SERVICES, 192.00 ,27/04/2018
Delivery Units,Adults and Communities,Direct Transfer Payments to So,90073603,WIRECARD - ADULT SERVICES,"1,612.56",27/04/2018
Delivery Units,Adults and Communities,Direct Transfer Payments to So,90073633,WIRECARD - ADULT SERVICES,480.80,27/04/2018
Delivery Units,Adults and Communities,Direct Transfer Payments to So,90073634,WIRECARD - ADULT SERVICES, 184.60 ,27/04/2018
Delivery Units,Adults and Communities,Direct Transfer Payments to So,90073635,WIRECARD - ADULT SERVICES,144.24,27/04/2018
Delivery Units,Adults and Communities,Direct Transfer Payments to So,90073640,WIRECARD - ADULT SERVICES, 138.48 ,27/04/2018
Delivery Units,Adults and Communities,Direct Transfer Payments to So,90073646,WIRECARD - ADULT SERVICES," 2,548.00 ",27/04/2018
Delivery Units,Adults and Communities,Direct Transfer Payments to So,90073647,WIRECARD - ADULT SERVICES, 336.00 ,27/04/2018
Delivery Units,Adults and Communities,Direct Transfer Payments to So,90073648,WIRECARD - ADULT SERVICES,350.80,27/04/2018
Delivery Units,Adults and Communities,Direct Transfer Payments to So,90073649,WIRECARD - ADULT SERVICES,535.84,27/04/2018
Delivery Units,Adults and Communities,Direct Transfer Payments to So,90073650,WIRECARD - ADULT SERVICES,"10,584.00",27/04/2018
Delivery Units,Adults and Communities,Direct Transfer Payments to So,90073651,WIRECARD - ADULT SERVICES, 70.00 ,27/04/2018
Delivery Units,Adults and Communities,Direct Transfer Payments to So,90073652,WIRECARD - ADULT SERVICES, 218.64 ,27/04/2018
Delivery Units,Adults and Communities,Direct Transfer Payments to So,90073653,WIRECARD - ADULT SERVICES, 92.32 ,27/04/2018
Delivery Units,Adults and Communities,Equipment and Materials Purcha,60102199,BACK CARE SOLUTIONS LIMITED, 583.95 ,25/04/2018
Delivery Units,Adults and Communities,Equipment and Materials Purcha,60101538,JOHN GRAHAM CONSTRUCTION LTD," 284,102.66 ",04/04/2018
Delivery Units,Adults and Communities,Equipment and Materials Purcha,60101576,JOHN GRAHAM CONSTRUCTION LTD," 257,889.07 ",06/04/2018
Delivery Units,Adults and Communities,Equipment and Materials Purcha,40002788,OFFICE DEPOT UK LTD,195.00,19/04/2018
Delivery Units,Adults and Communities,Fees and Charges,90068229,REDACTED - PERSONAL DATA,917.80,03/04/2018
Delivery Units,Adults and Communities,Fees and Charges,90068232,REDACTED - PERSONAL DATA,-192.60 ,03/04/2018
Delivery Units,Adults and Communities,Fees and Charges,90068233,REDACTED - PERSONAL DATA,(244.60),03/04/2018
Delivery Units,Adults and Communities,Fees and Charges,90068236,REDACTED - PERSONAL DATA,(137.40),03/04/2018
Delivery Units,Adults and Communities,Fees and Charges,90068259,REDACTED - PERSONAL DATA,0.56,03/04/2018
Delivery Units,Adults and Communities,Fees and Charges,90068265,REDACTED - PERSONAL DATA,-522.88 ,03/04/2018
Delivery Units,Adults and Communities,Fees and Charges,90068715,REDACTED - PERSONAL DATA,-184.00 ,03/04/2018
Delivery Units,Adults and Communities,Fees and Charges,90069009,REDACTED - PERSONAL DATA,"-7,830.34 ",11/04/2018
Delivery Units,Adults and Communities,Fees and Charges,90069011,REDACTED - PERSONAL DATA,-222.45 ,11/04/2018
Delivery Units,Adults and Communities,Fees and Charges,90069013,REDACTED - PERSONAL DATA,0.24,11/04/2018
Delivery Units,Adults and Communities,Fees and Charges,90071562,REDACTED - PERSONAL DATA,0.09,19/04/2018
Delivery Units,Adults and Communities,Fees and Charges,90071563,REDACTED - PERSONAL DATA, 0.05 ,19/04/2018
Delivery Units,Adults and Communities,Fees and Charges,90071566,REDACTED - PERSONAL DATA,-90.44 ,19/04/2018
Delivery Units,Adults and Communities,Fees and Charges,90071697,REDACTED - PERSONAL DATA,"1,126.95",20/04/2018
Delivery Units,Adults and Communities,Fees and Charges,90071704,REDACTED - PERSONAL DATA,"(5,367.60)",20/04/2018
Delivery Units,Adults and Communities,Fees and Charges,90071705,REDACTED - PERSONAL DATA,6.79,20/04/2018
Delivery Units,Adults and Communities,Fees and Charges,90071707,REDACTED - PERSONAL DATA,-249.88 ,20/04/2018
Delivery Units,Adults and Communities,Fees and Charges,90073435,REDACTED - PERSONAL DATA,(179.24),27/04/2018
Delivery Units,Adults and Communities,Fees and Charges,90073510,REDACTED - PERSONAL DATA,-143.24 ,27/04/2018
Delivery Units,Adults and Communities,Fees and Charges,90073524,REDACTED - PERSONAL DATA,-146.52 ,27/04/2018
Delivery Units,Adults and Communities,Fees and Charges,90073525,REDACTED - PERSONAL DATA,-301.84 ,27/04/2018
Delivery Units,Adults and Communities,Fees and Charges,90073526,REDACTED - PERSONAL DATA,-119.96 ,27/04/2018
Delivery Units,Adults and Communities,Fees and Charges,90073527,REDACTED - PERSONAL DATA,(273.80),27/04/2018
Delivery Units,Adults and Communities,Fees and Charges,90073528,REDACTED - PERSONAL DATA,-245.72 ,27/04/2018
Delivery Units,Adults and Communities,Fees and Charges,90073533,REDACTED - PERSONAL DATA,-494.04 ,27/04/2018
Delivery Units,Adults and Communities,Fees and Charges,90073541,REDACTED - PERSONAL DATA,(75.92),27/04/2018
Delivery Units,Adults and Communities,Fees and Charges,90073543,REDACTED - PERSONAL DATA,(75.96),27/04/2018
Delivery Units,Adults and Communities,Fees and Charges,90073544,REDACTED - PERSONAL DATA,-138.80 ,27/04/2018
Delivery Units,Adults and Communities,Fees and Charges,90073545,REDACTED - PERSONAL DATA,(127.40),27/04/2018
Delivery Units,Adults and Communities,Fees and Charges,90073546,REDACTED - PERSONAL DATA,(58.20),27/04/2018
Delivery Units,Adults and Communities,Fees and Charges,90073547,REDACTED - PERSONAL DATA,(271.80),27/04/2018
Delivery Units,Adults and Communities,Fees and Charges,90073572,REDACTED - PERSONAL DATA,(113.00),27/04/2018
Delivery Units,Adults and Communities,Fees and Charges,90073573,REDACTED - PERSONAL DATA,(39.04),27/04/2018
Delivery Units,Adults and Communities,Fees and Charges,90073574,REDACTED - PERSONAL DATA,-26.40 ,27/04/2018
Delivery Units,Adults and Communities,Fees and Charges,90073575,REDACTED - PERSONAL DATA,(63.84),27/04/2018
Delivery Units,Adults and Communities,Fees and Charges,90073576,REDACTED - PERSONAL DATA,(138.08),27/04/2018
Delivery Units,Adults and Communities,Fees and Charges,90073582,REDACTED - PERSONAL DATA,(327.20),27/04/2018
Delivery Units,Adults and Communities,Fees and Charges,90073586,REDACTED - PERSONAL DATA,-179.64 ,27/04/2018
Delivery Units,Adults and Communities,Fees and Charges,90073587,REDACTED - PERSONAL DATA,-74.80 ,27/04/2018
Delivery Units,Adults and Communities,Fees and Charges,90073588,REDACTED - PERSONAL DATA,-162.68 ,27/04/2018
Delivery Units,Adults and Communities,Fees and Charges,90073589,REDACTED - PERSONAL DATA,-72.20 ,27/04/2018
Delivery Units,Adults and Communities,Fees and Charges,90073590,REDACTED - PERSONAL DATA,(228.80),27/04/2018
Delivery Units,Adults and Communities,Fees and Charges,90073591,REDACTED - PERSONAL DATA,-21.12 ,27/04/2018
Delivery Units,Adults and Communities,Fees and Charges,90073592,REDACTED - PERSONAL DATA,-114.60 ,27/04/2018
Delivery Units,Adults and Communities,Fees and Charges,90073593,REDACTED - PERSONAL DATA,(170.80),27/04/2018
Delivery Units,Adults and Communities,Fees and Charges,90073594,REDACTED - PERSONAL DATA,-164.20 ,27/04/2018
Delivery Units,Adults and Communities,Fees and Charges,90073610,REDACTED - PERSONAL DATA,-191.84 ,27/04/2018
Delivery Units,Adults and Communities,Fees and Charges,90073626,REDACTED - PERSONAL DATA,(176.76),27/04/2018
Delivery Units,Adults and Communities,Fees and Charges,90073628,REDACTED - PERSONAL DATA,-191.68 ,27/04/2018
Delivery Units,Adults and Communities,Fees and Charges,90073629,REDACTED - PERSONAL DATA,-288.80 ,27/04/2018
Delivery Units,Adults and Communities,Fees and Charges,90073630,REDACTED - PERSONAL DATA,(158.12),27/04/2018
Delivery Units,Adults and Communities,Fees and Charges,90073631,REDACTED - PERSONAL DATA,-66.00 ,27/04/2018
Delivery Units,Adults and Communities,Fees and Charges,90073632,REDACTED - PERSONAL DATA,(23.20),27/04/2018
Delivery Units,Adults and Communities,Fees and Charges,90073638,REDACTED - PERSONAL DATA,(186.72),27/04/2018
Delivery Units,Adults and Communities,Fees and Charges,90073643,REDACTED - PERSONAL DATA,-57.96 ,27/04/2018
Delivery Units,Adults and Communities,Fees and Charges,90073644,REDACTED - PERSONAL DATA,-63.20 ,27/04/2018
Delivery Units,Adults and Communities,Fees and Charges,90073654,REDACTED - PERSONAL DATA,-115.08 ,27/04/2018
Delivery Units,Adults and Communities,Fees and Charges,90073655,REDACTED - PERSONAL DATA,-33.28 ,27/04/2018
Delivery Units,Adults and Communities,Fees and Charges,90074719,REDACTED - PERSONAL DATA,(340.12),30/04/2018
Delivery Units,Adults and Communities,Food Costs,60098780,MULLER MILK & INGREDIENTS, 1.56 ,10/04/2018
Delivery Units,Adults and Communities,Food Costs,60099974,MULLER MILK & INGREDIENTS, 1.56 ,10/04/2018
Delivery Units,Adults and Communities,Food Costs,60101303,MULLER MILK & INGREDIENTS, 1.56 ,06/04/2018
Delivery Units,Adults and Communities,Food Costs,60102161,MULLER MILK & INGREDIENTS, 1.56 ,17/04/2018
Delivery Units,Adults and Communities,Food Costs,60102216,MULLER MILK & INGREDIENTS,1.56,23/04/2018
Delivery Units,Adults and Communities,Food Costs,60102411,MULLER MILK & INGREDIENTS,1.56,27/04/2018
Delivery Units,Adults and Communities,Furniture-Purchase-Repair,60102948,NORTH LONDON LOCKSMITHS LTD, 75.00 ,23/04/2018
Delivery Units,Adults and Communities,Furniture-Purchase-Repair,60102981,NORTH LONDON LOCKSMITHS LTD, 75.00 ,23/04/2018
Delivery Units,Adults and Communities,Furniture-Purchase-Repair,60102983,NORTH LONDON LOCKSMITHS LTD, 75.00 ,23/04/2018
Delivery Units,Adults and Communities,Furniture-Purchase-Repair,60103054,NORTH LONDON LOCKSMITHS LTD, 75.00 ,23/04/2018
Delivery Units,Adults and Communities,Gas,60098846,KENT COUNTY COUNCIL (KCS), 253.48 ,10/04/2018
Delivery Units,Adults and Communities,General Office Expenses,40002801,OFFICE DEPOT UK LTD, 23.55 ,19/04/2018
Delivery Units,Adults and Communities,General Office Expenses,40002817,OFFICE DEPOT UK LTD," 2,964.00 ",25/04/2018
Delivery Units,Adults and Communities,Grounds maintenance,60102224,REDACTED - PERSONAL DATA, 80.00 ,10/04/2018
Delivery Units,Adults and Communities,Other Agencies - Third Party P,90074337,AARANDALE MANOR CARE HOME," 8,209.21 ",27/04/2018
Delivery Units,Adults and Communities,Other Agencies - Third Party P,90074338,AARANDALE MANOR CARE HOME," 2,321.80 ",27/04/2018
Delivery Units,Adults and Communities,Other Agencies - Third Party P,90074339,AARANDALE MANOR CARE HOME,"2,570.56",27/04/2018
Delivery Units,Adults and Communities,Other Agencies - Third Party P,90074340,AARANDALE MANOR CARE HOME," 2,487.64 ",27/04/2018
Delivery Units,Adults and Communities,Other Agencies - Third Party P,30179006,ABBEY RAVENSCROFT PARK NURSING HOME,"3,150.00",27/04/2018
Delivery Units,Adults and Communities,Other Agencies - Third Party P,30179007,ABBEY RAVENSCROFT PARK NURSING HOME,"1,700.00",27/04/2018
Delivery Units,Adults and Communities,Other Agencies - Third Party P,30179008,ABBEY RAVENSCROFT PARK NURSING HOME, 200.00 ,27/04/2018
Delivery Units,Adults and Communities,Other Agencies - Third Party P,90069260,ABBEY RAVENSCROFT PARK NURSING HOME,"3,000.00",13/04/2018
Delivery Units,Adults and Communities,Other Agencies - Third Party P,90070760,ABBEY RAVENSCROFT PARK NURSING HOME," 3,085.71 ",17/04/2018
Delivery Units,Adults and Communities,Other Agencies - Third Party P,90070761,ABBEY RAVENSCROFT PARK NURSING HOME,"3,214.29",17/04/2018
Delivery Units,Adults and Communities,Other Agencies - Third Party P,90070762,ABBEY RAVENSCROFT PARK NURSING HOME,"3,428.57",17/04/2018
Delivery Units,Adults and Communities,Other Agencies - Third Party P,90070763,ABBEY RAVENSCROFT PARK NURSING HOME,"3,000.00",17/04/2018
Delivery Units,Adults and Communities,Other Agencies - Third Party P,90070764,ABBEY RAVENSCROFT PARK NURSING HOME," 3,214.29 ",17/04/2018
Delivery Units,Adults and Communities,Other Agencies - Third Party P,90070765,ABBEY RAVENSCROFT PARK NURSING HOME," 3,150.00 ",17/04/2018
Delivery Units,Adults and Communities,Other Agencies - Third Party P,90070766,ABBEY RAVENSCROFT PARK NURSING HOME," 2,698.37 ",17/04/2018
Delivery Units,Adults and Communities,Other Agencies - Third Party P,90070767,ABBEY RAVENSCROFT PARK NURSING HOME," 2,698.37 ",17/04/2018
Delivery Units,Adults and Communities,Other Agencies - Third Party P,90070768,ABBEY RAVENSCROFT PARK NURSING HOME,"2,698.37",17/04/2018
Delivery Units,Adults and Communities,Other Agencies - Third Party P,90070769,ABBEY RAVENSCROFT PARK NURSING HOME,"3,428.57",17/04/2018
Delivery Units,Adults and Communities,Other Agencies - Third Party P,90070770,ABBEY RAVENSCROFT PARK NURSING HOME," 2,698.37 ",17/04/2018
Delivery Units,Adults and Communities,Other Agencies - Third Party P,90070771,ABBEY RAVENSCROFT PARK NURSING HOME," 2,698.37 ",17/04/2018
Delivery Units,Adults and Communities,Other Agencies - Third Party P,90070772,ABBEY RAVENSCROFT PARK NURSING HOME,"3,428.57",17/04/2018
Delivery Units,Adults and Communities,Other Agencies - Third Party P,90070773,ABBEY RAVENSCROFT PARK NURSING HOME,"3,150.00",17/04/2018
Delivery Units,Adults and Communities,Other Agencies - Third Party P,90070774,ABBEY RAVENSCROFT PARK NURSING HOME," 2,698.37 ",17/04/2018
Delivery Units,Adults and Communities,Other Agencies - Third Party P,90070775,ABBEY RAVENSCROFT PARK NURSING HOME,"2,698.37",17/04/2018
Delivery Units,Adults and Communities,Other Agencies - Third Party P,90070776,ABBEY RAVENSCROFT PARK NURSING HOME," 3,679.24 ",17/04/2018
Delivery Units,Adults and Communities,Other Agencies - Third Party P,90070777,ABBEY RAVENSCROFT PARK NURSING HOME,"3,150.00",17/04/2018
Delivery Units,Adults and Communities,Other Agencies - Third Party P,90070778,ABBEY RAVENSCROFT PARK NURSING HOME,"3,214.29",17/04/2018
Delivery Units,Adults and Communities,Other Agencies - Third Party P,90070779,ABBEY RAVENSCROFT PARK NURSING HOME,"3,214.29",17/04/2018
Delivery Units,Adults and Communities,Other Agencies - Third Party P,90070780,ABBEY RAVENSCROFT PARK NURSING HOME," 3,214.29 ",17/04/2018
Delivery Units,Adults and Communities,Other Agencies - Third Party P,90070781,ABBEY RAVENSCROFT PARK NURSING HOME," 2,698.37 ",17/04/2018
Delivery Units,Adults and Communities,Other Agencies - Third Party P,90070782,ABBEY RAVENSCROFT PARK NURSING HOME,"3,000.00",17/04/2018
Delivery Units,Adults and Communities,Other Agencies - Third Party P,90073104,ABBEY RAVENSCROFT PARK NURSING HOME,"3,107.14",25/04/2018
Delivery Units,Adults and Communities,Other Agencies - Third Party P,90073105,ABBEY RAVENSCROFT PARK NURSING HOME," 3,214.29 ",25/04/2018
Delivery Units,Adults and Communities,Other Agencies - Third Party P,90073106,ABBEY RAVENSCROFT PARK NURSING HOME,"3,150.00",25/04/2018
Delivery Units,Adults and Communities,Other Agencies - Third Party P,90074329,ABBEY RAVENSCROFT PARK NURSING HOME,"-1,392.86 ",27/04/2018
Delivery Units,Adults and Communities,Other Agencies - Third Party P,90068328,ABOUT ME CARE & SUPPORT LTD," 1,365.84 ",03/04/2018
Delivery Units,Adults and Communities,Other Agencies - Third Party P,90069082,ABOUT ME CARE & SUPPORT LTD," 1,365.84 ",11/04/2018
Delivery Units,Adults and Communities,Other Agencies - Third Party P,90069079,ACCEDO CARE LTD,"2,990.00",11/04/2018
Delivery Units,Adults and Communities,Other Agencies - Third Party P,90069080,ACCEDO CARE LTD,"2,990.00",11/04/2018
Delivery Units,Adults and Communities,Other Agencies - Third Party P,90069081,ACCEDO CARE LTD,"2,294.24",11/04/2018
Delivery Units,Adults and Communities,Other Agencies - Third Party P,30178487,ACER HEALTHCARE OPERATIONS LTD, 44.71 ,03/04/2018
Delivery Units,Adults and Communities,Other Agencies - Third Party P,30178488,ACER HEALTHCARE OPERATIONS LTD,401.78,03/04/2018
Delivery Units,Adults and Communities,Other Agencies - Third Party P,30178489,ACER HEALTHCARE OPERATIONS LTD,44.71,03/04/2018
Delivery Units,Adults and Communities,Other Agencies - Third Party P,90070159,ADARA HEALTHCARE LTD," 3,400.00 ",16/04/2018
Delivery Units,Adults and Communities,Other Agencies - Third Party P,90070928,AGUDAS ISRAEL HOUSING ASSCTN LTD, 928.00 ,17/04/2018
Delivery Units,Adults and Communities,Other Agencies - Third Party P,90070975,AGUDAS ISRAEL HOUSING ASSCTN LTD,"1,075.18",17/04/2018
Delivery Units,Adults and Communities,Other Agencies - Third Party P,90070976,AGUDAS ISRAEL HOUSING ASSCTN LTD,"7,936.50",17/04/2018
Delivery Units,Adults and Communities,Other Agencies - Third Party P,90069164,ALEXANDRA HOUSE (RUNWOOD HOMES)," 2,262.69 ",12/04/2018
Delivery Units,Adults and Communities,Other Agencies - Third Party P,90069175,ALEXANDRA HOUSE (RUNWOOD HOMES),"2,262.69",12/04/2018
Delivery Units,Adults and Communities,Other Agencies - Third Party P,90062188,ALL ABOUT CARE,"1,488.48",03/04/2018
Delivery Units,Adults and Communities,Other Agencies - Third Party P,90069178,ALL ABOUT CARE,"1,647.96",12/04/2018
Delivery Units,Adults and Communities,Other Agencies - Third Party P,80016951,ALLIED HEALTHCARE LTD,"1,801.47",30/04/2018
Delivery Units,Adults and Communities,Other Agencies - Third Party P,80016953,ALLIED HEALTHCARE LTD,"2,103.41",30/04/2018
Delivery Units,Adults and Communities,Other Agencies - Third Party P,80016954,ALLIED HEALTHCARE LTD," 2,149.95 ",30/04/2018
Delivery Units,Adults and Communities,Other Agencies - Third Party P,80016957,ALLIED HEALTHCARE LTD,"1,989.81",30/04/2018
Delivery Units,Adults and Communities,Other Agencies - Third Party P,80016960,ALLIED HEALTHCARE LTD, 64.53 ,24/04/2018
Delivery Units,Adults and Communities,Other Agencies - Third Party P,90068933,ALLIED HEALTHCARE LTD,76.33,03/04/2018
Delivery Units,Adults and Communities,Other Agencies - Third Party P,90068934,ALLIED HEALTHCARE LTD, 40.41 ,03/04/2018
Delivery Units,Adults and Communities,Other Agencies - Third Party P,90068935,ALLIED HEALTHCARE LTD,62.86,03/04/2018
Delivery Units,Adults and Communities,Other Agencies - Third Party P,90068936,ALLIED HEALTHCARE LTD,17.96,03/04/2018
Delivery Units,Adults and Communities,Other Agencies - Third Party P,90068937,ALLIED HEALTHCARE LTD, 89.80 ,03/04/2018
Delivery Units,Adults and Communities,Other Agencies - Third Party P,90068938,ALLIED HEALTHCARE LTD,188.58,03/04/2018
Delivery Units,Adults and Communities,Other Agencies - Third Party P,90068939,ALLIED HEALTHCARE LTD, 71.84 ,03/04/2018
Delivery Units,Adults and Communities,Other Agencies - Third Party P,90068940,ALLIED HEALTHCARE LTD,121.23,03/04/2018
Delivery Units,Adults and Communities,Other Agencies - Third Party P,90068941,ALLIED HEALTHCARE LTD,103.27,03/04/2018
Delivery Units,Adults and Communities,Other Agencies - Third Party P,90068942,ALLIED HEALTHCARE LTD,31.43,03/04/2018
Delivery Units,Adults and Communities,Other Agencies - Third Party P,90068943,ALLIED HEALTHCARE LTD, 107.76 ,03/04/2018
Delivery Units,Adults and Communities,Other Agencies - Third Party P,90068944,ALLIED HEALTHCARE LTD, 282.87 ,03/04/2018
Delivery Units,Adults and Communities,Other Agencies - Third Party P,90068945,ALLIED HEALTHCARE LTD,139.19,03/04/2018
Delivery Units,Adults and Communities,Other Agencies - Third Party P,90068946,ALLIED HEALTHCARE LTD, 143.68 ,03/04/2018
Delivery Units,Adults and Communities,Other Agencies - Third Party P,90068947,ALLIED HEALTHCARE LTD,175.11,03/04/2018
Delivery Units,Adults and Communities,Other Agencies - Third Party P,90068948,ALLIED HEALTHCARE LTD,677.99,03/04/2018
Delivery Units,Adults and Communities,Other Agencies - Third Party P,90068949,ALLIED HEALTHCARE LTD,157.15,03/04/2018
Delivery Units,Adults and Communities,Other Agencies - Third Party P,90068950,ALLIED HEALTHCARE LTD, 62.86 ,03/04/2018
Delivery Units,Adults and Communities,Other Agencies - Third Party P,90068951,ALLIED HEALTHCARE LTD, 44.90 ,03/04/2018
Delivery Units,Adults and Communities,Other Agencies - Third Party P,90068952,ALLIED HEALTHCARE LTD, 94.29 ,03/04/2018
Delivery Units,Adults and Communities,Other Agencies - Third Party P,90068953,ALLIED HEALTHCARE LTD, 197.56 ,03/04/2018
Delivery Units,Adults and Communities,Other Agencies - Third Party P,90068954,ALLIED HEALTHCARE LTD,35.92,03/04/2018
Delivery Units,Adults and Communities,Other Agencies - Third Party P,90068955,ALLIED HEALTHCARE LTD,76.33,03/04/2018
Delivery Units,Adults and Communities,Other Agencies - Third Party P,90068956,ALLIED HEALTHCARE LTD,255.93,03/04/2018
Delivery Units,Adults and Communities,Other Agencies - Third Party P,90068957,ALLIED HEALTHCARE LTD, 166.13 ,03/04/2018
Delivery Units,Adults and Communities,Other Agencies - Third Party P,90068958,ALLIED HEALTHCARE LTD,89.80,03/04/2018
Delivery Units,Adults and Communities,Other Agencies - Third Party P,90068959,ALLIED HEALTHCARE LTD,188.58,03/04/2018
Delivery Units,Adults and Communities,Other Agencies - Third Party P,90068960,ALLIED HEALTHCARE LTD,35.92,03/04/2018
Delivery Units,Adults and Communities,Other Agencies - Third Party P,90068961,ALLIED HEALTHCARE LTD, 440.02 ,03/04/2018
Delivery Units,Adults and Communities,Other Agencies - Third Party P,90068962,ALLIED HEALTHCARE LTD,197.56,03/04/2018
Delivery Units,Adults and Communities,Other Agencies - Third Party P,90068963,ALLIED HEALTHCARE LTD,282.87,03/04/2018
Delivery Units,Adults and Communities,Other Agencies - Third Party P,90068964,ALLIED HEALTHCARE LTD, 960.86 ,03/04/2018
Delivery Units,Adults and Communities,Other Agencies - Third Party P,90068965,ALLIED HEALTHCARE LTD,282.87,03/04/2018
Delivery Units,Adults and Communities,Other Agencies - Third Party P,90068966,ALLIED HEALTHCARE LTD,282.87,03/04/2018
Delivery Units,Adults and Communities,Other Agencies - Third Party P,90068967,ALLIED HEALTHCARE LTD, 345.73 ,03/04/2018
Delivery Units,Adults and Communities,Other Agencies - Third Party P,90068968,ALLIED HEALTHCARE LTD, 220.01 ,03/04/2018
Delivery Units,Adults and Communities,Other Agencies - Third Party P,90068969,ALLIED HEALTHCARE LTD,628.60,03/04/2018
Delivery Units,Adults and Communities,Other Agencies - Third Party P,90068970,ALLIED HEALTHCARE LTD, 188.58 ,03/04/2018
Delivery Units,Adults and Communities,Other Agencies - Third Party P,90068971,ALLIED HEALTHCARE LTD,71.84,03/04/2018
Delivery Units,Adults and Communities,Other Agencies - Third Party P,90068972,ALLIED HEALTHCARE LTD, 40.41 ,03/04/2018
Delivery Units,Adults and Communities,Other Agencies - Third Party P,90068973,ALLIED HEALTHCARE LTD,251.44,03/04/2018
Delivery Units,Adults and Communities,Other Agencies - Third Party P,90068974,ALLIED HEALTHCARE LTD,125.72,03/04/2018
Delivery Units,Adults and Communities,Other Agencies - Third Party P,90068975,ALLIED HEALTHCARE LTD,188.58,03/04/2018
Delivery Units,Adults and Communities,Other Agencies - Third Party P,90068976,ALLIED HEALTHCARE LTD,251.44,03/04/2018
Delivery Units,Adults and Communities,Other Agencies - Third Party P,90068977,ALLIED HEALTHCARE LTD,"1,077.60",03/04/2018
Delivery Units,Adults and Communities,Other Agencies - Third Party P,90068978,ALLIED HEALTHCARE LTD,157.15,03/04/2018
Delivery Units,Adults and Communities,Other Agencies - Third Party P,90068979,ALLIED HEALTHCARE LTD,125.72,03/04/2018
Delivery Units,Adults and Communities,Other Agencies - Third Party P,90068980,ALLIED HEALTHCARE LTD,125.72,03/04/2018
Delivery Units,Adults and Communities,Other Agencies - Third Party P,90068981,ALLIED HEALTHCARE LTD,62.86,03/04/2018
Delivery Units,Adults and Communities,Other Agencies - Third Party P,90068982,ALLIED HEALTHCARE LTD, 125.72 ,03/04/2018
Delivery Units,Adults and Communities,Other Agencies - Third Party P,90068983,ALLIED HEALTHCARE LTD,94.29,03/04/2018
Delivery Units,Adults and Communities,Other Agencies - Third Party P,90068984,ALLIED HEALTHCARE LTD,125.72,03/04/2018
Delivery Units,Adults and Communities,Other Agencies - Third Party P,90068985,ALLIED HEALTHCARE LTD, 300.83 ,03/04/2018
Delivery Units,Adults and Communities,Other Agencies - Third Party P,90070984,ALLIED HEALTHCARE LTD,62.86,17/04/2018
Delivery Units,Adults and Communities,Other Agencies - Third Party P,90070985,ALLIED HEALTHCARE LTD, 188.58 ,17/04/2018
Delivery Units,Adults and Communities,Other Agencies - Third Party P,90070986,ALLIED HEALTHCARE LTD, 89.80 ,17/04/2018
Delivery Units,Adults and Communities,Other Agencies - Third Party P,90070987,ALLIED HEALTHCARE LTD,125.72,17/04/2018
Delivery Units,Adults and Communities,Other Agencies - Third Party P,90070988,ALLIED HEALTHCARE LTD, 188.58 ,17/04/2018
Delivery Units,Adults and Communities,Other Agencies - Third Party P,90070989,ALLIED HEALTHCARE LTD, 71.84 ,17/04/2018
Delivery Units,Adults and Communities,Other Agencies - Third Party P,90070990,ALLIED HEALTHCARE LTD, 89.80 ,17/04/2018
Delivery Units,Adults and Communities,Other Agencies - Third Party P,90070991,ALLIED HEALTHCARE LTD,31.43,17/04/2018
Delivery Units,Adults and Communities,Other Agencies - Third Party P,90070992,ALLIED HEALTHCARE LTD, 17.96 ,17/04/2018
Delivery Units,Adults and Communities,Other Agencies - Third Party P,90070993,ALLIED HEALTHCARE LTD, 282.87 ,17/04/2018
Delivery Units,Adults and Communities,Other Agencies - Third Party P,90070994,ALLIED HEALTHCARE LTD, 139.19 ,17/04/2018
Delivery Units,Adults and Communities,Other Agencies - Third Party P,90070995,ALLIED HEALTHCARE LTD, 143.68 ,17/04/2018
Delivery Units,Adults and Communities,Other Agencies - Third Party P,90070996,ALLIED HEALTHCARE LTD,677.99,17/04/2018
Delivery Units,Adults and Communities,Other Agencies - Third Party P,90070997,ALLIED HEALTHCARE LTD,157.15,17/04/2018
Delivery Units,Adults and Communities,Other Agencies - Third Party P,90070998,ALLIED HEALTHCARE LTD, 94.29 ,17/04/2018
Delivery Units,Adults and Communities,Other Agencies - Third Party P,90070999,ALLIED HEALTHCARE LTD,188.58,17/04/2018
Delivery Units,Adults and Communities,Other Agencies - Third Party P,90071000,ALLIED HEALTHCARE LTD,318.79,17/04/2018
Delivery Units,Adults and Communities,Other Agencies - Third Party P,90071001,ALLIED HEALTHCARE LTD, 35.92 ,17/04/2018
Delivery Units,Adults and Communities,Other Agencies - Third Party P,90071002,ALLIED HEALTHCARE LTD,76.33,17/04/2018
